{"text_format":"1","workbook":"xlsx","n_sheets":2,"sheets":["الدليل","الميزان"],"not_rendered":{"charts":0,"images":0,"macros":1,"external_links":0,"defined_names":2,"comments":0,"pivot_tables":0},"unopened":[],"bounds":{"document_bytes":16777216,"sheet_cells":100000,"rows_first":2000,"rows_last":500,"rows_between":2000,"halvings":0,"cell_chars":16384,"cell_head_chars":4096},"cells_cut":0,"cells_raw":0,"read":"whole","date_system":"1900"}

{"sheet":"الدليل","index":0,"n_rows":476,"n_cols":10,"rows_kept":476,"cut":false,"hidden":false,"merged":[]}
[]
[]
[null,"1","2","3","4","5","6","طبيعة الحساب","اسم الحساب","النوع"]
[null,1,null,null,null,null,null,"رئيسي","الاصول","ميزانية عمومية"]
[null,null,null,null,null,null,null,"رئيسي","الاصول المتداولة","ميزانية عمومية"]
[null,null,null,111,null,null,null,"رئيسي","النقدية","ميزانية عمومية"]
[null,null,null,null,1111,null,null,"رئيسي","النقدية في الصناديق","ميزانية عمومية"]
[null,null,null,null,null,111101,null,"رئيسي","الصناديق المجمعة","ميزانية عمومية"]
[null,null,null,null,null,null,111101004,"فرعي","صناديق خبراء المنازل للمقاولات","ميزانية عمومية"]
[null,null,null,null,1112,null,null,"رئيسي","النقدية في البنوك","ميزانية عمومية"]
[null,null,null,null,null,111201,null,"رئيسي","البنوك المجمعة","ميزانية عمومية"]
[null,null,null,null,null,null,111201003,"فرعي","بنوك خبراء المنازل","ميزانية عمومية"]
[null,null,null,null,null,null,111201002,"فرعي","بنوك شركة 3","ميزانية عمومية"]
[null,null,null,null,null,null,111201001,"فرعي","بنك الراجحي شركة 1-جاري","ميزانية عمومية"]
[null,null,null,null,null,111202,null,"رئيسي","شيكات قبض تحت التحصيل شركة 3","ميزانية عمومية"]
[null,null,null,112,null,null,null,"رئيسي","المدينون","ميزانية عمومية"]
[null,null,null,null,1121,null,null,"رئيسي","العملاء","ميزانية عمومية"]
[null,null,null,null,null,112101,null,"رئيسي","عملاء المبيعات","ميزانية عمومية"]
[null,null,null,null,null,null,112101002,"فرعي","عملاء شركة التسويق","ميزانية عمومية"]
[null,null,null,null,null,112102,null,"رئيسي","عملاء مقاولات","ميزانية عمومية"]
[null,null,null,null,null,null,1121022,"فرعي","العميل جمعية البر بالريث","ميزانية عمومية"]
[null,null,null,113,null,null,null,"رئيسي","السلف والتامينات والعهد المدينة","ميزانية عمومية"]
[null,null,null,null,1131,null,null,"رئيسي","سلف العاملين","ميزانية عمومية"]
[null,null,null,null,null,113101,null,"رئيسي","سلف العاملين","ميزانية عمومية"]
[null,null,null,null,null,null,113101010,"فرعي","سلف 1","ميزانية عمومية"]
[null,null,null,null,null,null,113101037,"فرعي","سلف 2","ميزانية عمومية"]
[null,null,null,null,null,null,113101045,"فرعي","سلف 3","ميزانية عمومية"]
[null,null,null,null,null,null,113101011,"فرعي","سلف 4","ميزانية عمومية"]
[null,null,null,null,null,null,113101017,"فرعي","سلف 5","ميزانية عمومية"]
[null,null,null,null,null,null,113101043,"فرعي","سلف 6","ميزانية عمومية"]
[null,null,null,null,null,null,113101044,"فرعي","سلف 7","ميزانية عمومية"]
[null,null,null,null,null,null,113101040,"فرعي","سلف 8","ميزانية عمومية"]
[null,null,null,null,null,null,113101041,"فرعي","سلف 9","ميزانية عمومية"]
[null,null,null,null,null,null,113101039,"فرعي","سلف 10","ميزانية عمومية"]
[null,null,null,null,null,null,113101046,"فرعي","سلف 11","ميزانية عمومية"]
[null,null,null,null,null,null,113101023,"فرعي","سلف 12","ميزانية عمومية"]
[null,null,null,null,null,null,113101050,"فرعي","سلف 13","ميزانية عمومية"]
[null,null,null,null,null,null,113101009,"فرعي","سلف 14","ميزانية عمومية"]
[null,null,null,null,null,null,113101014,"فرعي","سلف 15","ميزانية عمومية"]
[null,null,null,null,null,null,113101038,"فرعي","سلف 16","ميزانية عمومية"]
[null,null,null,null,null,null,113101018,"فرعي","سلف 17","ميزانية عمومية"]
[null,null,null,null,null,null,113101020,"فرعي","سلف 18","ميزانية عمومية"]
[null,null,null,null,null,null,113101021,"فرعي","سلف 19","ميزانية عمومية"]
[null,null,null,null,null,null,113101027,"فرعي","سلف 20","ميزانية عمومية"]
[null,null,null,null,null,null,113101008,"فرعي","سلف 21","ميزانية عمومية"]
[null,null,null,null,null,null,113101003,"فرعي","سلف 22","ميزانية عمومية"]
[null,null,null,null,null,null,113101013,"فرعي","سلف 23","ميزانية عمومية"]
[null,null,null,null,null,null,113101036,"فرعي","سلف 24","ميزانية عمومية"]
[null,null,null,null,null,null,113101024,"فرعي","سلف 25","ميزانية عمومية"]
[null,null,null,null,null,null,113101048,"فرعي","سلف 26","ميزانية عمومية"]
[null,null,null,null,null,null,113101049,"فرعي","سلف 27","ميزانية عمومية"]
[null,null,null,null,null,null,113101030,"فرعي","سلف 28","ميزانية عمومية"]
[null,null,null,null,null,null,113101032,"فرعي","سلف 29","ميزانية عمومية"]
[null,null,null,null,null,null,113101033,"فرعي","سلف 30","ميزانية عمومية"]
[null,null,null,null,null,null,113101007,"فرعي","سلف 31","ميزانية عمومية"]
[null,null,null,null,null,null,113101047,"فرعي","سلف 32","ميزانية عمومية"]
[null,null,null,null,null,null,113101051,"فرعي","سلف 33","ميزانية عمومية"]
[null,null,null,null,null,null,113101016,"فرعي","سلف 34","ميزانية عمومية"]
[null,null,null,null,null,null,113101019,"فرعي","سلف 35","ميزانية عمومية"]
[null,null,null,null,null,null,113101028,"فرعي","سلف 36","ميزانية عمومية"]
[null,null,null,null,null,null,113101006,"فرعي","سلف 37","ميزانية عمومية"]
[null,null,null,null,null,null,113101015,"فرعي","سلف 38","ميزانية عمومية"]
[null,null,null,null,null,null,113101025,"فرعي","سلف 39","ميزانية عمومية"]
[null,null,null,null,null,null,113101004,"فرعي","سلف 40","ميزانية عمومية"]
[null,null,null,null,null,null,113101005,"فرعي","سلف 41","ميزانية عمومية"]
[null,null,null,null,null,null,113101042,"فرعي","سلف 42","ميزانية عمومية"]
[null,null,null,null,null,null,113101035,"فرعي","سلف 43","ميزانية عمومية"]
[null,null,null,null,null,null,113101026,"فرعي","سلف 44","ميزانية عمومية"]
[null,null,null,null,null,null,113101029,"فرعي","سلف 45","ميزانية عمومية"]
[null,null,null,null,null,null,113101031,"فرعي","سلف 46","ميزانية عمومية"]
[null,null,null,null,null,null,113101052,"فرعي","سلف 47","ميزانية عمومية"]
[null,null,null,null,null,null,113101034,"فرعي","سلف 48","ميزانية عمومية"]
[null,null,null,null,null,null,113101012,"فرعي","سلف 49","ميزانية عمومية"]
[null,null,null,null,null,null,113101022,"فرعي","سلف 50","ميزانية عمومية"]
[null,null,null,null,1132,null,null,"رئيسي","عهد مؤقتة","ميزانية عمومية"]
[null,null,null,null,null,113201,null,"رئيسي","عهد مؤقتة الموظفين","ميزانية عمومية"]
[null,null,null,null,null,null,11320101,"فرعي","عهدة 1","ميزانية عمومية"]
[null,null,null,null,null,null,11320121,"فرعي","عهدة 2","ميزانية عمومية"]
[null,null,null,null,null,null,11320109,"فرعي","عهدة 3","ميزانية عمومية"]
[null,null,null,null,null,null,11320108,"فرعي","عهدة 4","ميزانية عمومية"]
[null,null,null,null,null,null,11320107,"فرعي","عهدة 5","ميزانية عمومية"]
[null,null,null,null,null,null,11320104,"فرعي","عهدة 6","ميزانية عمومية"]
[null,null,null,null,null,null,11320102,"فرعي","عهدة 7","ميزانية عمومية"]
[null,null,null,null,null,null,11320115,"فرعي","عهدة 8","ميزانية عمومية"]
[null,null,null,null,null,null,11320117,"فرعي","عهدة 9","ميزانية عمومية"]
[null,null,null,null,null,null,11320105,"فرعي","عهدة 10","ميزانية عمومية"]
[null,null,null,null,null,null,11320120,"فرعي","عهدة 11","ميزانية عمومية"]
[null,null,null,null,null,null,11320106,"فرعي","عهدة 12","ميزانية عمومية"]
[null,null,null,null,null,null,11320103,"فرعي","عهدة 13","ميزانية عمومية"]
[null,null,null,null,1133,null,null,"رئيسي","الضمانات المدينة","ميزانية عمومية"]
[null,null,null,null,null,113301,null,"رئيسي","ضمانات اعتمادات","ميزانية عمومية"]
[null,null,null,null,1134,null,null,"رئيسي","التامينات المدينة .....","ميزانية عمومية"]
[null,null,null,null,1135,null,null,"رئيسي","ذمم موظفين","ميزانية عمومية"]
[null,null,null,null,null,11351,null,"رئيسي","موظفين القطاع","ميزانية عمومية"]
[null,null,null,114,null,null,null,"رئيسي","المخزون","ميزانية عمومية"]
[null,null,null,null,1141,null,null,"رئيسي","المخزون السلعي","ميزانية عمومية"]
[null,null,null,null,null,114101,null,"رئيسي","مخزون شركة 3","ميزانية عمومية"]
[null,null,null,null,null,null,114101004,"فرعي","وسيط التحويلات المخزنية","ميزانية عمومية"]
[null,null,null,null,null,114102,null,"رئيسي","مخزون شركة 1","ميزانية عمومية"]
[null,null,null,115,null,null,null,"رئيسي","الاعتمادات المستندية","ميزانية عمومية"]
[null,null,null,null,1151,null,null,"رئيسي","الاعتمادات المستندية","ميزانية عمومية"]
[null,null,null,null,null,115101,null,"رئيسي","اعتمادات مستندية","ميزانية عمومية"]
[null,null,null,null,null,null,115101001,"فرعي","اعتمادات مستندية","ميزانية عمومية"]
[null,null,null,116,null,null,null,"رئيسي","الارصدة المدينة الاخرى","ميزانية عمومية"]
[null,null,null,null,1161,null,null,"رئيسي","حسابات انتقالية مدينة","ميزانية عمومية"]
[null,null,null,null,null,1161001,null,"رئيسي","مدينيون خبراء المنازل","ميزانية عمومية"]
[null,null,null,null,null,null,116100101,"فرعي","مدينون اخرى (علي السياري)","ميزانية عمومية"]
[null,null,null,null,null,116101,null,"رئيسي","المصاريف المدفوعة مقدماً","ميزانية عمومية"]
[null,null,null,null,null,null,116101001,"فرعي","ايجارات مدفوعة مقدماً","ميزانية عمومية"]
[null,null,null,null,null,116102,null,"رئيسي","مبالغ تحت التسوية","ميزانية عمومية"]
[null,null,null,null,null,null,116102003,"فرعي","اطراف ذات علاقة ( شركة 3 )","ميزانية عمومية"]
[null,null,null,null,null,null,116102002,"فرعي","مبالغ مدينة تحت التسوية","ميزانية عمومية"]
[null,null,null,null,null,null,116102001,"فرعي","ضريبة القيمة المضافة (مدخلات)","ميزانية عمومية"]
[null,null,null,null,null,116103,null,"رئيسي","اطراف ذات علاقة","ميزانية عمومية"]
[null,null,null,null,null,null,116103006,"فرعي","جاري شركة 4","ميزانية عمومية"]
[null,null,null,null,null,null,116103002,"فرعي","جاري خبراء المنازل للتجاره والمقاولات","ميزانية عمومية"]
[null,null,null,null,null,null,116103004,"فرعي","جاري شركة 1","ميزانية عمومية"]
[null,null,null,null,null,null,116103007,"فرعي","جاري الهايبر","ميزانية عمومية"]
[null,null,null,null,null,null,116103005,"فرعي","جاري مجمع برج الاسرة الطبي","ميزانية عمومية"]
[null,null,null,null,null,null,116103003,"فرعي","جاري شركة 1","ميزانية عمومية"]
[null,null,null,null,1162,null,null,"رئيسي","مدينون","ميزانية عمومية"]
[null,null,null,null,null,1162001,null,"رئيسي","مدينون اخرون","ميزانية عمومية"]
[null,null,null,null,null,null,116200101,"فرعي","مديونية د/عبدالرحمن الحربي","ميزانية عمومية"]
[null,null,12,null,null,null,null,"رئيسي","الاصول الثابته","ميزانية عمومية"]
[null,null,null,121,null,null,null,"رئيسي","الاصول الغير متداولة","ميزانية عمومية"]
[null,null,null,null,1211,null,null,"رئيسي","السيارات وشاحنات النقل","ميزانية عمومية"]
[null,null,null,null,null,121101,null,"رئيسي","سيارات شركة 3","ميزانية عمومية"]
[null,null,null,null,null,121102,null,"رئيسي","مصنع الثلج و المبردات شركة 3","ميزانية عمومية"]
[null,null,null,null,1212,null,null,"رئيسي","الاثاث والتجهيز ات المكتبية","ميزانية عمومية"]
[null,null,null,null,null,121201,null,"رئيسي","أثاث ومفروشات","ميزانية عمومية"]
[null,null,null,null,null,null,121201003,"فرعي","ثلاجات","ميزانية عمومية"]
[null,null,null,null,null,121202,null,"رئيسي","التجهيزات المكتبية","ميزانية عمومية"]
[null,null,null,null,null,null,121202001,"فرعي","مكاتب","ميزانية عمومية"]
[null,null,null,null,null,null,121202003,"فرعي","طاولات","ميزانية عمومية"]
[null,null,null,null,null,null,121202004,"فرعي","دواليب","ميزانية عمومية"]
[null,null,null,null,null,null,121202002,"فرعي","كراسي","ميزانية عمومية"]
[null,null,null,null,1213,null,null,"رئيسي","الكمبيوترات وملحقاتها والانظمة","ميزانية عمومية"]
[null,null,null,null,null,121301,null,"رئيسي","كمبيوترات وملحقاتها","ميزانية عمومية"]
[null,null,null,null,null,null,121301003,"فرعي","آلات تصوير","ميزانية عمومية"]
[null,null,null,null,null,null,121301001,"فرعي","أجهزة كمبيوتر","ميزانية عمومية"]
[null,null,null,null,null,null,121301002,"فرعي","طابعات كمبيوتر","ميزانية عمومية"]
[null,null,null,null,null,121302,null,"رئيسي","الانظمة المحاسبية","ميزانية عمومية"]
[null,null,null,null,null,null,121302003,"فرعي","نطام محاسبي أونكس برو","ميزانية عمومية"]
[null,null,null,null,null,null,121302002,"فرعي","نطام محاسبي سماك","ميزانية عمومية"]
[null,null,null,null,null,null,121302001,"فرعي","نطام محاسبية يارا","ميزانية عمومية"]
[null,null,null,null,null,121303,null,"رئيسي","أجهزة البصمة","ميزانية عمومية"]
[null,null,null,null,null,null,121303001,"فرعي","أجهزة بصمة","ميزانية عمومية"]
[null,null,null,null,1214,null,null,"رئيسي","اجهزة كهربائية","ميزانية عمومية"]
[null,null,null,null,null,121401,null,"رئيسي","الاجهزة الكهربائية","ميزانية عمومية"]
[null,null,null,null,null,null,121401001,"فرعي","مكبرات صوت","ميزانية عمومية"]
[null,null,null,null,null,121402,null,"رئيسي","عدد وأدوات شركة 3","ميزانية عمومية"]
[null,null,null,null,1215,null,null,"رئيسي","اجهزة كهربائية","ميزانية عمومية"]
[null,null,null,null,null,121501,null,"رئيسي","محطات خرسانية مركزية شركة 3","ميزانية عمومية"]
[null,null,null,null,null,121502,null,"رئيسي","مضخات خرسانية ثابتة شركة 3","ميزانية عمومية"]
[null,null,null,null,null,121503,null,"رئيسي","مضخات خرسانية متحركة شركة 3","ميزانية عمومية"]
[null,null,null,null,null,121504,null,"رئيسي","خلاطات خرسانية شركة 3","ميزانية عمومية"]
[null,null,null,null,null,121505,null,"رئيسي","مولدات شركة 3","ميزانية عمومية"]
[null,null,null,null,null,121506,null,"رئيسي","شيولات شركة 3","ميزانية عمومية"]
[null,null,null,null,null,121507,null,"رئيسي","بوبكات شركة 3","ميزانية عمومية"]
[null,null,null,null,1216,null,null,"رئيسي","مباني","ميزانية عمومية"]
[null,null,null,null,null,121601,null,"رئيسي","انشاء مباني شركة 3","ميزانية عمومية"]
[null,null,null,null,null,121602,null,"رئيسي","براكسات وخزانات شركة 3","ميزانية عمومية"]
[null,null,null,null,1217,null,null,"رئيسي","أراضي","ميزانية عمومية"]
[null,null,null,null,null,121702,null,"رئيسي","اراضي","ميزانية عمومية"]
[null,null,null,null,null,null,121702001,"فرعي","ارضية ....","ميزانية عمومية"]
[null,null,null,null,1218,null,null,"رئيسي","مصاريف التاسيس","ميزانية عمومية"]
[null,null,null,null,null,121801,null,"رئيسي","مصاريف التاسيس وشهرة المحل","ميزانية عمومية"]
[null,null,null,null,null,null,121801001,"فرعي","مصروف تأسيس","ميزانية عمومية"]
[null,null,null,null,1219,null,null,"رئيسي","اخشاب وسقالات وجاكات للمواقع","ميزانية عمومية"]
[null,null,null,null,null,121901,null,"رئيسي","اخشاب وسقالات وجاكات للمواقع","ميزانية عمومية"]
[null,null,null,null,null,null,121901002,"فرعي","اخشاب","ميزانية عمومية"]
[null,null,null,null,null,null,121901001,"فرعي","شهرة شركة 3","ميزانية عمومية"]
[null,null,null,null,null,121902,null,"رئيسي","سقالات للمواقع","ميزانية عمومية"]
[null,null,null,null,null,null,121902001,"فرعي","سقالات","ميزانية عمومية"]
[null,2,null,null,null,null,null,"رئيسي","الخصوم وحقوق الملكيه","ميزانية عمومية"]
[null,null,21,null,null,null,null,"رئيسي","الخصوم المتداولة","ميزانية عمومية"]
[null,null,null,211,null,null,null,"رئيسي","الدائنوان","ميزانية عمومية"]
[null,null,null,null,2111,null,null,"رئيسي","الموردين","ميزانية عمومية"]
[null,null,null,null,null,211101,null,"رئيسي","موردين شركة 3","ميزانية عمومية"]
[null,null,null,null,null,211102,null,"رئيسي","موردين نشاط المقاولات","ميزانية عمومية"]
[null,null,null,null,null,null,211102001,"فرعي","مقاولين الباطن","ميزانية عمومية"]
[null,null,null,null,null,null,211102002,"فرعي","موردين المقاولات","ميزانية عمومية"]
[null,null,null,null,null,211103,null,"رئيسي","موردين شركة التسويق","ميزانية عمومية"]
[null,null,null,null,2112,null,null,"رئيسي","الناقلين","ميزانية عمومية"]
[null,null,null,null,null,211201,null,"رئيسي","مقدمي خدمات نقل شركة 3","ميزانية عمومية"]
[null,null,null,null,null,211202,null,"رئيسي","مقدمى خدمات النقل شركة 3","ميزانية عمومية"]
[null,null,null,null,2113,null,null,"رئيسي","ذمم دائنة اخرى","ميزانية عمومية"]
[null,null,null,null,null,211301,null,"رئيسي","ذمم دائنة أخرى شركة 3","ميزانية عمومية"]
[null,null,null,null,null,211302,null,"رئيسي","دائنون متنوعون شركة 1","ميزانية عمومية"]
[null,null,null,null,null,211303,null,"رئيسي","ذمم اخرى","ميزانية عمومية"]
[null,null,null,null,null,211304,null,"رئيسي","دائنون متنوعون خبراء المنازل","ميزانية عمومية"]
[null,null,null,null,null,null,21130401,"فرعي","دائنون متنوعون (علي السياري)","ميزانية عمومية"]
[null,null,null,212,null,null,null,"رئيسي","اوراق دفع","ميزانية عمومية"]
[null,null,null,null,2121,null,null,"رئيسي","شيكات دفع تحت التحصيل","ميزانية عمومية"]
[null,null,null,null,null,212101,null,"رئيسي","شيكات دفع تحت التحصيل","ميزانية عمومية"]
[null,null,null,null,null,null,212101001,"فرعي","شيكات دفع بنك ......تحت التحصيل","ميزانية عمومية"]
[null,null,null,213,null,null,null,"رئيسي","التامينات الدائنة","ميزانية عمومية"]
[null,null,null,null,2131,null,null,"رئيسي","التامينات الدائنة","ميزانية عمومية"]
[null,null,null,null,null,213101,null,"رئيسي","ضمانات عملاء","ميزانية عمومية"]
[null,null,null,null,null,null,213101001,"فرعي","ضمانة العميل ............","ميزانية عمومية"]
[null,null,null,214,null,null,null,"رئيسي","الارصدة الدئنة الاخرى","ميزانية عمومية"]
[null,null,null,null,2141,null,null,"رئيسي","مصاريف مستحقة","ميزانية عمومية"]
[null,null,null,null,null,214101,null,"رئيسي","مصاريف مستحقة اخرى","ميزانية عمومية"]
[null,null,null,null,null,null,214101002,"فرعي","تسوية ضريبة القيمة المضافة","ميزانية عمومية"]
[null,null,null,null,null,null,214101005,"فرعي","ايجار معدات مستحقة","ميزانية عمومية"]
[null,null,null,null,null,null,214101001,"فرعي","ضريبة القيمة المضافة (مخرجات)","ميزانية عمومية"]
[null,null,null,null,null,null,214101004,"فرعي","ايجارات مستحقة","ميزانية عمومية"]
[null,null,null,null,null,null,214101003,"فرعي","مرتبات واجور مستحقة","ميزانية عمومية"]
[null,null,null,null,null,null,214101006,"فرعي","مرتبات واجور مستحقة اجمالى","ميزانية عمومية"]
[null,null,null,null,null,214102,null,"رئيسي","حسابات اطراف ذات علاقة","ميزانية عمومية"]
[null,null,null,null,null,null,214102005,"فرعي","اطراف ذات علاقة شركة 3","ميزانية عمومية"]
[null,null,null,null,null,null,214102003,"فرعي","اطراف ذات علاقة شركة خبراء المنازل","ميزانية عمومية"]
[null,null,null,null,null,null,214102008,"فرعي","اطراف ذات علاقة شركة باكسون التجارية","ميزانية عمومية"]
[null,null,null,null,null,null,214102002,"فرعي","اطراف ذات علاقة شركة 2","ميزانية عمومية"]
[null,null,null,null,null,null,214102001,"فرعي","اطراف ذات علاقة  شركة 1","ميزانية عمومية"]
[null,null,null,null,null,null,214102004,"فرعي","اطراف ذات علاقة شركة 3","ميزانية عمومية"]
[null,null,null,215,null,null,null,"رئيسي","تسوية","ميزانية عمومية"]
[null,null,null,null,2151,null,null,"رئيسي","تسوية رصيد","ميزانية عمومية"]
[null,null,null,null,null,21511,null,"رئيسي","تسوية رصيد اول","ميزانية عمومية"]
[null,null,22,null,null,null,null,"رئيسي","الخصوم طويله الأجل","ميزانية عمومية"]
[null,null,null,221,null,null,null,"رئيسي","القروض","ميزانية عمومية"]
[null,null,null,null,2211,null,null,"رئيسي","قروض بنكية","ميزانية عمومية"]
[null,null,null,null,null,221101,null,"رئيسي","قروض","ميزانية عمومية"]
[null,null,null,null,null,null,221101001,"فرعي","قرض رقم 1","ميزانية عمومية"]
[null,null,23,null,null,null,null,"رئيسي","حقوق الملكية","ميزانية عمومية"]
[null,null,null,231,null,null,null,"رئيسي","حقوق ملكية الشركاء","ميزانية عمومية"]
[null,null,null,null,2311,null,null,"رئيسي","راس المال","ميزانية عمومية"]
[null,null,null,null,null,231101,null,"رئيسي","راس المال العام","ميزانية عمومية"]
[null,null,null,null,null,null,231101001,"فرعي","راس المال","ميزانية عمومية"]
[null,null,null,null,2312,null,null,"رئيسي","الارباح والخسائر","ميزانية عمومية"]
[null,null,null,null,null,231201,null,"رئيسي","الارباح والخسائر","ميزانية عمومية"]
[null,null,null,null,null,null,231201001,"فرعي","الارباح والخسائر للفترة","ميزانية عمومية"]
[null,null,null,null,null,null,231201002,"فرعي","الارباح والخسائر المرحلة","ميزانية عمومية"]
[null,null,null,null,2313,null,null,"رئيسي","المخصصات والمجمعات","ميزانية عمومية"]
[null,null,null,null,null,231301,null,"رئيسي","مخصصات ومجمعات","ميزانية عمومية"]
[null,null,null,null,null,null,231301002,"فرعي","مخصصات الديون المشكوك فيها","ميزانية عمومية"]
[null,null,null,null,null,null,231301001,"فرعي","مخصصات نهاية الخدمة","ميزانية عمومية"]
[null,null,null,null,null,231302,null,"رئيسي","مجمعات الاهلاك","ميزانية عمومية"]
[null,null,null,null,null,null,231302002,"فرعي","مجمع اهلاك المعدات والالات","ميزانية عمومية"]
[null,null,null,null,null,null,231302003,"فرعي","مجمع اهلاك السيارات وشاحنات النقل","ميزانية عمومية"]
[null,null,null,null,null,null,231302001,"فرعي","مجمع اهلاك المباني","ميزانية عمومية"]
[null,null,null,null,null,null,231302005,"فرعي","مجمع اهلاك الاثاث والتجهيز ات المكتبية","ميزانية عمومية"]
[null,null,null,null,null,null,231302006,"فرعي","مجمع اهلاك الاجهزة الكهربائية والعدد والادوات","ميزانية عمومية"]
[null,null,null,null,null,null,231302004,"فرعي","مجمع اهلاك الكمبيوترات والانظمة","ميزانية عمومية"]
[null,null,null,null,null,null,231302007,"فرعي","مجمع اهلاك تأسيس وشهرة محل","ميزانية عمومية"]
[null,null,null,null,2314,null,null,"رئيسي","الاحتياطيات","ميزانية عمومية"]
[null,null,null,null,null,231401,null,"رئيسي","الاحتياطيات","ميزانية عمومية"]
[null,null,null,null,null,null,231401001,"فرعي","احتياطي قانوني","ميزانية عمومية"]
[null,null,null,null,2315,null,null,"رئيسي","جاري المالك","ميزانية عمومية"]
[null,null,null,null,null,231501,null,"رئيسي","حسابات جاري المالك","ميزانية عمومية"]
[null,null,null,null,null,null,231501002,"فرعي","حساب جاري المالك - تمويل","ميزانية عمومية"]
[null,null,null,null,null,null,231501001,"فرعي","حساب جاري لمالك - عام","ميزانية عمومية"]
[null,null,null,null,null,null,231501003,"فرعي","حساب جاري المالك - عمائر","ميزانية عمومية"]
[null,3,null,null,null,null,null,"رئيسي","المصروفات","أرباح وخسائر"]
[null,null,31,null,null,null,null,"رئيسي","تكلفة التشغيل","أرباح وخسائر"]
[null,null,null,312,null,null,null,"رئيسي","تكلفة البضاعة المباعة","أرباح وخسائر"]
[null,null,null,null,3121,null,null,"رئيسي","تكلفة المبيعات","أرباح وخسائر"]
[null,null,null,null,null,312101,null,"رئيسي","تكلفة مبيعات المخزون السلعي","أرباح وخسائر"]
[null,null,null,null,null,null,312101002,"فرعي","تكلفة مبيعات الكمية المجانية","أرباح وخسائر"]
[null,null,null,null,3122,null,null,"رئيسي","تكلفة مردود المبيعات","أرباح وخسائر"]
[null,null,null,null,null,312201,null,"رئيسي","تكلفة مردود المبيعات الفترة","أرباح وخسائر"]
[null,null,null,null,null,null,312201003,"فرعي","تكلفة مردود المبيعات للكمية المجانية","أرباح وخسائر"]
[null,null,null,null,null,null,312201002,"فرعي","تكلفة مردود المبيعات سنوات سابقه","أرباح وخسائر"]
[null,null,null,null,3123,null,null,"رئيسي","مردود المبيعات","أرباح وخسائر"]
[null,null,null,null,null,312301,null,"رئيسي","مردود المبيعات للفترة","أرباح وخسائر"]
[null,null,null,null,null,null,312301002,"فرعي","مردود مبيعات سنوات سابقة","أرباح وخسائر"]
[null,null,null,null,3124,null,null,"رئيسي","الخصم المسموح به .","أرباح وخسائر"]
[null,null,null,null,null,312401,null,"رئيسي","الخصم المسموح به ..","أرباح وخسائر"]
[null,null,null,null,null,null,312401001,"فرعي","الخصم المسموح به","أرباح وخسائر"]
[null,null,null,null,3125,null,null,"رئيسي","تسوية المخزون","أرباح وخسائر"]
[null,null,null,null,null,312501,null,"رئيسي","تسوية المخزون","أرباح وخسائر"]
[null,null,null,null,null,null,312501001,"فرعي","تسوية المخزون","أرباح وخسائر"]
[null,null,null,null,3126,null,null,"رئيسي","مصاريف شحن وتحميل","أرباح وخسائر"]
[null,null,null,null,null,312601,null,"رئيسي","مصاريف شحن بضاعه","أرباح وخسائر"]
[null,null,null,313,null,null,null,"رئيسي","تكاليف نشاط المقاولات","أرباح وخسائر"]
[null,null,null,null,3131,null,null,"رئيسي","تكاليف المشاريع","أرباح وخسائر"]
[null,null,null,null,null,31311,null,"رئيسي","مشتريات المشاريع","أرباح وخسائر"]
[null,null,null,null,null,null,31311008,"فرعي","مشتريات رخام","أرباح وخسائر"]
[null,null,null,null,null,null,31311030,"فرعي","مشتريات مستلزمات الامن والسلامه","أرباح وخسائر"]
[null,null,null,null,null,null,31311028,"فرعي","مستلزمات الامن والسلامه","أرباح وخسائر"]
[null,null,null,null,null,null,31311018,"فرعي","مشتريات جبس","أرباح وخسائر"]
[null,null,null,null,null,null,31311003,"فرعي","مشتريات خرسانة","أرباح وخسائر"]
[null,null,null,null,null,null,31311006,"فرعي","مشتريات مواد دهان","أرباح وخسائر"]
[null,null,null,null,null,null,31311002,"فرعي","مشتريات بطحاء","أرباح وخسائر"]
[null,null,null,null,null,null,31311020,"فرعي","مشتريات بلك احمر","أرباح وخسائر"]
[null,null,null,null,null,null,31311013,"فرعي","مستلزمات وادوات للياسة","أرباح وخسائر"]
[null,null,null,null,null,null,31311021,"فرعي","مشتريات بلك اسمنتي","أرباح وخسائر"]
[null,null,null,null,null,null,31311019,"فرعي","مستلزمات وادوات للدهان","أرباح وخسائر"]
[null,null,null,null,null,null,31311017,"فرعي","مستلزمات واكسسورات ابواب","أرباح وخسائر"]
[null,null,null,null,null,null,31311010,"فرعي","مشتريات مواد عزل","أرباح وخسائر"]
[null,null,null,null,null,null,31311005,"فرعي","مشتريات مواد كهرباء","أرباح وخسائر"]
[null,null,null,null,null,null,31311001,"فرعي","مشتريات حديد","أرباح وخسائر"]
[null,null,null,null,null,null,31311015,"فرعي","مستلزمات ومواد بناء","أرباح وخسائر"]
[null,null,null,null,null,null,31311024,"فرعي","مشتريات ومستلزمات بوستيشن","أرباح وخسائر"]
[null,null,null,null,null,null,31311031,"فرعي","مردودات المشتريات","أرباح وخسائر"]
[null,null,null,null,null,null,31311026,"فرعي","توريد وتركيب مكيفات مركزية","أرباح وخسائر"]
[null,null,null,null,null,null,31311012,"فرعي","مستلزمات وادوات للسيراميك","أرباح وخسائر"]
[null,null,null,null,null,null,31311022,"فرعي","محروقات للمشاريع","أرباح وخسائر"]
[null,null,null,null,null,null,31311016,"فرعي","عدد وادوات مستهلكة","أرباح وخسائر"]
[null,null,null,null,null,null,31311004,"فرعي","مشتريات مواد سباكة","أرباح وخسائر"]
[null,null,null,null,null,null,31311014,"فرعي","مستلزمات وادوات للرخام","أرباح وخسائر"]
[null,null,null,null,null,null,31311029,"فرعي","مشتريات مياه للمشاريع","أرباح وخسائر"]
[null,null,null,null,null,null,31311027,"فرعي","توريد وتركيب صاجات وفلنشات وزوايا","أرباح وخسائر"]
[null,null,null,null,null,null,31311009,"فرعي","مشتريات اسمنت","أرباح وخسائر"]
[null,null,null,null,null,null,31311007,"فرعي","مشتريات بلاط وسيراميك","أرباح وخسائر"]
[null,null,null,null,null,null,31311025,"فرعي","مستلزمات وادوات للجبس","أرباح وخسائر"]
[null,null,null,null,null,null,31311011,"فرعي","مشتريات بيوت تكييف","أرباح وخسائر"]
[null,null,null,null,null,null,31311023,"فرعي","نثرية للمشاريع","أرباح وخسائر"]
[null,null,null,null,null,31312,null,"رئيسي","أعمال المشاريع","أرباح وخسائر"]
[null,null,null,null,null,null,31312017,"فرعي","اعمال تكسير وتخريم","أرباح وخسائر"]
[null,null,null,null,null,null,31312018,"فرعي","اعمال استانلس ستيل","أرباح وخسائر"]
[null,null,null,null,null,null,31312024,"فرعي","اعمال تشطيب","أرباح وخسائر"]
[null,null,null,null,null,null,31312031,"فرعي","ايجار سقالات","أرباح وخسائر"]
[null,null,null,null,null,null,31312001,"فرعي","أعمال حدادة مسلحة","أرباح وخسائر"]
[null,null,null,null,null,null,31312030,"فرعي","اعمال تشوين","أرباح وخسائر"]
[null,null,null,null,null,null,31312003,"فرعي","اعمال مباني","أرباح وخسائر"]
[null,null,null,null,null,null,31312015,"فرعي","اعمال حجر الواجهة","أرباح وخسائر"]
[null,null,null,null,null,null,31312021,"فرعي","اعمال مساحة","أرباح وخسائر"]
[null,null,null,null,null,null,31312025,"فرعي","اعمال حفر وردم وترحيل دمار","أرباح وخسائر"]
[null,null,null,null,null,null,31312008,"فرعي","اعمال جبس","أرباح وخسائر"]
[null,null,null,null,null,null,31312019,"فرعي","اعمال تمديد مكيفات","أرباح وخسائر"]
[null,null,null,null,null,null,31312027,"فرعي","اعمال ديكور","أرباح وخسائر"]
[null,null,null,null,null,null,31312016,"فرعي","اعمال عزل","أرباح وخسائر"]
[null,null,null,null,null,null,31312020,"فرعي","اعمال رخام","أرباح وخسائر"]
[null,null,null,null,null,null,31312026,"فرعي","اعمال نظافة","أرباح وخسائر"]
[null,null,null,null,null,null,31312002,"فرعي","اعمال نجارة مسلحة","أرباح وخسائر"]
[null,null,null,null,null,null,31312005,"فرعي","اعمال كهرباء","أرباح وخسائر"]
[null,null,null,null,null,null,31312006,"فرعي","اعمال دهان","أرباح وخسائر"]
[null,null,null,null,null,null,31312007,"فرعي","اعمال بلاط وسيراميك","أرباح وخسائر"]
[null,null,null,null,null,null,31312014,"فرعي","اعمال زجاج اسكريت","أرباح وخسائر"]
[null,null,null,null,null,null,31312032,"فرعي","اعمال مقاولة","أرباح وخسائر"]
[null,null,null,null,null,null,31312004,"فرعي","اعمال لياسة","أرباح وخسائر"]
[null,null,null,null,null,null,31312012,"فرعي","اعمال نجارة ابواب","أرباح وخسائر"]
[null,null,null,null,null,null,31312022,"فرعي","اعمال ورسومات هندسية","أرباح وخسائر"]
[null,null,null,null,null,null,31312023,"فرعي","يوميات واجور خارجية","أرباح وخسائر"]
[null,null,null,null,null,null,31312009,"فرعي","اعمال سباكة","أرباح وخسائر"]
[null,null,null,null,null,null,31312010,"فرعي","اعمال حلوق ابواب","أرباح وخسائر"]
[null,null,null,null,null,null,31312011,"فرعي","اعمال عضم","أرباح وخسائر"]
[null,null,null,null,null,null,31312013,"فرعي","اعمال المونيوم","أرباح وخسائر"]
[null,null,null,314,null,null,null,"رئيسي","تكاليف شركة التسويق","أرباح وخسائر"]
[null,null,null,null,3141,null,null,"رئيسي","تكاليف شركة التسويق","أرباح وخسائر"]
[null,null,null,null,null,31411,null,"رئيسي","مصروفات الدعاية والاعلانات","أرباح وخسائر"]
[null,null,null,null,null,31412,null,"رئيسي","رسوم خدمات","أرباح وخسائر"]
[null,null,32,null,null,null,null,"رئيسي","مصاريف عموميه وإداريه","أرباح وخسائر"]
[null,null,null,321,null,null,null,"رئيسي","المصاريف الإدارية والعمومية","أرباح وخسائر"]
[null,null,null,null,3211,null,null,"رئيسي","المصاريف الإدارية والعمومية","أرباح وخسائر"]
[null,null,null,null,null,321101,null,"رئيسي","المرتبات والاجور وما في حكمها - إدارية","أرباح وخسائر"]
[null,null,null,null,null,null,321101001,"فرعي","رواتب واجور","أرباح وخسائر"]
[null,null,null,null,null,null,321101006,"فرعي","بدل اجازة سنوية","أرباح وخسائر"]
[null,null,null,null,null,null,321101005,"فرعي","بدل تذاكر","أرباح وخسائر"]
[null,null,null,null,null,null,321101004,"فرعي","بدلات سكن الموظفين","أرباح وخسائر"]
[null,null,null,null,null,null,321101003,"فرعي","رواتب عمالة خارجية","أرباح وخسائر"]
[null,null,null,null,null,null,321101002,"فرعي","اعمال اضافية","أرباح وخسائر"]
[null,null,null,null,null,321102,null,"رئيسي","المصاريف العمومية - إدارة","أرباح وخسائر"]
[null,null,null,null,null,null,321102031,"فرعي","مصاريف اتعاب مكتب محاسبة","أرباح وخسائر"]
[null,null,null,null,null,null,321102023,"فرعي","مصروفات متنوعة","أرباح وخسائر"]
[null,null,null,null,null,null,321102020,"فرعي","مصاريف دعاية واعلان","أرباح وخسائر"]
[null,null,null,null,null,null,321102017,"فرعي","مصاريف مخالفات مرورية","أرباح وخسائر"]
[null,null,null,null,null,null,321102010,"فرعي","مصاريف تأشيرات استقدام","أرباح وخسائر"]
[null,null,null,null,null,null,321102018,"فرعي","مصاريف تامين طبي","أرباح وخسائر"]
[null,null,null,null,null,null,321102012,"فرعي","مصاريف نقل كفالات عاملين","أرباح وخسائر"]
[null,null,null,null,null,null,321102011,"فرعي","مصاريف تجديد اقامات وكروت عمل","أرباح وخسائر"]
[null,null,null,null,null,null,321102002,"فرعي","مصاريف كهرباء","أرباح وخسائر"]
[null,null,null,null,null,null,321102003,"فرعي","مصاريف مياه","أرباح وخسائر"]
[null,null,null,null,null,null,321102013,"فرعي","مصاريف تأمينات اجتماعية","أرباح وخسائر"]
[null,null,null,null,null,null,321102021,"فرعي","مصاريف اشتراكات وتصديقات","أرباح وخسائر"]
[null,null,null,null,null,null,321102029,"فرعي","تصفية مستحقات العمال والموظفين","أرباح وخسائر"]
[null,null,null,null,null,null,321102004,"فرعي","مصاريف ايجارات","أرباح وخسائر"]
[null,null,null,null,null,null,321102005,"فرعي","مصاريف طعام عاملين","أرباح وخسائر"]
[null,null,null,null,null,null,321102009,"فرعي","مصاريف نثرية","أرباح وخسائر"]
[null,null,null,null,null,null,321102015,"فرعي","مصاريف حراسات","أرباح وخسائر"]
[null,null,null,null,null,null,321102014,"فرعي","مصاريف علاج","أرباح وخسائر"]
[null,null,null,null,null,null,321102022,"فرعي","مصاريف رسوم و عمولات بنكية","أرباح وخسائر"]
[null,null,null,null,null,null,321102008,"فرعي","مصاريف عمولات بيعية وتسويقية","أرباح وخسائر"]
[null,null,null,null,null,null,321102001,"فرعي","مصاريف هاتف وجوالات وبريد","أرباح وخسائر"]
[null,null,null,null,null,null,321102006,"فرعي","مصاريف بوفية وضيافة","أرباح وخسائر"]
[null,null,null,null,null,null,321102016,"فرعي","مصاريف تأمين مركبات","أرباح وخسائر"]
[null,null,null,null,null,null,321102019,"فرعي","مصاريف قرطاسية ومكتبية","أرباح وخسائر"]
[null,null,null,null,null,null,321102007,"فرعي","مكافات وحوافز عاملين","أرباح وخسائر"]
[null,null,null,null,null,null,321102030,"فرعي","رسوم و خدمات حكومية","أرباح وخسائر"]
[null,null,33,null,null,null,null,"رئيسي","مصروفات تشغيلية","أرباح وخسائر"]
[null,null,null,331,null,null,null,"رئيسي","مصروفت تشغيلية وأخرى","أرباح وخسائر"]
[null,null,null,null,3311,null,null,"رئيسي","مصروفات تشغيلية الفروع","أرباح وخسائر"]
[null,null,null,null,null,331101,null,"رئيسي","مصاريف تشغيلية","أرباح وخسائر"]
[null,null,null,null,null,null,331101005,"فرعي","مصاريف صيانة معدات","أرباح وخسائر"]
[null,null,null,null,null,null,331101002,"فرعي","مصاريف بنزين","أرباح وخسائر"]
[null,null,null,null,null,null,331101008,"فرعي","مصاريف كفرات","أرباح وخسائر"]
[null,null,null,null,null,null,331101003,"فرعي","مصاريف زيوت ومحروقات","أرباح وخسائر"]
[null,null,null,null,null,null,331101001,"فرعي","مصاريف ديزل","أرباح وخسائر"]
[null,null,null,null,null,null,331101011,"فرعي","مصاريف صيانة المباني","أرباح وخسائر"]
[null,null,null,null,null,null,331101006,"فرعي","مصاريف قطع غيار سيارات","أرباح وخسائر"]
[null,null,null,null,null,null,331101004,"فرعي","مصاريف قطع غيار معدات","أرباح وخسائر"]
[null,null,null,null,null,null,331101018,"فرعي","مصاريف تامين المركبات","أرباح وخسائر"]
[null,null,null,null,null,null,331101015,"فرعي","مصاريف أجور نقل","أرباح وخسائر"]
[null,null,null,null,null,null,331101013,"فرعي","مصاريف خصم مسموح به","أرباح وخسائر"]
[null,null,null,null,null,null,331101012,"فرعي","مصاريف صيانة واصلاحات","أرباح وخسائر"]
[null,null,null,null,null,null,331101007,"فرعي","مصاريف صيانة سيارات","أرباح وخسائر"]
[null,null,null,null,null,null,331101017,"فرعي","مصاريف أعمال من الباطن","أرباح وخسائر"]
[null,null,null,null,null,null,331101016,"فرعي","مصاريف ايجار معدات","أرباح وخسائر"]
[null,null,null,null,null,null,331101014,"فرعي","مصاريف مياه تحلية وآبار","أرباح وخسائر"]
[null,null,null,null,null,null,331101009,"فرعي","مصاريف بطاريات","أرباح وخسائر"]
[null,null,null,null,null,null,331101010,"فرعي","مصاريف نظافة","أرباح وخسائر"]
[null,null,null,null,3312,null,null,"رئيسي","مصروفات مواد المخزون","أرباح وخسائر"]
[null,null,null,null,null,331201,null,"رئيسي","مصروفات مخزون تام وقطع غيار","أرباح وخسائر"]
[null,null,null,null,null,null,331201006,"فرعي","مصاريف بحص 3/8","أرباح وخسائر"]
[null,null,null,null,null,null,331201005,"فرعي","مصاريف بحص 3/4","أرباح وخسائر"]
[null,null,null,null,null,null,331201002,"فرعي","مصاريف اسمنت مقاوم","أرباح وخسائر"]
[null,null,null,null,null,null,331201003,"فرعي","مصاريف بطحاء","أرباح وخسائر"]
[null,null,null,null,null,null,331201007,"فرعي","مصاريف كيميكل نوع 1","أرباح وخسائر"]
[null,null,null,null,null,null,331201008,"فرعي","مصاريف كيميكل نوع 2","أرباح وخسائر"]
[null,null,null,null,null,null,331201009,"فرعي","مصاريف كيميكل نوع 3","أرباح وخسائر"]
[null,null,null,null,null,null,331201001,"فرعي","مصاريف اسمنت عادي","أرباح وخسائر"]
[null,null,null,null,null,null,331201004,"فرعي","مصاريف بحص 1/2","أرباح وخسائر"]
[null,null,null,null,3313,null,null,"رئيسي","مصاريف الاهلاكات","أرباح وخسائر"]
[null,null,null,null,null,331301,null,"رئيسي","مصاريف اهلاك الاصول الثابتة","أرباح وخسائر"]
[null,null,null,null,null,null,331301001,"فرعي","مصاريف اهلك المباني","أرباح وخسائر"]
[null,null,null,null,null,null,331301005,"فرعي","مصروف اهلاك الاثاث والتجهيز ات المكتبية","أرباح وخسائر"]
[null,null,null,null,null,null,331301002,"فرعي","مصروف اهلاك المعدات والالات","أرباح وخسائر"]
[null,null,null,null,null,null,331301003,"فرعي","مصروف اهلاك السيارات وشاحنات النقل","أرباح وخسائر"]
[null,null,null,null,null,null,331301009,"فرعي","فروق التكلفة","أرباح وخسائر"]
[null,null,null,null,null,null,331301008,"فرعي","فروق الكسور","أرباح وخسائر"]
[null,null,null,null,null,null,331301006,"فرعي","مصروف اهلاك الاجهزة الكهربائية والعدد والادوات","أرباح وخسائر"]
[null,null,null,null,null,null,331301010,"فرعي","ايرادات فروق العملة","أرباح وخسائر"]
[null,null,null,null,null,null,331301004,"فرعي","مصروف اهلاك الكمبيوترات والانظمة","أرباح وخسائر"]
[null,null,null,null,null,null,331301007,"فرعي","مصروف اهلاك تأسيس وشهرة محل","أرباح وخسائر"]
[null,4,null,null,null,null,null,"رئيسي","الايرادات","أرباح وخسائر"]
[null,null,41,null,null,null,null,"رئيسي","ايرادات النشاط","أرباح وخسائر"]
[null,null,null,411,null,null,null,"رئيسي","ايرادات الشامل الازرق","أرباح وخسائر"]
[null,null,null,null,4111,null,null,"رئيسي","ايرادات المبيعات","أرباح وخسائر"]
[null,null,null,null,null,411101,null,"رئيسي","ايرادات مبيعات شركة 3","أرباح وخسائر"]
[null,null,null,null,null,null,411101001,"فرعي","ايرادات مبيعات خرسانه","أرباح وخسائر"]
[null,null,null,412,null,null,null,"رئيسي","ايرادات مرتبطة بالنشاط","أرباح وخسائر"]
[null,null,null,null,4121,null,null,"رئيسي","ايرادات عرضية","أرباح وخسائر"]
[null,null,null,null,null,412101,null,"رئيسي","ايرادات مشتريات الكميات المجانية","أرباح وخسائر"]
[null,null,null,null,null,null,412101001,"فرعي","ايرادات الكميات المجانية مخزون","أرباح وخسائر"]
[null,null,null,null,null,null,412101002,"فرعي","خصم المكتسب","أرباح وخسائر"]
[null,null,null,413,null,null,null,"رئيسي","ايرادات التسويق","أرباح وخسائر"]
[null,null,null,null,4131,null,null,"رئيسي","ايرادات التسويق","أرباح وخسائر"]
[null,null,null,null,null,41311,null,"رئيسي","ايرادات الجمعيات الخيرية","أرباح وخسائر"]
[null,null,null,414,null,null,null,"رئيسي","ايرادات المقاولات","أرباح وخسائر"]
[null,null,null,null,4141,null,null,"رئيسي","ايرادات شركة خبراء المنازل للمقاولات","أرباح وخسائر"]
[null,null,null,null,null,41411,null,"رئيسي","ايرادات مشاريع خارجية","أرباح وخسائر"]
[null,null,null,null,null,null,4141101,"فرعي","ايرادات مصنعية مبنى عضم تجاري (1)","أرباح وخسائر"]
[null,null,null,null,null,41412,null,"رئيسي","ايرادات الجمعيات","أرباح وخسائر"]
[null,null,null,null,null,null,4141209,"فرعي","ايراد 1","أرباح وخسائر"]
[null,null,null,null,null,null,4141204,"فرعي","ايراد 2","أرباح وخسائر"]
[null,null,null,null,null,null,4141202,"فرعي","ايراد 3","أرباح وخسائر"]
[null,null,null,null,null,null,4141207,"فرعي","ايراد 4","أرباح وخسائر"]
[null,null,null,null,null,null,4141217,"فرعي","ايراد 5","أرباح وخسائر"]
[null,null,null,null,null,null,4141214,"فرعي","ايراد 6","أرباح وخسائر"]
[null,null,null,null,null,null,4141213,"فرعي","ايراد 7","أرباح وخسائر"]
[null,null,null,null,null,null,4141215,"فرعي","ايراد 8","أرباح وخسائر"]
[null,null,null,null,null,null,4141212,"فرعي","ايراد 9","أرباح وخسائر"]
[null,null,null,null,null,null,4141208,"فرعي","ايراد 10","أرباح وخسائر"]
[null,null,null,null,null,null,4141205,"فرعي","ايراد 11","أرباح وخسائر"]
[null,null,null,null,null,null,4141218,"فرعي","ايراد 12","أرباح وخسائر"]
[null,null,null,null,null,null,4141210,"فرعي","ايراد 13","أرباح وخسائر"]
[null,null,null,null,null,null,4141206,"فرعي","ايراد 14","أرباح وخسائر"]
[null,null,null,null,null,null,4141201,"فرعي","ايراد 15","أرباح وخسائر"]
[null,null,null,null,null,null,4141216,"فرعي","ايراد 16","أرباح وخسائر"]
[null,null,null,null,null,null,4141211,"فرعي","ايراد 17","أرباح وخسائر"]
[null,null,null,null,null,null,4141203,"فرعي","ايراد 18","أرباح وخسائر"]
[null,null,null,415,null,null,null,"رئيسي","ايرادات شركة 2","أرباح وخسائر"]
[null,null,null,null,4151,null,null,"رئيسي","ايرادات مبيعات شركة 2","أرباح وخسائر"]
[null,null,null,null,null,41511,null,"رئيسي","ايرادات مبيعات","أرباح وخسائر"]
[null,null,42,null,null,null,null,"رئيسي","ايرادات النشاط الاخرى","أرباح وخسائر"]
[null,null,null,421,null,null,null,"رئيسي","ايرادات اخرى ومتنوعة","أرباح وخسائر"]
[null,null,null,null,4211,null,null,"رئيسي","ايردات الاستثمارات","أرباح وخسائر"]
[null,null,null,null,null,421101,null,"رئيسي","ايرادات استثمارات مالية في شركات شقيقة","أرباح وخسائر"]
[null,null,null,null,null,null,421101001,"فرعي","ايرادات استثمارات مالية في شركات شقيقة ..","أرباح وخسائر"]
[null,null,null,null,4212,null,null,"رئيسي","ايرادات متنوعة اخرى","أرباح وخسائر"]
[null,null,null,null,null,421202,null,"رئيسي","الايرادات المتنوعة","أرباح وخسائر"]
[null,null,null,null,null,null,421202003,"فرعي","ايرادات بيع مخلفات","أرباح وخسائر"]
[null,null,null,null,null,null,421202004,"فرعي","ايرادات بيع أصول مستخدمه","أرباح وخسائر"]
[null,null,null,null,null,null,421202001,"فرعي","ايرادات احرى","أرباح وخسائر"]
[null,null,null,null,null,null,421202002,"فرعي","ايرادات عمولات","أرباح وخسائر"]

{"sheet":"الميزان","index":1,"n_rows":337,"n_cols":9,"rows_kept":337,"cut":false,"hidden":false,"merged":[[1,3,1,4],[1,5,1,6],[1,7,1,8],[1,0,1,2]]}
[]
["ميزان المراجعة",null,null,"الرصيد الإفتتاحي",null,"الحركه خلال الفترة",null,"الرصيد الحالي"]
["رقم الحساب","اسم الحساب","طبيعة الحساب","مدين","دائن","مدين2","دائن2","مدين3","دائن3"]
[{"$f":"IFERROR(INDEX(Table1[6],MATCH(0,IF(ISBLANK(Table1[6]),1,COUNTIF($A$3:A3,Table1[6])),0)),\"\")","v":111101004},{"$f":"IFERROR(IF(Table2[[#This Row],[رقم الحساب]]<>\"\",VLOOKUP(Table2[[#This Row],[رقم الحساب]],Table1[[6]:[النوع]],3,0),\"\"),\"\")","v":"صناديق خبراء المنازل للمقاولات"},{"$f":"IFERROR(IF(Table2[[#This Row],[رقم الحساب]]<>\"\",VLOOKUP(Table2[[#This Row],[رقم الحساب]],Table1[[6]:[النوع]],4,0),\"\"),\"\")","v":"ميزانية عمومية"}]
[{"$f":"IFERROR(INDEX(Table1[6],MATCH(0,IF(ISBLANK(Table1[6]),1,COUNTIF($A$3:A4,Table1[6])),0)),\"\")","v":111201003},{"$f":"IFERROR(IF(Table2[[#This Row],[رقم الحساب]]<>\"\",VLOOKUP(Table2[[#This Row],[رقم الحساب]],Table1[[6]:[النوع]],3,0),\"\"),\"\")","v":"بنوك خبراء المنازل"},{"$f":"IFERROR(IF(Table2[[#This Row],[رقم الحساب]]<>\"\",VLOOKUP(Table2[[#This Row],[رقم الحساب]],Table1[[6]:[النوع]],4,0),\"\"),\"\")","v":"ميزانية عمومية"}]
[{"$f":"IFERROR(INDEX(Table1[6],MATCH(0,IF(ISBLANK(Table1[6]),1,COUNTIF($A$3:A5,Table1[6])),0)),\"\")","v":111201002},{"$f":"IFERROR(IF(Table2[[#This Row],[رقم الحساب]]<>\"\",VLOOKUP(Table2[[#This Row],[رقم الحساب]],Table1[[6]:[النوع]],3,0),\"\"),\"\")","v":"بنوك شركة 3"},{"$f":"IFERROR(IF(Table2[[#This Row],[رقم الحساب]]<>\"\",VLOOKUP(Table2[[#This Row],[رقم الحساب]],Table1[[6]:[النوع]],4,0),\"\"),\"\")","v":"ميزانية عمومية"}]
[{"$f":"IFERROR(INDEX(Table1[6],MATCH(0,IF(ISBLANK(Table1[6]),1,COUNTIF($A$3:A6,Table1[6])),0)),\"\")","v":111201001},{"$f":"IFERROR(IF(Table2[[#This Row],[رقم الحساب]]<>\"\",VLOOKUP(Table2[[#This Row],[رقم الحساب]],Table1[[6]:[النوع]],3,0),\"\"),\"\")","v":"بنك الراجحي شركة 1-جاري"},{"$f":"IFERROR(IF(Table2[[#This Row],[رقم الحساب]]<>\"\",VLOOKUP(Table2[[#This Row],[رقم الحساب]],Table1[[6]:[النوع]],4,0),\"\"),\"\")","v":"ميزانية عمومية"}]
[{"$f":"IFERROR(INDEX(Table1[6],MATCH(0,IF(ISBLANK(Table1[6]),1,COUNTIF($A$3:A7,Table1[6])),0)),\"\")","v":112101002},{"$f":"IFERROR(IF(Table2[[#This Row],[رقم الحساب]]<>\"\",VLOOKUP(Table2[[#This Row],[رقم الحساب]],Table1[[6]:[النوع]],3,0),\"\"),\"\")","v":"عملاء شركة التسويق"},{"$f":"IFERROR(IF(Table2[[#This Row],[رقم الحساب]]<>\"\",VLOOKUP(Table2[[#This Row],[رقم الحساب]],Table1[[6]:[النوع]],4,0),\"\"),\"\")","v":"ميزانية عمومية"}]
[{"$f":"IFERROR(INDEX(Table1[6],MATCH(0,IF(ISBLANK(Table1[6]),1,COUNTIF($A$3:A8,Table1[6])),0)),\"\")","v":1121022},{"$f":"IFERROR(IF(Table2[[#This Row],[رقم الحساب]]<>\"\",VLOOKUP(Table2[[#This Row],[رقم الحساب]],Table1[[6]:[النوع]],3,0),\"\"),\"\")","v":"العميل جمعية البر بالريث"},{"$f":"IFERROR(IF(Table2[[#This Row],[رقم الحساب]]<>\"\",VLOOKUP(Table2[[#This Row],[رقم الحساب]],Table1[[6]:[النوع]],4,0),\"\"),\"\")","v":"ميزانية عمومية"}]
[{"$f":"IFERROR(INDEX(Table1[6],MATCH(0,IF(ISBLANK(Table1[6]),1,COUNTIF($A$3:A9,Table1[6])),0)),\"\")","v":113101010},{"$f":"IFERROR(IF(Table2[[#This Row],[رقم الحساب]]<>\"\",VLOOKUP(Table2[[#This Row],[رقم الحساب]],Table1[[6]:[النوع]],3,0),\"\"),\"\")","v":"سلف 1"},{"$f":"IFERROR(IF(Table2[[#This Row],[رقم الحساب]]<>\"\",VLOOKUP(Table2[[#This Row],[رقم الحساب]],Table1[[6]:[النوع]],4,0),\"\"),\"\")","v":"ميزانية عمومية"}]
[{"$f":"IFERROR(INDEX(Table1[6],MATCH(0,IF(ISBLANK(Table1[6]),1,COUNTIF($A$3:A10,Table1[6])),0)),\"\")","v":113101037},{"$f":"IFERROR(IF(Table2[[#This Row],[رقم الحساب]]<>\"\",VLOOKUP(Table2[[#This Row],[رقم الحساب]],Table1[[6]:[النوع]],3,0),\"\"),\"\")","v":"سلف 2"},{"$f":"IFERROR(IF(Table2[[#This Row],[رقم الحساب]]<>\"\",VLOOKUP(Table2[[#This Row],[رقم الحساب]],Table1[[6]:[النوع]],4,0),\"\"),\"\")","v":"ميزانية عمومية"}]
[{"$f":"IFERROR(INDEX(Table1[6],MATCH(0,IF(ISBLANK(Table1[6]),1,COUNTIF($A$3:A11,Table1[6])),0)),\"\")","v":113101045},{"$f":"IFERROR(IF(Table2[[#This Row],[رقم الحساب]]<>\"\",VLOOKUP(Table2[[#This Row],[رقم الحساب]],Table1[[6]:[النوع]],3,0),\"\"),\"\")","v":"سلف 3"},{"$f":"IFERROR(IF(Table2[[#This Row],[رقم الحساب]]<>\"\",VLOOKUP(Table2[[#This Row],[رقم الحساب]],Table1[[6]:[النوع]],4,0),\"\"),\"\")","v":"ميزانية عمومية"}]
[{"$f":"IFERROR(INDEX(Table1[6],MATCH(0,IF(ISBLANK(Table1[6]),1,COUNTIF($A$3:A12,Table1[6])),0)),\"\")","v":113101011},{"$f":"IFERROR(IF(Table2[[#This Row],[رقم الحساب]]<>\"\",VLOOKUP(Table2[[#This Row],[رقم الحساب]],Table1[[6]:[النوع]],3,0),\"\"),\"\")","v":"سلف 4"},{"$f":"IFERROR(IF(Table2[[#This Row],[رقم الحساب]]<>\"\",VLOOKUP(Table2[[#This Row],[رقم الحساب]],Table1[[6]:[النوع]],4,0),\"\"),\"\")","v":"ميزانية عمومية"}]
[{"$f":"IFERROR(INDEX(Table1[6],MATCH(0,IF(ISBLANK(Table1[6]),1,COUNTIF($A$3:A13,Table1[6])),0)),\"\")","v":113101017},{"$f":"IFERROR(IF(Table2[[#This Row],[رقم الحساب]]<>\"\",VLOOKUP(Table2[[#This Row],[رقم الحساب]],Table1[[6]:[النوع]],3,0),\"\"),\"\")","v":"سلف 5"},{"$f":"IFERROR(IF(Table2[[#This Row],[رقم الحساب]]<>\"\",VLOOKUP(Table2[[#This Row],[رقم الحساب]],Table1[[6]:[النوع]],4,0),\"\"),\"\")","v":"ميزانية عمومية"}]
[{"$f":"IFERROR(INDEX(Table1[6],MATCH(0,IF(ISBLANK(Table1[6]),1,COUNTIF($A$3:A14,Table1[6])),0)),\"\")","v":113101043},{"$f":"IFERROR(IF(Table2[[#This Row],[رقم الحساب]]<>\"\",VLOOKUP(Table2[[#This Row],[رقم الحساب]],Table1[[6]:[النوع]],3,0),\"\"),\"\")","v":"سلف 6"},{"$f":"IFERROR(IF(Table2[[#This Row],[رقم الحساب]]<>\"\",VLOOKUP(Table2[[#This Row],[رقم الحساب]],Table1[[6]:[النوع]],4,0),\"\"),\"\")","v":"ميزانية عمومية"}]
[{"$f":"IFERROR(INDEX(Table1[6],MATCH(0,IF(ISBLANK(Table1[6]),1,COUNTIF($A$3:A15,Table1[6])),0)),\"\")","v":113101044},{"$f":"IFERROR(IF(Table2[[#This Row],[رقم الحساب]]<>\"\",VLOOKUP(Table2[[#This Row],[رقم الحساب]],Table1[[6]:[النوع]],3,0),\"\"),\"\")","v":"سلف 7"},{"$f":"IFERROR(IF(Table2[[#This Row],[رقم الحساب]]<>\"\",VLOOKUP(Table2[[#This Row],[رقم الحساب]],Table1[[6]:[النوع]],4,0),\"\"),\"\")","v":"ميزانية عمومية"}]
[{"$f":"IFERROR(INDEX(Table1[6],MATCH(0,IF(ISBLANK(Table1[6]),1,COUNTIF($A$3:A16,Table1[6])),0)),\"\")","v":113101040},{"$f":"IFERROR(IF(Table2[[#This Row],[رقم الحساب]]<>\"\",VLOOKUP(Table2[[#This Row],[رقم الحساب]],Table1[[6]:[النوع]],3,0),\"\"),\"\")","v":"سلف 8"},{"$f":"IFERROR(IF(Table2[[#This Row],[رقم الحساب]]<>\"\",VLOOKUP(Table2[[#This Row],[رقم الحساب]],Table1[[6]:[النوع]],4,0),\"\"),\"\")","v":"ميزانية عمومية"}]
[{"$f":"IFERROR(INDEX(Table1[6],MATCH(0,IF(ISBLANK(Table1[6]),1,COUNTIF($A$3:A17,Table1[6])),0)),\"\")","v":113101041},{"$f":"IFERROR(IF(Table2[[#This Row],[رقم الحساب]]<>\"\",VLOOKUP(Table2[[#This Row],[رقم الحساب]],Table1[[6]:[النوع]],3,0),\"\"),\"\")","v":"سلف 9"},{"$f":"IFERROR(IF(Table2[[#This Row],[رقم الحساب]]<>\"\",VLOOKUP(Table2[[#This Row],[رقم الحساب]],Table1[[6]:[النوع]],4,0),\"\"),\"\")","v":"ميزانية عمومية"}]
[{"$f":"IFERROR(INDEX(Table1[6],MATCH(0,IF(ISBLANK(Table1[6]),1,COUNTIF($A$3:A18,Table1[6])),0)),\"\")","v":113101039},{"$f":"IFERROR(IF(Table2[[#This Row],[رقم الحساب]]<>\"\",VLOOKUP(Table2[[#This Row],[رقم الحساب]],Table1[[6]:[النوع]],3,0),\"\"),\"\")","v":"سلف 10"},{"$f":"IFERROR(IF(Table2[[#This Row],[رقم الحساب]]<>\"\",VLOOKUP(Table2[[#This Row],[رقم الحساب]],Table1[[6]:[النوع]],4,0),\"\"),\"\")","v":"ميزانية عمومية"}]
[{"$f":"IFERROR(INDEX(Table1[6],MATCH(0,IF(ISBLANK(Table1[6]),1,COUNTIF($A$3:A19,Table1[6])),0)),\"\")","v":113101046},{"$f":"IFERROR(IF(Table2[[#This Row],[رقم الحساب]]<>\"\",VLOOKUP(Table2[[#This Row],[رقم الحساب]],Table1[[6]:[النوع]],3,0),\"\"),\"\")","v":"سلف 11"},{"$f":"IFERROR(IF(Table2[[#This Row],[رقم الحساب]]<>\"\",VLOOKUP(Table2[[#This Row],[رقم الحساب]],Table1[[6]:[النوع]],4,0),\"\"),\"\")","v":"ميزانية عمومية"}]
[{"$f":"IFERROR(INDEX(Table1[6],MATCH(0,IF(ISBLANK(Table1[6]),1,COUNTIF($A$3:A20,Table1[6])),0)),\"\")","v":113101023},{"$f":"IFERROR(IF(Table2[[#This Row],[رقم الحساب]]<>\"\",VLOOKUP(Table2[[#This Row],[رقم الحساب]],Table1[[6]:[النوع]],3,0),\"\"),\"\")","v":"سلف 12"},{"$f":"IFERROR(IF(Table2[[#This Row],[رقم الحساب]]<>\"\",VLOOKUP(Table2[[#This Row],[رقم الحساب]],Table1[[6]:[النوع]],4,0),\"\"),\"\")","v":"ميزانية عمومية"}]
[{"$f":"IFERROR(INDEX(Table1[6],MATCH(0,IF(ISBLANK(Table1[6]),1,COUNTIF($A$3:A21,Table1[6])),0)),\"\")","v":113101050},{"$f":"IFERROR(IF(Table2[[#This Row],[رقم الحساب]]<>\"\",VLOOKUP(Table2[[#This Row],[رقم الحساب]],Table1[[6]:[النوع]],3,0),\"\"),\"\")","v":"سلف 13"},{"$f":"IFERROR(IF(Table2[[#This Row],[رقم الحساب]]<>\"\",VLOOKUP(Table2[[#This Row],[رقم الحساب]],Table1[[6]:[النوع]],4,0),\"\"),\"\")","v":"ميزانية عمومية"}]
[{"$f":"IFERROR(INDEX(Table1[6],MATCH(0,IF(ISBLANK(Table1[6]),1,COUNTIF($A$3:A22,Table1[6])),0)),\"\")","v":113101009},{"$f":"IFERROR(IF(Table2[[#This Row],[رقم الحساب]]<>\"\",VLOOKUP(Table2[[#This Row],[رقم الحساب]],Table1[[6]:[النوع]],3,0),\"\"),\"\")","v":"سلف 14"},{"$f":"IFERROR(IF(Table2[[#This Row],[رقم الحساب]]<>\"\",VLOOKUP(Table2[[#This Row],[رقم الحساب]],Table1[[6]:[النوع]],4,0),\"\"),\"\")","v":"ميزانية عمومية"}]
[{"$f":"IFERROR(INDEX(Table1[6],MATCH(0,IF(ISBLANK(Table1[6]),1,COUNTIF($A$3:A23,Table1[6])),0)),\"\")","v":113101014},{"$f":"IFERROR(IF(Table2[[#This Row],[رقم الحساب]]<>\"\",VLOOKUP(Table2[[#This Row],[رقم الحساب]],Table1[[6]:[النوع]],3,0),\"\"),\"\")","v":"سلف 15"},{"$f":"IFERROR(IF(Table2[[#This Row],[رقم الحساب]]<>\"\",VLOOKUP(Table2[[#This Row],[رقم الحساب]],Table1[[6]:[النوع]],4,0),\"\"),\"\")","v":"ميزانية عمومية"}]
[{"$f":"IFERROR(INDEX(Table1[6],MATCH(0,IF(ISBLANK(Table1[6]),1,COUNTIF($A$3:A24,Table1[6])),0)),\"\")","v":113101038},{"$f":"IFERROR(IF(Table2[[#This Row],[رقم الحساب]]<>\"\",VLOOKUP(Table2[[#This Row],[رقم الحساب]],Table1[[6]:[النوع]],3,0),\"\"),\"\")","v":"سلف 16"},{"$f":"IFERROR(IF(Table2[[#This Row],[رقم الحساب]]<>\"\",VLOOKUP(Table2[[#This Row],[رقم الحساب]],Table1[[6]:[النوع]],4,0),\"\"),\"\")","v":"ميزانية عمومية"}]
[{"$f":"IFERROR(INDEX(Table1[6],MATCH(0,IF(ISBLANK(Table1[6]),1,COUNTIF($A$3:A25,Table1[6])),0)),\"\")","v":113101018},{"$f":"IFERROR(IF(Table2[[#This Row],[رقم الحساب]]<>\"\",VLOOKUP(Table2[[#This Row],[رقم الحساب]],Table1[[6]:[النوع]],3,0),\"\"),\"\")","v":"سلف 17"},{"$f":"IFERROR(IF(Table2[[#This Row],[رقم الحساب]]<>\"\",VLOOKUP(Table2[[#This Row],[رقم الحساب]],Table1[[6]:[النوع]],4,0),\"\"),\"\")","v":"ميزانية عمومية"}]
[{"$f":"IFERROR(INDEX(Table1[6],MATCH(0,IF(ISBLANK(Table1[6]),1,COUNTIF($A$3:A26,Table1[6])),0)),\"\")","v":113101020},{"$f":"IFERROR(IF(Table2[[#This Row],[رقم الحساب]]<>\"\",VLOOKUP(Table2[[#This Row],[رقم الحساب]],Table1[[6]:[النوع]],3,0),\"\"),\"\")","v":"سلف 18"},{"$f":"IFERROR(IF(Table2[[#This Row],[رقم الحساب]]<>\"\",VLOOKUP(Table2[[#This Row],[رقم الحساب]],Table1[[6]:[النوع]],4,0),\"\"),\"\")","v":"ميزانية عمومية"}]
[{"$f":"IFERROR(INDEX(Table1[6],MATCH(0,IF(ISBLANK(Table1[6]),1,COUNTIF($A$3:A27,Table1[6])),0)),\"\")","v":113101021},{"$f":"IFERROR(IF(Table2[[#This Row],[رقم الحساب]]<>\"\",VLOOKUP(Table2[[#This Row],[رقم الحساب]],Table1[[6]:[النوع]],3,0),\"\"),\"\")","v":"سلف 19"},{"$f":"IFERROR(IF(Table2[[#This Row],[رقم الحساب]]<>\"\",VLOOKUP(Table2[[#This Row],[رقم الحساب]],Table1[[6]:[النوع]],4,0),\"\"),\"\")","v":"ميزانية عمومية"}]
[{"$f":"IFERROR(INDEX(Table1[6],MATCH(0,IF(ISBLANK(Table1[6]),1,COUNTIF($A$3:A28,Table1[6])),0)),\"\")","v":113101027},{"$f":"IFERROR(IF(Table2[[#This Row],[رقم الحساب]]<>\"\",VLOOKUP(Table2[[#This Row],[رقم الحساب]],Table1[[6]:[النوع]],3,0),\"\"),\"\")","v":"سلف 20"},{"$f":"IFERROR(IF(Table2[[#This Row],[رقم الحساب]]<>\"\",VLOOKUP(Table2[[#This Row],[رقم الحساب]],Table1[[6]:[النوع]],4,0),\"\"),\"\")","v":"ميزانية عمومية"}]
[{"$f":"IFERROR(INDEX(Table1[6],MATCH(0,IF(ISBLANK(Table1[6]),1,COUNTIF($A$3:A29,Table1[6])),0)),\"\")","v":113101008},{"$f":"IFERROR(IF(Table2[[#This Row],[رقم الحساب]]<>\"\",VLOOKUP(Table2[[#This Row],[رقم الحساب]],Table1[[6]:[النوع]],3,0),\"\"),\"\")","v":"سلف 21"},{"$f":"IFERROR(IF(Table2[[#This Row],[رقم الحساب]]<>\"\",VLOOKUP(Table2[[#This Row],[رقم الحساب]],Table1[[6]:[النوع]],4,0),\"\"),\"\")","v":"ميزانية عمومية"}]
[{"$f":"IFERROR(INDEX(Table1[6],MATCH(0,IF(ISBLANK(Table1[6]),1,COUNTIF($A$3:A30,Table1[6])),0)),\"\")","v":113101003},{"$f":"IFERROR(IF(Table2[[#This Row],[رقم الحساب]]<>\"\",VLOOKUP(Table2[[#This Row],[رقم الحساب]],Table1[[6]:[النوع]],3,0),\"\"),\"\")","v":"سلف 22"},{"$f":"IFERROR(IF(Table2[[#This Row],[رقم الحساب]]<>\"\",VLOOKUP(Table2[[#This Row],[رقم الحساب]],Table1[[6]:[النوع]],4,0),\"\"),\"\")","v":"ميزانية عمومية"}]
[{"$f":"IFERROR(INDEX(Table1[6],MATCH(0,IF(ISBLANK(Table1[6]),1,COUNTIF($A$3:A31,Table1[6])),0)),\"\")","v":113101013},{"$f":"IFERROR(IF(Table2[[#This Row],[رقم الحساب]]<>\"\",VLOOKUP(Table2[[#This Row],[رقم الحساب]],Table1[[6]:[النوع]],3,0),\"\"),\"\")","v":"سلف 23"},{"$f":"IFERROR(IF(Table2[[#This Row],[رقم الحساب]]<>\"\",VLOOKUP(Table2[[#This Row],[رقم الحساب]],Table1[[6]:[النوع]],4,0),\"\"),\"\")","v":"ميزانية عمومية"}]
[{"$f":"IFERROR(INDEX(Table1[6],MATCH(0,IF(ISBLANK(Table1[6]),1,COUNTIF($A$3:A32,Table1[6])),0)),\"\")","v":113101036},{"$f":"IFERROR(IF(Table2[[#This Row],[رقم الحساب]]<>\"\",VLOOKUP(Table2[[#This Row],[رقم الحساب]],Table1[[6]:[النوع]],3,0),\"\"),\"\")","v":"سلف 24"},{"$f":"IFERROR(IF(Table2[[#This Row],[رقم الحساب]]<>\"\",VLOOKUP(Table2[[#This Row],[رقم الحساب]],Table1[[6]:[النوع]],4,0),\"\"),\"\")","v":"ميزانية عمومية"}]
[{"$f":"IFERROR(INDEX(Table1[6],MATCH(0,IF(ISBLANK(Table1[6]),1,COUNTIF($A$3:A33,Table1[6])),0)),\"\")","v":113101024},{"$f":"IFERROR(IF(Table2[[#This Row],[رقم الحساب]]<>\"\",VLOOKUP(Table2[[#This Row],[رقم الحساب]],Table1[[6]:[النوع]],3,0),\"\"),\"\")","v":"سلف 25"},{"$f":"IFERROR(IF(Table2[[#This Row],[رقم الحساب]]<>\"\",VLOOKUP(Table2[[#This Row],[رقم الحساب]],Table1[[6]:[النوع]],4,0),\"\"),\"\")","v":"ميزانية عمومية"}]
[{"$f":"IFERROR(INDEX(Table1[6],MATCH(0,IF(ISBLANK(Table1[6]),1,COUNTIF($A$3:A34,Table1[6])),0)),\"\")","v":113101048},{"$f":"IFERROR(IF(Table2[[#This Row],[رقم الحساب]]<>\"\",VLOOKUP(Table2[[#This Row],[رقم الحساب]],Table1[[6]:[النوع]],3,0),\"\"),\"\")","v":"سلف 26"},{"$f":"IFERROR(IF(Table2[[#This Row],[رقم الحساب]]<>\"\",VLOOKUP(Table2[[#This Row],[رقم الحساب]],Table1[[6]:[النوع]],4,0),\"\"),\"\")","v":"ميزانية عمومية"}]
[{"$f":"IFERROR(INDEX(Table1[6],MATCH(0,IF(ISBLANK(Table1[6]),1,COUNTIF($A$3:A35,Table1[6])),0)),\"\")","v":113101049},{"$f":"IFERROR(IF(Table2[[#This Row],[رقم الحساب]]<>\"\",VLOOKUP(Table2[[#This Row],[رقم الحساب]],Table1[[6]:[النوع]],3,0),\"\"),\"\")","v":"سلف 27"},{"$f":"IFERROR(IF(Table2[[#This Row],[رقم الحساب]]<>\"\",VLOOKUP(Table2[[#This Row],[رقم الحساب]],Table1[[6]:[النوع]],4,0),\"\"),\"\")","v":"ميزانية عمومية"}]
[{"$f":"IFERROR(INDEX(Table1[6],MATCH(0,IF(ISBLANK(Table1[6]),1,COUNTIF($A$3:A36,Table1[6])),0)),\"\")","v":113101030},{"$f":"IFERROR(IF(Table2[[#This Row],[رقم الحساب]]<>\"\",VLOOKUP(Table2[[#This Row],[رقم الحساب]],Table1[[6]:[النوع]],3,0),\"\"),\"\")","v":"سلف 28"},{"$f":"IFERROR(IF(Table2[[#This Row],[رقم الحساب]]<>\"\",VLOOKUP(Table2[[#This Row],[رقم الحساب]],Table1[[6]:[النوع]],4,0),\"\"),\"\")","v":"ميزانية عمومية"}]
[{"$f":"IFERROR(INDEX(Table1[6],MATCH(0,IF(ISBLANK(Table1[6]),1,COUNTIF($A$3:A37,Table1[6])),0)),\"\")","v":113101032},{"$f":"IFERROR(IF(Table2[[#This Row],[رقم الحساب]]<>\"\",VLOOKUP(Table2[[#This Row],[رقم الحساب]],Table1[[6]:[النوع]],3,0),\"\"),\"\")","v":"سلف 29"},{"$f":"IFERROR(IF(Table2[[#This Row],[رقم الحساب]]<>\"\",VLOOKUP(Table2[[#This Row],[رقم الحساب]],Table1[[6]:[النوع]],4,0),\"\"),\"\")","v":"ميزانية عمومية"}]
[{"$f":"IFERROR(INDEX(Table1[6],MATCH(0,IF(ISBLANK(Table1[6]),1,COUNTIF($A$3:A38,Table1[6])),0)),\"\")","v":113101033},{"$f":"IFERROR(IF(Table2[[#This Row],[رقم الحساب]]<>\"\",VLOOKUP(Table2[[#This Row],[رقم الحساب]],Table1[[6]:[النوع]],3,0),\"\"),\"\")","v":"سلف 30"},{"$f":"IFERROR(IF(Table2[[#This Row],[رقم الحساب]]<>\"\",VLOOKUP(Table2[[#This Row],[رقم الحساب]],Table1[[6]:[النوع]],4,0),\"\"),\"\")","v":"ميزانية عمومية"}]
[{"$f":"IFERROR(INDEX(Table1[6],MATCH(0,IF(ISBLANK(Table1[6]),1,COUNTIF($A$3:A39,Table1[6])),0)),\"\")","v":113101007},{"$f":"IFERROR(IF(Table2[[#This Row],[رقم الحساب]]<>\"\",VLOOKUP(Table2[[#This Row],[رقم الحساب]],Table1[[6]:[النوع]],3,0),\"\"),\"\")","v":"سلف 31"},{"$f":"IFERROR(IF(Table2[[#This Row],[رقم الحساب]]<>\"\",VLOOKUP(Table2[[#This Row],[رقم الحساب]],Table1[[6]:[النوع]],4,0),\"\"),\"\")","v":"ميزانية عمومية"}]
[{"$f":"IFERROR(INDEX(Table1[6],MATCH(0,IF(ISBLANK(Table1[6]),1,COUNTIF($A$3:A40,Table1[6])),0)),\"\")","v":113101047},{"$f":"IFERROR(IF(Table2[[#This Row],[رقم الحساب]]<>\"\",VLOOKUP(Table2[[#This Row],[رقم الحساب]],Table1[[6]:[النوع]],3,0),\"\"),\"\")","v":"سلف 32"},{"$f":"IFERROR(IF(Table2[[#This Row],[رقم الحساب]]<>\"\",VLOOKUP(Table2[[#This Row],[رقم الحساب]],Table1[[6]:[النوع]],4,0),\"\"),\"\")","v":"ميزانية عمومية"}]
[{"$f":"IFERROR(INDEX(Table1[6],MATCH(0,IF(ISBLANK(Table1[6]),1,COUNTIF($A$3:A41,Table1[6])),0)),\"\")","v":113101051},{"$f":"IFERROR(IF(Table2[[#This Row],[رقم الحساب]]<>\"\",VLOOKUP(Table2[[#This Row],[رقم الحساب]],Table1[[6]:[النوع]],3,0),\"\"),\"\")","v":"سلف 33"},{"$f":"IFERROR(IF(Table2[[#This Row],[رقم الحساب]]<>\"\",VLOOKUP(Table2[[#This Row],[رقم الحساب]],Table1[[6]:[النوع]],4,0),\"\"),\"\")","v":"ميزانية عمومية"}]
[{"$f":"IFERROR(INDEX(Table1[6],MATCH(0,IF(ISBLANK(Table1[6]),1,COUNTIF($A$3:A42,Table1[6])),0)),\"\")","v":113101016},{"$f":"IFERROR(IF(Table2[[#This Row],[رقم الحساب]]<>\"\",VLOOKUP(Table2[[#This Row],[رقم الحساب]],Table1[[6]:[النوع]],3,0),\"\"),\"\")","v":"سلف 34"},{"$f":"IFERROR(IF(Table2[[#This Row],[رقم الحساب]]<>\"\",VLOOKUP(Table2[[#This Row],[رقم الحساب]],Table1[[6]:[النوع]],4,0),\"\"),\"\")","v":"ميزانية عمومية"}]
[{"$f":"IFERROR(INDEX(Table1[6],MATCH(0,IF(ISBLANK(Table1[6]),1,COUNTIF($A$3:A43,Table1[6])),0)),\"\")","v":113101019},{"$f":"IFERROR(IF(Table2[[#This Row],[رقم الحساب]]<>\"\",VLOOKUP(Table2[[#This Row],[رقم الحساب]],Table1[[6]:[النوع]],3,0),\"\"),\"\")","v":"سلف 35"},{"$f":"IFERROR(IF(Table2[[#This Row],[رقم الحساب]]<>\"\",VLOOKUP(Table2[[#This Row],[رقم الحساب]],Table1[[6]:[النوع]],4,0),\"\"),\"\")","v":"ميزانية عمومية"}]
[{"$f":"IFERROR(INDEX(Table1[6],MATCH(0,IF(ISBLANK(Table1[6]),1,COUNTIF($A$3:A44,Table1[6])),0)),\"\")","v":113101028},{"$f":"IFERROR(IF(Table2[[#This Row],[رقم الحساب]]<>\"\",VLOOKUP(Table2[[#This Row],[رقم الحساب]],Table1[[6]:[النوع]],3,0),\"\"),\"\")","v":"سلف 36"},{"$f":"IFERROR(IF(Table2[[#This Row],[رقم الحساب]]<>\"\",VLOOKUP(Table2[[#This Row],[رقم الحساب]],Table1[[6]:[النوع]],4,0),\"\"),\"\")","v":"ميزانية عمومية"}]
[{"$f":"IFERROR(INDEX(Table1[6],MATCH(0,IF(ISBLANK(Table1[6]),1,COUNTIF($A$3:A45,Table1[6])),0)),\"\")","v":113101006},{"$f":"IFERROR(IF(Table2[[#This Row],[رقم الحساب]]<>\"\",VLOOKUP(Table2[[#This Row],[رقم الحساب]],Table1[[6]:[النوع]],3,0),\"\"),\"\")","v":"سلف 37"},{"$f":"IFERROR(IF(Table2[[#This Row],[رقم الحساب]]<>\"\",VLOOKUP(Table2[[#This Row],[رقم الحساب]],Table1[[6]:[النوع]],4,0),\"\"),\"\")","v":"ميزانية عمومية"}]
[{"$f":"IFERROR(INDEX(Table1[6],MATCH(0,IF(ISBLANK(Table1[6]),1,COUNTIF($A$3:A46,Table1[6])),0)),\"\")","v":113101015},{"$f":"IFERROR(IF(Table2[[#This Row],[رقم الحساب]]<>\"\",VLOOKUP(Table2[[#This Row],[رقم الحساب]],Table1[[6]:[النوع]],3,0),\"\"),\"\")","v":"سلف 38"},{"$f":"IFERROR(IF(Table2[[#This Row],[رقم الحساب]]<>\"\",VLOOKUP(Table2[[#This Row],[رقم الحساب]],Table1[[6]:[النوع]],4,0),\"\"),\"\")","v":"ميزانية عمومية"}]
[{"$f":"IFERROR(INDEX(Table1[6],MATCH(0,IF(ISBLANK(Table1[6]),1,COUNTIF($A$3:A47,Table1[6])),0)),\"\")","v":113101025},{"$f":"IFERROR(IF(Table2[[#This Row],[رقم الحساب]]<>\"\",VLOOKUP(Table2[[#This Row],[رقم الحساب]],Table1[[6]:[النوع]],3,0),\"\"),\"\")","v":"سلف 39"},{"$f":"IFERROR(IF(Table2[[#This Row],[رقم الحساب]]<>\"\",VLOOKUP(Table2[[#This Row],[رقم الحساب]],Table1[[6]:[النوع]],4,0),\"\"),\"\")","v":"ميزانية عمومية"}]
[{"$f":"IFERROR(INDEX(Table1[6],MATCH(0,IF(ISBLANK(Table1[6]),1,COUNTIF($A$3:A48,Table1[6])),0)),\"\")","v":113101004},{"$f":"IFERROR(IF(Table2[[#This Row],[رقم الحساب]]<>\"\",VLOOKUP(Table2[[#This Row],[رقم الحساب]],Table1[[6]:[النوع]],3,0),\"\"),\"\")","v":"سلف 40"},{"$f":"IFERROR(IF(Table2[[#This Row],[رقم الحساب]]<>\"\",VLOOKUP(Table2[[#This Row],[رقم الحساب]],Table1[[6]:[النوع]],4,0),\"\"),\"\")","v":"ميزانية عمومية"}]
[{"$f":"IFERROR(INDEX(Table1[6],MATCH(0,IF(ISBLANK(Table1[6]),1,COUNTIF($A$3:A49,Table1[6])),0)),\"\")","v":113101005},{"$f":"IFERROR(IF(Table2[[#This Row],[رقم الحساب]]<>\"\",VLOOKUP(Table2[[#This Row],[رقم الحساب]],Table1[[6]:[النوع]],3,0),\"\"),\"\")","v":"سلف 41"},{"$f":"IFERROR(IF(Table2[[#This Row],[رقم الحساب]]<>\"\",VLOOKUP(Table2[[#This Row],[رقم الحساب]],Table1[[6]:[النوع]],4,0),\"\"),\"\")","v":"ميزانية عمومية"}]
[{"$f":"IFERROR(INDEX(Table1[6],MATCH(0,IF(ISBLANK(Table1[6]),1,COUNTIF($A$3:A50,Table1[6])),0)),\"\")","v":113101042},{"$f":"IFERROR(IF(Table2[[#This Row],[رقم الحساب]]<>\"\",VLOOKUP(Table2[[#This Row],[رقم الحساب]],Table1[[6]:[النوع]],3,0),\"\"),\"\")","v":"سلف 42"},{"$f":"IFERROR(IF(Table2[[#This Row],[رقم الحساب]]<>\"\",VLOOKUP(Table2[[#This Row],[رقم الحساب]],Table1[[6]:[النوع]],4,0),\"\"),\"\")","v":"ميزانية عمومية"}]
[{"$f":"IFERROR(INDEX(Table1[6],MATCH(0,IF(ISBLANK(Table1[6]),1,COUNTIF($A$3:A51,Table1[6])),0)),\"\")","v":113101035},{"$f":"IFERROR(IF(Table2[[#This Row],[رقم الحساب]]<>\"\",VLOOKUP(Table2[[#This Row],[رقم الحساب]],Table1[[6]:[النوع]],3,0),\"\"),\"\")","v":"سلف 43"},{"$f":"IFERROR(IF(Table2[[#This Row],[رقم الحساب]]<>\"\",VLOOKUP(Table2[[#This Row],[رقم الحساب]],Table1[[6]:[النوع]],4,0),\"\"),\"\")","v":"ميزانية عمومية"}]
[{"$f":"IFERROR(INDEX(Table1[6],MATCH(0,IF(ISBLANK(Table1[6]),1,COUNTIF($A$3:A52,Table1[6])),0)),\"\")","v":113101026},{"$f":"IFERROR(IF(Table2[[#This Row],[رقم الحساب]]<>\"\",VLOOKUP(Table2[[#This Row],[رقم الحساب]],Table1[[6]:[النوع]],3,0),\"\"),\"\")","v":"سلف 44"},{"$f":"IFERROR(IF(Table2[[#This Row],[رقم الحساب]]<>\"\",VLOOKUP(Table2[[#This Row],[رقم الحساب]],Table1[[6]:[النوع]],4,0),\"\"),\"\")","v":"ميزانية عمومية"}]
[{"$f":"IFERROR(INDEX(Table1[6],MATCH(0,IF(ISBLANK(Table1[6]),1,COUNTIF($A$3:A53,Table1[6])),0)),\"\")","v":113101029},{"$f":"IFERROR(IF(Table2[[#This Row],[رقم الحساب]]<>\"\",VLOOKUP(Table2[[#This Row],[رقم الحساب]],Table1[[6]:[النوع]],3,0),\"\"),\"\")","v":"سلف 45"},{"$f":"IFERROR(IF(Table2[[#This Row],[رقم الحساب]]<>\"\",VLOOKUP(Table2[[#This Row],[رقم الحساب]],Table1[[6]:[النوع]],4,0),\"\"),\"\")","v":"ميزانية عمومية"}]
[{"$f":"IFERROR(INDEX(Table1[6],MATCH(0,IF(ISBLANK(Table1[6]),1,COUNTIF($A$3:A54,Table1[6])),0)),\"\")","v":113101031},{"$f":"IFERROR(IF(Table2[[#This Row],[رقم الحساب]]<>\"\",VLOOKUP(Table2[[#This Row],[رقم الحساب]],Table1[[6]:[النوع]],3,0),\"\"),\"\")","v":"سلف 46"},{"$f":"IFERROR(IF(Table2[[#This Row],[رقم الحساب]]<>\"\",VLOOKUP(Table2[[#This Row],[رقم الحساب]],Table1[[6]:[النوع]],4,0),\"\"),\"\")","v":"ميزانية عمومية"}]
[{"$f":"IFERROR(INDEX(Table1[6],MATCH(0,IF(ISBLANK(Table1[6]),1,COUNTIF($A$3:A55,Table1[6])),0)),\"\")","v":113101052},{"$f":"IFERROR(IF(Table2[[#This Row],[رقم الحساب]]<>\"\",VLOOKUP(Table2[[#This Row],[رقم الحساب]],Table1[[6]:[النوع]],3,0),\"\"),\"\")","v":"سلف 47"},{"$f":"IFERROR(IF(Table2[[#This Row],[رقم الحساب]]<>\"\",VLOOKUP(Table2[[#This Row],[رقم الحساب]],Table1[[6]:[النوع]],4,0),\"\"),\"\")","v":"ميزانية عمومية"}]
[{"$f":"IFERROR(INDEX(Table1[6],MATCH(0,IF(ISBLANK(Table1[6]),1,COUNTIF($A$3:A56,Table1[6])),0)),\"\")","v":113101034},{"$f":"IFERROR(IF(Table2[[#This Row],[رقم الحساب]]<>\"\",VLOOKUP(Table2[[#This Row],[رقم الحساب]],Table1[[6]:[النوع]],3,0),\"\"),\"\")","v":"سلف 48"},{"$f":"IFERROR(IF(Table2[[#This Row],[رقم الحساب]]<>\"\",VLOOKUP(Table2[[#This Row],[رقم الحساب]],Table1[[6]:[النوع]],4,0),\"\"),\"\")","v":"ميزانية عمومية"}]
[{"$f":"IFERROR(INDEX(Table1[6],MATCH(0,IF(ISBLANK(Table1[6]),1,COUNTIF($A$3:A57,Table1[6])),0)),\"\")","v":113101012},{"$f":"IFERROR(IF(Table2[[#This Row],[رقم الحساب]]<>\"\",VLOOKUP(Table2[[#This Row],[رقم الحساب]],Table1[[6]:[النوع]],3,0),\"\"),\"\")","v":"سلف 49"},{"$f":"IFERROR(IF(Table2[[#This Row],[رقم الحساب]]<>\"\",VLOOKUP(Table2[[#This Row],[رقم الحساب]],Table1[[6]:[النوع]],4,0),\"\"),\"\")","v":"ميزانية عمومية"}]
[{"$f":"IFERROR(INDEX(Table1[6],MATCH(0,IF(ISBLANK(Table1[6]),1,COUNTIF($A$3:A58,Table1[6])),0)),\"\")","v":113101022},{"$f":"IFERROR(IF(Table2[[#This Row],[رقم الحساب]]<>\"\",VLOOKUP(Table2[[#This Row],[رقم الحساب]],Table1[[6]:[النوع]],3,0),\"\"),\"\")","v":"سلف 50"},{"$f":"IFERROR(IF(Table2[[#This Row],[رقم الحساب]]<>\"\",VLOOKUP(Table2[[#This Row],[رقم الحساب]],Table1[[6]:[النوع]],4,0),\"\"),\"\")","v":"ميزانية عمومية"}]
[{"$f":"IFERROR(INDEX(Table1[6],MATCH(0,IF(ISBLANK(Table1[6]),1,COUNTIF($A$3:A59,Table1[6])),0)),\"\")","v":11320101},{"$f":"IFERROR(IF(Table2[[#This Row],[رقم الحساب]]<>\"\",VLOOKUP(Table2[[#This Row],[رقم الحساب]],Table1[[6]:[النوع]],3,0),\"\"),\"\")","v":"عهدة 1"},{"$f":"IFERROR(IF(Table2[[#This Row],[رقم الحساب]]<>\"\",VLOOKUP(Table2[[#This Row],[رقم الحساب]],Table1[[6]:[النوع]],4,0),\"\"),\"\")","v":"ميزانية عمومية"}]
[{"$f":"IFERROR(INDEX(Table1[6],MATCH(0,IF(ISBLANK(Table1[6]),1,COUNTIF($A$3:A60,Table1[6])),0)),\"\")","v":11320121},{"$f":"IFERROR(IF(Table2[[#This Row],[رقم الحساب]]<>\"\",VLOOKUP(Table2[[#This Row],[رقم الحساب]],Table1[[6]:[النوع]],3,0),\"\"),\"\")","v":"عهدة 2"},{"$f":"IFERROR(IF(Table2[[#This Row],[رقم الحساب]]<>\"\",VLOOKUP(Table2[[#This Row],[رقم الحساب]],Table1[[6]:[النوع]],4,0),\"\"),\"\")","v":"ميزانية عمومية"}]
[{"$f":"IFERROR(INDEX(Table1[6],MATCH(0,IF(ISBLANK(Table1[6]),1,COUNTIF($A$3:A61,Table1[6])),0)),\"\")","v":11320109},{"$f":"IFERROR(IF(Table2[[#This Row],[رقم الحساب]]<>\"\",VLOOKUP(Table2[[#This Row],[رقم الحساب]],Table1[[6]:[النوع]],3,0),\"\"),\"\")","v":"عهدة 3"},{"$f":"IFERROR(IF(Table2[[#This Row],[رقم الحساب]]<>\"\",VLOOKUP(Table2[[#This Row],[رقم الحساب]],Table1[[6]:[النوع]],4,0),\"\"),\"\")","v":"ميزانية عمومية"}]
[{"$f":"IFERROR(INDEX(Table1[6],MATCH(0,IF(ISBLANK(Table1[6]),1,COUNTIF($A$3:A62,Table1[6])),0)),\"\")","v":11320108},{"$f":"IFERROR(IF(Table2[[#This Row],[رقم الحساب]]<>\"\",VLOOKUP(Table2[[#This Row],[رقم الحساب]],Table1[[6]:[النوع]],3,0),\"\"),\"\")","v":"عهدة 4"},{"$f":"IFERROR(IF(Table2[[#This Row],[رقم الحساب]]<>\"\",VLOOKUP(Table2[[#This Row],[رقم الحساب]],Table1[[6]:[النوع]],4,0),\"\"),\"\")","v":"ميزانية عمومية"}]
[{"$f":"IFERROR(INDEX(Table1[6],MATCH(0,IF(ISBLANK(Table1[6]),1,COUNTIF($A$3:A63,Table1[6])),0)),\"\")","v":11320107},{"$f":"IFERROR(IF(Table2[[#This Row],[رقم الحساب]]<>\"\",VLOOKUP(Table2[[#This Row],[رقم الحساب]],Table1[[6]:[النوع]],3,0),\"\"),\"\")","v":"عهدة 5"},{"$f":"IFERROR(IF(Table2[[#This Row],[رقم الحساب]]<>\"\",VLOOKUP(Table2[[#This Row],[رقم الحساب]],Table1[[6]:[النوع]],4,0),\"\"),\"\")","v":"ميزانية عمومية"}]
[{"$f":"IFERROR(INDEX(Table1[6],MATCH(0,IF(ISBLANK(Table1[6]),1,COUNTIF($A$3:A64,Table1[6])),0)),\"\")","v":11320104},{"$f":"IFERROR(IF(Table2[[#This Row],[رقم الحساب]]<>\"\",VLOOKUP(Table2[[#This Row],[رقم الحساب]],Table1[[6]:[النوع]],3,0),\"\"),\"\")","v":"عهدة 6"},{"$f":"IFERROR(IF(Table2[[#This Row],[رقم الحساب]]<>\"\",VLOOKUP(Table2[[#This Row],[رقم الحساب]],Table1[[6]:[النوع]],4,0),\"\"),\"\")","v":"ميزانية عمومية"}]
[{"$f":"IFERROR(INDEX(Table1[6],MATCH(0,IF(ISBLANK(Table1[6]),1,COUNTIF($A$3:A65,Table1[6])),0)),\"\")","v":11320102},{"$f":"IFERROR(IF(Table2[[#This Row],[رقم الحساب]]<>\"\",VLOOKUP(Table2[[#This Row],[رقم الحساب]],Table1[[6]:[النوع]],3,0),\"\"),\"\")","v":"عهدة 7"},{"$f":"IFERROR(IF(Table2[[#This Row],[رقم الحساب]]<>\"\",VLOOKUP(Table2[[#This Row],[رقم الحساب]],Table1[[6]:[النوع]],4,0),\"\"),\"\")","v":"ميزانية عمومية"}]
[{"$f":"IFERROR(INDEX(Table1[6],MATCH(0,IF(ISBLANK(Table1[6]),1,COUNTIF($A$3:A66,Table1[6])),0)),\"\")","v":11320115},{"$f":"IFERROR(IF(Table2[[#This Row],[رقم الحساب]]<>\"\",VLOOKUP(Table2[[#This Row],[رقم الحساب]],Table1[[6]:[النوع]],3,0),\"\"),\"\")","v":"عهدة 8"},{"$f":"IFERROR(IF(Table2[[#This Row],[رقم الحساب]]<>\"\",VLOOKUP(Table2[[#This Row],[رقم الحساب]],Table1[[6]:[النوع]],4,0),\"\"),\"\")","v":"ميزانية عمومية"}]
[{"$f":"IFERROR(INDEX(Table1[6],MATCH(0,IF(ISBLANK(Table1[6]),1,COUNTIF($A$3:A67,Table1[6])),0)),\"\")","v":11320117},{"$f":"IFERROR(IF(Table2[[#This Row],[رقم الحساب]]<>\"\",VLOOKUP(Table2[[#This Row],[رقم الحساب]],Table1[[6]:[النوع]],3,0),\"\"),\"\")","v":"عهدة 9"},{"$f":"IFERROR(IF(Table2[[#This Row],[رقم الحساب]]<>\"\",VLOOKUP(Table2[[#This Row],[رقم الحساب]],Table1[[6]:[النوع]],4,0),\"\"),\"\")","v":"ميزانية عمومية"}]
[{"$f":"IFERROR(INDEX(Table1[6],MATCH(0,IF(ISBLANK(Table1[6]),1,COUNTIF($A$3:A68,Table1[6])),0)),\"\")","v":11320105},{"$f":"IFERROR(IF(Table2[[#This Row],[رقم الحساب]]<>\"\",VLOOKUP(Table2[[#This Row],[رقم الحساب]],Table1[[6]:[النوع]],3,0),\"\"),\"\")","v":"عهدة 10"},{"$f":"IFERROR(IF(Table2[[#This Row],[رقم الحساب]]<>\"\",VLOOKUP(Table2[[#This Row],[رقم الحساب]],Table1[[6]:[النوع]],4,0),\"\"),\"\")","v":"ميزانية عمومية"}]
[{"$f":"IFERROR(INDEX(Table1[6],MATCH(0,IF(ISBLANK(Table1[6]),1,COUNTIF($A$3:A69,Table1[6])),0)),\"\")","v":11320120},{"$f":"IFERROR(IF(Table2[[#This Row],[رقم الحساب]]<>\"\",VLOOKUP(Table2[[#This Row],[رقم الحساب]],Table1[[6]:[النوع]],3,0),\"\"),\"\")","v":"عهدة 11"},{"$f":"IFERROR(IF(Table2[[#This Row],[رقم الحساب]]<>\"\",VLOOKUP(Table2[[#This Row],[رقم الحساب]],Table1[[6]:[النوع]],4,0),\"\"),\"\")","v":"ميزانية عمومية"}]
[{"$f":"IFERROR(INDEX(Table1[6],MATCH(0,IF(ISBLANK(Table1[6]),1,COUNTIF($A$3:A70,Table1[6])),0)),\"\")","v":11320106},{"$f":"IFERROR(IF(Table2[[#This Row],[رقم الحساب]]<>\"\",VLOOKUP(Table2[[#This Row],[رقم الحساب]],Table1[[6]:[النوع]],3,0),\"\"),\"\")","v":"عهدة 12"},{"$f":"IFERROR(IF(Table2[[#This Row],[رقم الحساب]]<>\"\",VLOOKUP(Table2[[#This Row],[رقم الحساب]],Table1[[6]:[النوع]],4,0),\"\"),\"\")","v":"ميزانية عمومية"}]
[{"$f":"IFERROR(INDEX(Table1[6],MATCH(0,IF(ISBLANK(Table1[6]),1,COUNTIF($A$3:A71,Table1[6])),0)),\"\")","v":11320103},{"$f":"IFERROR(IF(Table2[[#This Row],[رقم الحساب]]<>\"\",VLOOKUP(Table2[[#This Row],[رقم الحساب]],Table1[[6]:[النوع]],3,0),\"\"),\"\")","v":"عهدة 13"},{"$f":"IFERROR(IF(Table2[[#This Row],[رقم الحساب]]<>\"\",VLOOKUP(Table2[[#This Row],[رقم الحساب]],Table1[[6]:[النوع]],4,0),\"\"),\"\")","v":"ميزانية عمومية"}]
[{"$f":"IFERROR(INDEX(Table1[6],MATCH(0,IF(ISBLANK(Table1[6]),1,COUNTIF($A$3:A72,Table1[6])),0)),\"\")","v":114101004},{"$f":"IFERROR(IF(Table2[[#This Row],[رقم الحساب]]<>\"\",VLOOKUP(Table2[[#This Row],[رقم الحساب]],Table1[[6]:[النوع]],3,0),\"\"),\"\")","v":"وسيط التحويلات المخزنية"},{"$f":"IFERROR(IF(Table2[[#This Row],[رقم الحساب]]<>\"\",VLOOKUP(Table2[[#This Row],[رقم الحساب]],Table1[[6]:[النوع]],4,0),\"\"),\"\")","v":"ميزانية عمومية"}]
[{"$f":"IFERROR(INDEX(Table1[6],MATCH(0,IF(ISBLANK(Table1[6]),1,COUNTIF($A$3:A73,Table1[6])),0)),\"\")","v":115101001},{"$f":"IFERROR(IF(Table2[[#This Row],[رقم الحساب]]<>\"\",VLOOKUP(Table2[[#This Row],[رقم الحساب]],Table1[[6]:[النوع]],3,0),\"\"),\"\")","v":"اعتمادات مستندية"},{"$f":"IFERROR(IF(Table2[[#This Row],[رقم الحساب]]<>\"\",VLOOKUP(Table2[[#This Row],[رقم الحساب]],Table1[[6]:[النوع]],4,0),\"\"),\"\")","v":"ميزانية عمومية"}]
[{"$f":"IFERROR(INDEX(Table1[6],MATCH(0,IF(ISBLANK(Table1[6]),1,COUNTIF($A$3:A74,Table1[6])),0)),\"\")","v":116100101},{"$f":"IFERROR(IF(Table2[[#This Row],[رقم الحساب]]<>\"\",VLOOKUP(Table2[[#This Row],[رقم الحساب]],Table1[[6]:[النوع]],3,0),\"\"),\"\")","v":"مدينون اخرى (علي السياري)"},{"$f":"IFERROR(IF(Table2[[#This Row],[رقم الحساب]]<>\"\",VLOOKUP(Table2[[#This Row],[رقم الحساب]],Table1[[6]:[النوع]],4,0),\"\"),\"\")","v":"ميزانية عمومية"}]
[{"$f":"IFERROR(INDEX(Table1[6],MATCH(0,IF(ISBLANK(Table1[6]),1,COUNTIF($A$3:A75,Table1[6])),0)),\"\")","v":116101001},{"$f":"IFERROR(IF(Table2[[#This Row],[رقم الحساب]]<>\"\",VLOOKUP(Table2[[#This Row],[رقم الحساب]],Table1[[6]:[النوع]],3,0),\"\"),\"\")","v":"ايجارات مدفوعة مقدماً"},{"$f":"IFERROR(IF(Table2[[#This Row],[رقم الحساب]]<>\"\",VLOOKUP(Table2[[#This Row],[رقم الحساب]],Table1[[6]:[النوع]],4,0),\"\"),\"\")","v":"ميزانية عمومية"}]
[{"$f":"IFERROR(INDEX(Table1[6],MATCH(0,IF(ISBLANK(Table1[6]),1,COUNTIF($A$3:A76,Table1[6])),0)),\"\")","v":116102003},{"$f":"IFERROR(IF(Table2[[#This Row],[رقم الحساب]]<>\"\",VLOOKUP(Table2[[#This Row],[رقم الحساب]],Table1[[6]:[النوع]],3,0),\"\"),\"\")","v":"اطراف ذات علاقة ( شركة 3 )"},{"$f":"IFERROR(IF(Table2[[#This Row],[رقم الحساب]]<>\"\",VLOOKUP(Table2[[#This Row],[رقم الحساب]],Table1[[6]:[النوع]],4,0),\"\"),\"\")","v":"ميزانية عمومية"}]
[{"$f":"IFERROR(INDEX(Table1[6],MATCH(0,IF(ISBLANK(Table1[6]),1,COUNTIF($A$3:A77,Table1[6])),0)),\"\")","v":116102002},{"$f":"IFERROR(IF(Table2[[#This Row],[رقم الحساب]]<>\"\",VLOOKUP(Table2[[#This Row],[رقم الحساب]],Table1[[6]:[النوع]],3,0),\"\"),\"\")","v":"مبالغ مدينة تحت التسوية"},{"$f":"IFERROR(IF(Table2[[#This Row],[رقم الحساب]]<>\"\",VLOOKUP(Table2[[#This Row],[رقم الحساب]],Table1[[6]:[النوع]],4,0),\"\"),\"\")","v":"ميزانية عمومية"}]
[{"$f":"IFERROR(INDEX(Table1[6],MATCH(0,IF(ISBLANK(Table1[6]),1,COUNTIF($A$3:A78,Table1[6])),0)),\"\")","v":116102001},{"$f":"IFERROR(IF(Table2[[#This Row],[رقم الحساب]]<>\"\",VLOOKUP(Table2[[#This Row],[رقم الحساب]],Table1[[6]:[النوع]],3,0),\"\"),\"\")","v":"ضريبة القيمة المضافة (مدخلات)"},{"$f":"IFERROR(IF(Table2[[#This Row],[رقم الحساب]]<>\"\",VLOOKUP(Table2[[#This Row],[رقم الحساب]],Table1[[6]:[النوع]],4,0),\"\"),\"\")","v":"ميزانية عمومية"}]
[{"$f":"IFERROR(INDEX(Table1[6],MATCH(0,IF(ISBLANK(Table1[6]),1,COUNTIF($A$3:A79,Table1[6])),0)),\"\")","v":116103006},{"$f":"IFERROR(IF(Table2[[#This Row],[رقم الحساب]]<>\"\",VLOOKUP(Table2[[#This Row],[رقم الحساب]],Table1[[6]:[النوع]],3,0),\"\"),\"\")","v":"جاري شركة 4"},{"$f":"IFERROR(IF(Table2[[#This Row],[رقم الحساب]]<>\"\",VLOOKUP(Table2[[#This Row],[رقم الحساب]],Table1[[6]:[النوع]],4,0),\"\"),\"\")","v":"ميزانية عمومية"}]
[{"$f":"IFERROR(INDEX(Table1[6],MATCH(0,IF(ISBLANK(Table1[6]),1,COUNTIF($A$3:A80,Table1[6])),0)),\"\")","v":116103002},{"$f":"IFERROR(IF(Table2[[#This Row],[رقم الحساب]]<>\"\",VLOOKUP(Table2[[#This Row],[رقم الحساب]],Table1[[6]:[النوع]],3,0),\"\"),\"\")","v":"جاري خبراء المنازل للتجاره والمقاولات"},{"$f":"IFERROR(IF(Table2[[#This Row],[رقم الحساب]]<>\"\",VLOOKUP(Table2[[#This Row],[رقم الحساب]],Table1[[6]:[النوع]],4,0),\"\"),\"\")","v":"ميزانية عمومية"}]
[{"$f":"IFERROR(INDEX(Table1[6],MATCH(0,IF(ISBLANK(Table1[6]),1,COUNTIF($A$3:A81,Table1[6])),0)),\"\")","v":116103004},{"$f":"IFERROR(IF(Table2[[#This Row],[رقم الحساب]]<>\"\",VLOOKUP(Table2[[#This Row],[رقم الحساب]],Table1[[6]:[النوع]],3,0),\"\"),\"\")","v":"جاري شركة 1"},{"$f":"IFERROR(IF(Table2[[#This Row],[رقم الحساب]]<>\"\",VLOOKUP(Table2[[#This Row],[رقم الحساب]],Table1[[6]:[النوع]],4,0),\"\"),\"\")","v":"ميزانية عمومية"}]
[{"$f":"IFERROR(INDEX(Table1[6],MATCH(0,IF(ISBLANK(Table1[6]),1,COUNTIF($A$3:A82,Table1[6])),0)),\"\")","v":116103007},{"$f":"IFERROR(IF(Table2[[#This Row],[رقم الحساب]]<>\"\",VLOOKUP(Table2[[#This Row],[رقم الحساب]],Table1[[6]:[النوع]],3,0),\"\"),\"\")","v":"جاري الهايبر"},{"$f":"IFERROR(IF(Table2[[#This Row],[رقم الحساب]]<>\"\",VLOOKUP(Table2[[#This Row],[رقم الحساب]],Table1[[6]:[النوع]],4,0),\"\"),\"\")","v":"ميزانية عمومية"}]
[{"$f":"IFERROR(INDEX(Table1[6],MATCH(0,IF(ISBLANK(Table1[6]),1,COUNTIF($A$3:A83,Table1[6])),0)),\"\")","v":116103005},{"$f":"IFERROR(IF(Table2[[#This Row],[رقم الحساب]]<>\"\",VLOOKUP(Table2[[#This Row],[رقم الحساب]],Table1[[6]:[النوع]],3,0),\"\"),\"\")","v":"جاري مجمع برج الاسرة الطبي"},{"$f":"IFERROR(IF(Table2[[#This Row],[رقم الحساب]]<>\"\",VLOOKUP(Table2[[#This Row],[رقم الحساب]],Table1[[6]:[النوع]],4,0),\"\"),\"\")","v":"ميزانية عمومية"}]
[{"$f":"IFERROR(INDEX(Table1[6],MATCH(0,IF(ISBLANK(Table1[6]),1,COUNTIF($A$3:A84,Table1[6])),0)),\"\")","v":116103003},{"$f":"IFERROR(IF(Table2[[#This Row],[رقم الحساب]]<>\"\",VLOOKUP(Table2[[#This Row],[رقم الحساب]],Table1[[6]:[النوع]],3,0),\"\"),\"\")","v":"جاري شركة 1"},{"$f":"IFERROR(IF(Table2[[#This Row],[رقم الحساب]]<>\"\",VLOOKUP(Table2[[#This Row],[رقم الحساب]],Table1[[6]:[النوع]],4,0),\"\"),\"\")","v":"ميزانية عمومية"}]
[{"$f":"IFERROR(INDEX(Table1[6],MATCH(0,IF(ISBLANK(Table1[6]),1,COUNTIF($A$3:A85,Table1[6])),0)),\"\")","v":116200101},{"$f":"IFERROR(IF(Table2[[#This Row],[رقم الحساب]]<>\"\",VLOOKUP(Table2[[#This Row],[رقم الحساب]],Table1[[6]:[النوع]],3,0),\"\"),\"\")","v":"مديونية د/عبدالرحمن الحربي"},{"$f":"IFERROR(IF(Table2[[#This Row],[رقم الحساب]]<>\"\",VLOOKUP(Table2[[#This Row],[رقم الحساب]],Table1[[6]:[النوع]],4,0),\"\"),\"\")","v":"ميزانية عمومية"}]
[{"$f":"IFERROR(INDEX(Table1[6],MATCH(0,IF(ISBLANK(Table1[6]),1,COUNTIF($A$3:A86,Table1[6])),0)),\"\")","v":121201003},{"$f":"IFERROR(IF(Table2[[#This Row],[رقم الحساب]]<>\"\",VLOOKUP(Table2[[#This Row],[رقم الحساب]],Table1[[6]:[النوع]],3,0),\"\"),\"\")","v":"ثلاجات"},{"$f":"IFERROR(IF(Table2[[#This Row],[رقم الحساب]]<>\"\",VLOOKUP(Table2[[#This Row],[رقم الحساب]],Table1[[6]:[النوع]],4,0),\"\"),\"\")","v":"ميزانية عمومية"}]
[{"$f":"IFERROR(INDEX(Table1[6],MATCH(0,IF(ISBLANK(Table1[6]),1,COUNTIF($A$3:A87,Table1[6])),0)),\"\")","v":121202001},{"$f":"IFERROR(IF(Table2[[#This Row],[رقم الحساب]]<>\"\",VLOOKUP(Table2[[#This Row],[رقم الحساب]],Table1[[6]:[النوع]],3,0),\"\"),\"\")","v":"مكاتب"},{"$f":"IFERROR(IF(Table2[[#This Row],[رقم الحساب]]<>\"\",VLOOKUP(Table2[[#This Row],[رقم الحساب]],Table1[[6]:[النوع]],4,0),\"\"),\"\")","v":"ميزانية عمومية"}]
[{"$f":"IFERROR(INDEX(Table1[6],MATCH(0,IF(ISBLANK(Table1[6]),1,COUNTIF($A$3:A88,Table1[6])),0)),\"\")","v":121202003},{"$f":"IFERROR(IF(Table2[[#This Row],[رقم الحساب]]<>\"\",VLOOKUP(Table2[[#This Row],[رقم الحساب]],Table1[[6]:[النوع]],3,0),\"\"),\"\")","v":"طاولات"},{"$f":"IFERROR(IF(Table2[[#This Row],[رقم الحساب]]<>\"\",VLOOKUP(Table2[[#This Row],[رقم الحساب]],Table1[[6]:[النوع]],4,0),\"\"),\"\")","v":"ميزانية عمومية"}]
[{"$f":"IFERROR(INDEX(Table1[6],MATCH(0,IF(ISBLANK(Table1[6]),1,COUNTIF($A$3:A89,Table1[6])),0)),\"\")","v":121202004},{"$f":"IFERROR(IF(Table2[[#This Row],[رقم الحساب]]<>\"\",VLOOKUP(Table2[[#This Row],[رقم الحساب]],Table1[[6]:[النوع]],3,0),\"\"),\"\")","v":"دواليب"},{"$f":"IFERROR(IF(Table2[[#This Row],[رقم الحساب]]<>\"\",VLOOKUP(Table2[[#This Row],[رقم الحساب]],Table1[[6]:[النوع]],4,0),\"\"),\"\")","v":"ميزانية عمومية"}]
[{"$f":"IFERROR(INDEX(Table1[6],MATCH(0,IF(ISBLANK(Table1[6]),1,COUNTIF($A$3:A90,Table1[6])),0)),\"\")","v":121202002},{"$f":"IFERROR(IF(Table2[[#This Row],[رقم الحساب]]<>\"\",VLOOKUP(Table2[[#This Row],[رقم الحساب]],Table1[[6]:[النوع]],3,0),\"\"),\"\")","v":"كراسي"},{"$f":"IFERROR(IF(Table2[[#This Row],[رقم الحساب]]<>\"\",VLOOKUP(Table2[[#This Row],[رقم الحساب]],Table1[[6]:[النوع]],4,0),\"\"),\"\")","v":"ميزانية عمومية"}]
[{"$f":"IFERROR(INDEX(Table1[6],MATCH(0,IF(ISBLANK(Table1[6]),1,COUNTIF($A$3:A91,Table1[6])),0)),\"\")","v":121301003},{"$f":"IFERROR(IF(Table2[[#This Row],[رقم الحساب]]<>\"\",VLOOKUP(Table2[[#This Row],[رقم الحساب]],Table1[[6]:[النوع]],3,0),\"\"),\"\")","v":"آلات تصوير"},{"$f":"IFERROR(IF(Table2[[#This Row],[رقم الحساب]]<>\"\",VLOOKUP(Table2[[#This Row],[رقم الحساب]],Table1[[6]:[النوع]],4,0),\"\"),\"\")","v":"ميزانية عمومية"}]
[{"$f":"IFERROR(INDEX(Table1[6],MATCH(0,IF(ISBLANK(Table1[6]),1,COUNTIF($A$3:A92,Table1[6])),0)),\"\")","v":121301001},{"$f":"IFERROR(IF(Table2[[#This Row],[رقم الحساب]]<>\"\",VLOOKUP(Table2[[#This Row],[رقم الحساب]],Table1[[6]:[النوع]],3,0),\"\"),\"\")","v":"أجهزة كمبيوتر"},{"$f":"IFERROR(IF(Table2[[#This Row],[رقم الحساب]]<>\"\",VLOOKUP(Table2[[#This Row],[رقم الحساب]],Table1[[6]:[النوع]],4,0),\"\"),\"\")","v":"ميزانية عمومية"}]
[{"$f":"IFERROR(INDEX(Table1[6],MATCH(0,IF(ISBLANK(Table1[6]),1,COUNTIF($A$3:A93,Table1[6])),0)),\"\")","v":121301002},{"$f":"IFERROR(IF(Table2[[#This Row],[رقم الحساب]]<>\"\",VLOOKUP(Table2[[#This Row],[رقم الحساب]],Table1[[6]:[النوع]],3,0),\"\"),\"\")","v":"طابعات كمبيوتر"},{"$f":"IFERROR(IF(Table2[[#This Row],[رقم الحساب]]<>\"\",VLOOKUP(Table2[[#This Row],[رقم الحساب]],Table1[[6]:[النوع]],4,0),\"\"),\"\")","v":"ميزانية عمومية"}]
[{"$f":"IFERROR(INDEX(Table1[6],MATCH(0,IF(ISBLANK(Table1[6]),1,COUNTIF($A$3:A94,Table1[6])),0)),\"\")","v":121302003},{"$f":"IFERROR(IF(Table2[[#This Row],[رقم الحساب]]<>\"\",VLOOKUP(Table2[[#This Row],[رقم الحساب]],Table1[[6]:[النوع]],3,0),\"\"),\"\")","v":"نطام محاسبي أونكس برو"},{"$f":"IFERROR(IF(Table2[[#This Row],[رقم الحساب]]<>\"\",VLOOKUP(Table2[[#This Row],[رقم الحساب]],Table1[[6]:[النوع]],4,0),\"\"),\"\")","v":"ميزانية عمومية"}]
[{"$f":"IFERROR(INDEX(Table1[6],MATCH(0,IF(ISBLANK(Table1[6]),1,COUNTIF($A$3:A95,Table1[6])),0)),\"\")","v":121302002},{"$f":"IFERROR(IF(Table2[[#This Row],[رقم الحساب]]<>\"\",VLOOKUP(Table2[[#This Row],[رقم الحساب]],Table1[[6]:[النوع]],3,0),\"\"),\"\")","v":"نطام محاسبي سماك"},{"$f":"IFERROR(IF(Table2[[#This Row],[رقم الحساب]]<>\"\",VLOOKUP(Table2[[#This Row],[رقم الحساب]],Table1[[6]:[النوع]],4,0),\"\"),\"\")","v":"ميزانية عمومية"}]
[{"$f":"IFERROR(INDEX(Table1[6],MATCH(0,IF(ISBLANK(Table1[6]),1,COUNTIF($A$3:A96,Table1[6])),0)),\"\")","v":121302001},{"$f":"IFERROR(IF(Table2[[#This Row],[رقم الحساب]]<>\"\",VLOOKUP(Table2[[#This Row],[رقم الحساب]],Table1[[6]:[النوع]],3,0),\"\"),\"\")","v":"نطام محاسبية يارا"},{"$f":"IFERROR(IF(Table2[[#This Row],[رقم الحساب]]<>\"\",VLOOKUP(Table2[[#This Row],[رقم الحساب]],Table1[[6]:[النوع]],4,0),\"\"),\"\")","v":"ميزانية عمومية"}]
[{"$f":"IFERROR(INDEX(Table1[6],MATCH(0,IF(ISBLANK(Table1[6]),1,COUNTIF($A$3:A97,Table1[6])),0)),\"\")","v":121303001},{"$f":"IFERROR(IF(Table2[[#This Row],[رقم الحساب]]<>\"\",VLOOKUP(Table2[[#This Row],[رقم الحساب]],Table1[[6]:[النوع]],3,0),\"\"),\"\")","v":"أجهزة بصمة"},{"$f":"IFERROR(IF(Table2[[#This Row],[رقم الحساب]]<>\"\",VLOOKUP(Table2[[#This Row],[رقم الحساب]],Table1[[6]:[النوع]],4,0),\"\"),\"\")","v":"ميزانية عمومية"}]
[{"$f":"IFERROR(INDEX(Table1[6],MATCH(0,IF(ISBLANK(Table1[6]),1,COUNTIF($A$3:A98,Table1[6])),0)),\"\")","v":121401001},{"$f":"IFERROR(IF(Table2[[#This Row],[رقم الحساب]]<>\"\",VLOOKUP(Table2[[#This Row],[رقم الحساب]],Table1[[6]:[النوع]],3,0),\"\"),\"\")","v":"مكبرات صوت"},{"$f":"IFERROR(IF(Table2[[#This Row],[رقم الحساب]]<>\"\",VLOOKUP(Table2[[#This Row],[رقم الحساب]],Table1[[6]:[النوع]],4,0),\"\"),\"\")","v":"ميزانية عمومية"}]
[{"$f":"IFERROR(INDEX(Table1[6],MATCH(0,IF(ISBLANK(Table1[6]),1,COUNTIF($A$3:A99,Table1[6])),0)),\"\")","v":121702001},{"$f":"IFERROR(IF(Table2[[#This Row],[رقم الحساب]]<>\"\",VLOOKUP(Table2[[#This Row],[رقم الحساب]],Table1[[6]:[النوع]],3,0),\"\"),\"\")","v":"ارضية ...."},{"$f":"IFERROR(IF(Table2[[#This Row],[رقم الحساب]]<>\"\",VLOOKUP(Table2[[#This Row],[رقم الحساب]],Table1[[6]:[النوع]],4,0),\"\"),\"\")","v":"ميزانية عمومية"}]
[{"$f":"IFERROR(INDEX(Table1[6],MATCH(0,IF(ISBLANK(Table1[6]),1,COUNTIF($A$3:A100,Table1[6])),0)),\"\")","v":121801001},{"$f":"IFERROR(IF(Table2[[#This Row],[رقم الحساب]]<>\"\",VLOOKUP(Table2[[#This Row],[رقم الحساب]],Table1[[6]:[النوع]],3,0),\"\"),\"\")","v":"مصروف تأسيس"},{"$f":"IFERROR(IF(Table2[[#This Row],[رقم الحساب]]<>\"\",VLOOKUP(Table2[[#This Row],[رقم الحساب]],Table1[[6]:[النوع]],4,0),\"\"),\"\")","v":"ميزانية عمومية"}]
[{"$f":"IFERROR(INDEX(Table1[6],MATCH(0,IF(ISBLANK(Table1[6]),1,COUNTIF($A$3:A101,Table1[6])),0)),\"\")","v":121901002},{"$f":"IFERROR(IF(Table2[[#This Row],[رقم الحساب]]<>\"\",VLOOKUP(Table2[[#This Row],[رقم الحساب]],Table1[[6]:[النوع]],3,0),\"\"),\"\")","v":"اخشاب"},{"$f":"IFERROR(IF(Table2[[#This Row],[رقم الحساب]]<>\"\",VLOOKUP(Table2[[#This Row],[رقم الحساب]],Table1[[6]:[النوع]],4,0),\"\"),\"\")","v":"ميزانية عمومية"}]
[{"$f":"IFERROR(INDEX(Table1[6],MATCH(0,IF(ISBLANK(Table1[6]),1,COUNTIF($A$3:A102,Table1[6])),0)),\"\")","v":121901001},{"$f":"IFERROR(IF(Table2[[#This Row],[رقم الحساب]]<>\"\",VLOOKUP(Table2[[#This Row],[رقم الحساب]],Table1[[6]:[النوع]],3,0),\"\"),\"\")","v":"شهرة شركة 3"},{"$f":"IFERROR(IF(Table2[[#This Row],[رقم الحساب]]<>\"\",VLOOKUP(Table2[[#This Row],[رقم الحساب]],Table1[[6]:[النوع]],4,0),\"\"),\"\")","v":"ميزانية عمومية"}]
[{"$f":"IFERROR(INDEX(Table1[6],MATCH(0,IF(ISBLANK(Table1[6]),1,COUNTIF($A$3:A103,Table1[6])),0)),\"\")","v":121902001},{"$f":"IFERROR(IF(Table2[[#This Row],[رقم الحساب]]<>\"\",VLOOKUP(Table2[[#This Row],[رقم الحساب]],Table1[[6]:[النوع]],3,0),\"\"),\"\")","v":"سقالات"},{"$f":"IFERROR(IF(Table2[[#This Row],[رقم الحساب]]<>\"\",VLOOKUP(Table2[[#This Row],[رقم الحساب]],Table1[[6]:[النوع]],4,0),\"\"),\"\")","v":"ميزانية عمومية"}]
[{"$f":"IFERROR(INDEX(Table1[6],MATCH(0,IF(ISBLANK(Table1[6]),1,COUNTIF($A$3:A104,Table1[6])),0)),\"\")","v":211102001},{"$f":"IFERROR(IF(Table2[[#This Row],[رقم الحساب]]<>\"\",VLOOKUP(Table2[[#This Row],[رقم الحساب]],Table1[[6]:[النوع]],3,0),\"\"),\"\")","v":"مقاولين الباطن"},{"$f":"IFERROR(IF(Table2[[#This Row],[رقم الحساب]]<>\"\",VLOOKUP(Table2[[#This Row],[رقم الحساب]],Table1[[6]:[النوع]],4,0),\"\"),\"\")","v":"ميزانية عمومية"}]
[{"$f":"IFERROR(INDEX(Table1[6],MATCH(0,IF(ISBLANK(Table1[6]),1,COUNTIF($A$3:A105,Table1[6])),0)),\"\")","v":211102002},{"$f":"IFERROR(IF(Table2[[#This Row],[رقم الحساب]]<>\"\",VLOOKUP(Table2[[#This Row],[رقم الحساب]],Table1[[6]:[النوع]],3,0),\"\"),\"\")","v":"موردين المقاولات"},{"$f":"IFERROR(IF(Table2[[#This Row],[رقم الحساب]]<>\"\",VLOOKUP(Table2[[#This Row],[رقم الحساب]],Table1[[6]:[النوع]],4,0),\"\"),\"\")","v":"ميزانية عمومية"}]
[{"$f":"IFERROR(INDEX(Table1[6],MATCH(0,IF(ISBLANK(Table1[6]),1,COUNTIF($A$3:A106,Table1[6])),0)),\"\")","v":21130401},{"$f":"IFERROR(IF(Table2[[#This Row],[رقم الحساب]]<>\"\",VLOOKUP(Table2[[#This Row],[رقم الحساب]],Table1[[6]:[النوع]],3,0),\"\"),\"\")","v":"دائنون متنوعون (علي السياري)"},{"$f":"IFERROR(IF(Table2[[#This Row],[رقم الحساب]]<>\"\",VLOOKUP(Table2[[#This Row],[رقم الحساب]],Table1[[6]:[النوع]],4,0),\"\"),\"\")","v":"ميزانية عمومية"}]
[{"$f":"IFERROR(INDEX(Table1[6],MATCH(0,IF(ISBLANK(Table1[6]),1,COUNTIF($A$3:A107,Table1[6])),0)),\"\")","v":212101001},{"$f":"IFERROR(IF(Table2[[#This Row],[رقم الحساب]]<>\"\",VLOOKUP(Table2[[#This Row],[رقم الحساب]],Table1[[6]:[النوع]],3,0),\"\"),\"\")","v":"شيكات دفع بنك ......تحت التحصيل"},{"$f":"IFERROR(IF(Table2[[#This Row],[رقم الحساب]]<>\"\",VLOOKUP(Table2[[#This Row],[رقم الحساب]],Table1[[6]:[النوع]],4,0),\"\"),\"\")","v":"ميزانية عمومية"}]
[{"$f":"IFERROR(INDEX(Table1[6],MATCH(0,IF(ISBLANK(Table1[6]),1,COUNTIF($A$3:A108,Table1[6])),0)),\"\")","v":213101001},{"$f":"IFERROR(IF(Table2[[#This Row],[رقم الحساب]]<>\"\",VLOOKUP(Table2[[#This Row],[رقم الحساب]],Table1[[6]:[النوع]],3,0),\"\"),\"\")","v":"ضمانة العميل ............"},{"$f":"IFERROR(IF(Table2[[#This Row],[رقم الحساب]]<>\"\",VLOOKUP(Table2[[#This Row],[رقم الحساب]],Table1[[6]:[النوع]],4,0),\"\"),\"\")","v":"ميزانية عمومية"}]
[{"$f":"IFERROR(INDEX(Table1[6],MATCH(0,IF(ISBLANK(Table1[6]),1,COUNTIF($A$3:A109,Table1[6])),0)),\"\")","v":214101002},{"$f":"IFERROR(IF(Table2[[#This Row],[رقم الحساب]]<>\"\",VLOOKUP(Table2[[#This Row],[رقم الحساب]],Table1[[6]:[النوع]],3,0),\"\"),\"\")","v":"تسوية ضريبة القيمة المضافة"},{"$f":"IFERROR(IF(Table2[[#This Row],[رقم الحساب]]<>\"\",VLOOKUP(Table2[[#This Row],[رقم الحساب]],Table1[[6]:[النوع]],4,0),\"\"),\"\")","v":"ميزانية عمومية"}]
[{"$f":"IFERROR(INDEX(Table1[6],MATCH(0,IF(ISBLANK(Table1[6]),1,COUNTIF($A$3:A110,Table1[6])),0)),\"\")","v":214101005},{"$f":"IFERROR(IF(Table2[[#This Row],[رقم الحساب]]<>\"\",VLOOKUP(Table2[[#This Row],[رقم الحساب]],Table1[[6]:[النوع]],3,0),\"\"),\"\")","v":"ايجار معدات مستحقة"},{"$f":"IFERROR(IF(Table2[[#This Row],[رقم الحساب]]<>\"\",VLOOKUP(Table2[[#This Row],[رقم الحساب]],Table1[[6]:[النوع]],4,0),\"\"),\"\")","v":"ميزانية عمومية"}]
[{"$f":"IFERROR(INDEX(Table1[6],MATCH(0,IF(ISBLANK(Table1[6]),1,COUNTIF($A$3:A111,Table1[6])),0)),\"\")","v":214101001},{"$f":"IFERROR(IF(Table2[[#This Row],[رقم الحساب]]<>\"\",VLOOKUP(Table2[[#This Row],[رقم الحساب]],Table1[[6]:[النوع]],3,0),\"\"),\"\")","v":"ضريبة القيمة المضافة (مخرجات)"},{"$f":"IFERROR(IF(Table2[[#This Row],[رقم الحساب]]<>\"\",VLOOKUP(Table2[[#This Row],[رقم الحساب]],Table1[[6]:[النوع]],4,0),\"\"),\"\")","v":"ميزانية عمومية"}]
[{"$f":"IFERROR(INDEX(Table1[6],MATCH(0,IF(ISBLANK(Table1[6]),1,COUNTIF($A$3:A112,Table1[6])),0)),\"\")","v":214101004},{"$f":"IFERROR(IF(Table2[[#This Row],[رقم الحساب]]<>\"\",VLOOKUP(Table2[[#This Row],[رقم الحساب]],Table1[[6]:[النوع]],3,0),\"\"),\"\")","v":"ايجارات مستحقة"},{"$f":"IFERROR(IF(Table2[[#This Row],[رقم الحساب]]<>\"\",VLOOKUP(Table2[[#This Row],[رقم الحساب]],Table1[[6]:[النوع]],4,0),\"\"),\"\")","v":"ميزانية عمومية"}]
[{"$f":"IFERROR(INDEX(Table1[6],MATCH(0,IF(ISBLANK(Table1[6]),1,COUNTIF($A$3:A113,Table1[6])),0)),\"\")","v":214101003},{"$f":"IFERROR(IF(Table2[[#This Row],[رقم الحساب]]<>\"\",VLOOKUP(Table2[[#This Row],[رقم الحساب]],Table1[[6]:[النوع]],3,0),\"\"),\"\")","v":"مرتبات واجور مستحقة"},{"$f":"IFERROR(IF(Table2[[#This Row],[رقم الحساب]]<>\"\",VLOOKUP(Table2[[#This Row],[رقم الحساب]],Table1[[6]:[النوع]],4,0),\"\"),\"\")","v":"ميزانية عمومية"}]
[{"$f":"IFERROR(INDEX(Table1[6],MATCH(0,IF(ISBLANK(Table1[6]),1,COUNTIF($A$3:A114,Table1[6])),0)),\"\")","v":214101006},{"$f":"IFERROR(IF(Table2[[#This Row],[رقم الحساب]]<>\"\",VLOOKUP(Table2[[#This Row],[رقم الحساب]],Table1[[6]:[النوع]],3,0),\"\"),\"\")","v":"مرتبات واجور مستحقة اجمالى"},{"$f":"IFERROR(IF(Table2[[#This Row],[رقم الحساب]]<>\"\",VLOOKUP(Table2[[#This Row],[رقم الحساب]],Table1[[6]:[النوع]],4,0),\"\"),\"\")","v":"ميزانية عمومية"}]
[{"$f":"IFERROR(INDEX(Table1[6],MATCH(0,IF(ISBLANK(Table1[6]),1,COUNTIF($A$3:A115,Table1[6])),0)),\"\")","v":214102005},{"$f":"IFERROR(IF(Table2[[#This Row],[رقم الحساب]]<>\"\",VLOOKUP(Table2[[#This Row],[رقم الحساب]],Table1[[6]:[النوع]],3,0),\"\"),\"\")","v":"اطراف ذات علاقة شركة 3"},{"$f":"IFERROR(IF(Table2[[#This Row],[رقم الحساب]]<>\"\",VLOOKUP(Table2[[#This Row],[رقم الحساب]],Table1[[6]:[النوع]],4,0),\"\"),\"\")","v":"ميزانية عمومية"}]
[{"$f":"IFERROR(INDEX(Table1[6],MATCH(0,IF(ISBLANK(Table1[6]),1,COUNTIF($A$3:A116,Table1[6])),0)),\"\")","v":214102003},{"$f":"IFERROR(IF(Table2[[#This Row],[رقم الحساب]]<>\"\",VLOOKUP(Table2[[#This Row],[رقم الحساب]],Table1[[6]:[النوع]],3,0),\"\"),\"\")","v":"اطراف ذات علاقة شركة خبراء المنازل"},{"$f":"IFERROR(IF(Table2[[#This Row],[رقم الحساب]]<>\"\",VLOOKUP(Table2[[#This Row],[رقم الحساب]],Table1[[6]:[النوع]],4,0),\"\"),\"\")","v":"ميزانية عمومية"}]
[{"$f":"IFERROR(INDEX(Table1[6],MATCH(0,IF(ISBLANK(Table1[6]),1,COUNTIF($A$3:A117,Table1[6])),0)),\"\")","v":214102008},{"$f":"IFERROR(IF(Table2[[#This Row],[رقم الحساب]]<>\"\",VLOOKUP(Table2[[#This Row],[رقم الحساب]],Table1[[6]:[النوع]],3,0),\"\"),\"\")","v":"اطراف ذات علاقة شركة باكسون التجارية"},{"$f":"IFERROR(IF(Table2[[#This Row],[رقم الحساب]]<>\"\",VLOOKUP(Table2[[#This Row],[رقم الحساب]],Table1[[6]:[النوع]],4,0),\"\"),\"\")","v":"ميزانية عمومية"}]
[{"$f":"IFERROR(INDEX(Table1[6],MATCH(0,IF(ISBLANK(Table1[6]),1,COUNTIF($A$3:A118,Table1[6])),0)),\"\")","v":214102002},{"$f":"IFERROR(IF(Table2[[#This Row],[رقم الحساب]]<>\"\",VLOOKUP(Table2[[#This Row],[رقم الحساب]],Table1[[6]:[النوع]],3,0),\"\"),\"\")","v":"اطراف ذات علاقة شركة 2"},{"$f":"IFERROR(IF(Table2[[#This Row],[رقم الحساب]]<>\"\",VLOOKUP(Table2[[#This Row],[رقم الحساب]],Table1[[6]:[النوع]],4,0),\"\"),\"\")","v":"ميزانية عمومية"}]
[{"$f":"IFERROR(INDEX(Table1[6],MATCH(0,IF(ISBLANK(Table1[6]),1,COUNTIF($A$3:A119,Table1[6])),0)),\"\")","v":214102001},{"$f":"IFERROR(IF(Table2[[#This Row],[رقم الحساب]]<>\"\",VLOOKUP(Table2[[#This Row],[رقم الحساب]],Table1[[6]:[النوع]],3,0),\"\"),\"\")","v":"اطراف ذات علاقة  شركة 1"},{"$f":"IFERROR(IF(Table2[[#This Row],[رقم الحساب]]<>\"\",VLOOKUP(Table2[[#This Row],[رقم الحساب]],Table1[[6]:[النوع]],4,0),\"\"),\"\")","v":"ميزانية عمومية"}]
[{"$f":"IFERROR(INDEX(Table1[6],MATCH(0,IF(ISBLANK(Table1[6]),1,COUNTIF($A$3:A120,Table1[6])),0)),\"\")","v":214102004},{"$f":"IFERROR(IF(Table2[[#This Row],[رقم الحساب]]<>\"\",VLOOKUP(Table2[[#This Row],[رقم الحساب]],Table1[[6]:[النوع]],3,0),\"\"),\"\")","v":"اطراف ذات علاقة شركة 3"},{"$f":"IFERROR(IF(Table2[[#This Row],[رقم الحساب]]<>\"\",VLOOKUP(Table2[[#This Row],[رقم الحساب]],Table1[[6]:[النوع]],4,0),\"\"),\"\")","v":"ميزانية عمومية"}]
[{"$f":"IFERROR(INDEX(Table1[6],MATCH(0,IF(ISBLANK(Table1[6]),1,COUNTIF($A$3:A121,Table1[6])),0)),\"\")","v":221101001},{"$f":"IFERROR(IF(Table2[[#This Row],[رقم الحساب]]<>\"\",VLOOKUP(Table2[[#This Row],[رقم الحساب]],Table1[[6]:[النوع]],3,0),\"\"),\"\")","v":"قرض رقم 1"},{"$f":"IFERROR(IF(Table2[[#This Row],[رقم الحساب]]<>\"\",VLOOKUP(Table2[[#This Row],[رقم الحساب]],Table1[[6]:[النوع]],4,0),\"\"),\"\")","v":"ميزانية عمومية"}]
[{"$f":"IFERROR(INDEX(Table1[6],MATCH(0,IF(ISBLANK(Table1[6]),1,COUNTIF($A$3:A122,Table1[6])),0)),\"\")","v":231101001},{"$f":"IFERROR(IF(Table2[[#This Row],[رقم الحساب]]<>\"\",VLOOKUP(Table2[[#This Row],[رقم الحساب]],Table1[[6]:[النوع]],3,0),\"\"),\"\")","v":"راس المال"},{"$f":"IFERROR(IF(Table2[[#This Row],[رقم الحساب]]<>\"\",VLOOKUP(Table2[[#This Row],[رقم الحساب]],Table1[[6]:[النوع]],4,0),\"\"),\"\")","v":"ميزانية عمومية"}]
[{"$f":"IFERROR(INDEX(Table1[6],MATCH(0,IF(ISBLANK(Table1[6]),1,COUNTIF($A$3:A123,Table1[6])),0)),\"\")","v":231201001},{"$f":"IFERROR(IF(Table2[[#This Row],[رقم الحساب]]<>\"\",VLOOKUP(Table2[[#This Row],[رقم الحساب]],Table1[[6]:[النوع]],3,0),\"\"),\"\")","v":"الارباح والخسائر للفترة"},{"$f":"IFERROR(IF(Table2[[#This Row],[رقم الحساب]]<>\"\",VLOOKUP(Table2[[#This Row],[رقم الحساب]],Table1[[6]:[النوع]],4,0),\"\"),\"\")","v":"ميزانية عمومية"}]
[{"$f":"IFERROR(INDEX(Table1[6],MATCH(0,IF(ISBLANK(Table1[6]),1,COUNTIF($A$3:A124,Table1[6])),0)),\"\")","v":231201002},{"$f":"IFERROR(IF(Table2[[#This Row],[رقم الحساب]]<>\"\",VLOOKUP(Table2[[#This Row],[رقم الحساب]],Table1[[6]:[النوع]],3,0),\"\"),\"\")","v":"الارباح والخسائر المرحلة"},{"$f":"IFERROR(IF(Table2[[#This Row],[رقم الحساب]]<>\"\",VLOOKUP(Table2[[#This Row],[رقم الحساب]],Table1[[6]:[النوع]],4,0),\"\"),\"\")","v":"ميزانية عمومية"}]
[{"$f":"IFERROR(INDEX(Table1[6],MATCH(0,IF(ISBLANK(Table1[6]),1,COUNTIF($A$3:A125,Table1[6])),0)),\"\")","v":231301002},{"$f":"IFERROR(IF(Table2[[#This Row],[رقم الحساب]]<>\"\",VLOOKUP(Table2[[#This Row],[رقم الحساب]],Table1[[6]:[النوع]],3,0),\"\"),\"\")","v":"مخصصات الديون المشكوك فيها"},{"$f":"IFERROR(IF(Table2[[#This Row],[رقم الحساب]]<>\"\",VLOOKUP(Table2[[#This Row],[رقم الحساب]],Table1[[6]:[النوع]],4,0),\"\"),\"\")","v":"ميزانية عمومية"}]
[{"$f":"IFERROR(INDEX(Table1[6],MATCH(0,IF(ISBLANK(Table1[6]),1,COUNTIF($A$3:A126,Table1[6])),0)),\"\")","v":231301001},{"$f":"IFERROR(IF(Table2[[#This Row],[رقم الحساب]]<>\"\",VLOOKUP(Table2[[#This Row],[رقم الحساب]],Table1[[6]:[النوع]],3,0),\"\"),\"\")","v":"مخصصات نهاية الخدمة"},{"$f":"IFERROR(IF(Table2[[#This Row],[رقم الحساب]]<>\"\",VLOOKUP(Table2[[#This Row],[رقم الحساب]],Table1[[6]:[النوع]],4,0),\"\"),\"\")","v":"ميزانية عمومية"}]
[{"$f":"IFERROR(INDEX(Table1[6],MATCH(0,IF(ISBLANK(Table1[6]),1,COUNTIF($A$3:A127,Table1[6])),0)),\"\")","v":231302002},{"$f":"IFERROR(IF(Table2[[#This Row],[رقم الحساب]]<>\"\",VLOOKUP(Table2[[#This Row],[رقم الحساب]],Table1[[6]:[النوع]],3,0),\"\"),\"\")","v":"مجمع اهلاك المعدات والالات"},{"$f":"IFERROR(IF(Table2[[#This Row],[رقم الحساب]]<>\"\",VLOOKUP(Table2[[#This Row],[رقم الحساب]],Table1[[6]:[النوع]],4,0),\"\"),\"\")","v":"ميزانية عمومية"}]
[{"$f":"IFERROR(INDEX(Table1[6],MATCH(0,IF(ISBLANK(Table1[6]),1,COUNTIF($A$3:A128,Table1[6])),0)),\"\")","v":231302003},{"$f":"IFERROR(IF(Table2[[#This Row],[رقم الحساب]]<>\"\",VLOOKUP(Table2[[#This Row],[رقم الحساب]],Table1[[6]:[النوع]],3,0),\"\"),\"\")","v":"مجمع اهلاك السيارات وشاحنات النقل"},{"$f":"IFERROR(IF(Table2[[#This Row],[رقم الحساب]]<>\"\",VLOOKUP(Table2[[#This Row],[رقم الحساب]],Table1[[6]:[النوع]],4,0),\"\"),\"\")","v":"ميزانية عمومية"}]
[{"$f":"IFERROR(INDEX(Table1[6],MATCH(0,IF(ISBLANK(Table1[6]),1,COUNTIF($A$3:A129,Table1[6])),0)),\"\")","v":231302001},{"$f":"IFERROR(IF(Table2[[#This Row],[رقم الحساب]]<>\"\",VLOOKUP(Table2[[#This Row],[رقم الحساب]],Table1[[6]:[النوع]],3,0),\"\"),\"\")","v":"مجمع اهلاك المباني"},{"$f":"IFERROR(IF(Table2[[#This Row],[رقم الحساب]]<>\"\",VLOOKUP(Table2[[#This Row],[رقم الحساب]],Table1[[6]:[النوع]],4,0),\"\"),\"\")","v":"ميزانية عمومية"}]
[{"$f":"IFERROR(INDEX(Table1[6],MATCH(0,IF(ISBLANK(Table1[6]),1,COUNTIF($A$3:A130,Table1[6])),0)),\"\")","v":231302005},{"$f":"IFERROR(IF(Table2[[#This Row],[رقم الحساب]]<>\"\",VLOOKUP(Table2[[#This Row],[رقم الحساب]],Table1[[6]:[النوع]],3,0),\"\"),\"\")","v":"مجمع اهلاك الاثاث والتجهيز ات المكتبية"},{"$f":"IFERROR(IF(Table2[[#This Row],[رقم الحساب]]<>\"\",VLOOKUP(Table2[[#This Row],[رقم الحساب]],Table1[[6]:[النوع]],4,0),\"\"),\"\")","v":"ميزانية عمومية"}]
[{"$f":"IFERROR(INDEX(Table1[6],MATCH(0,IF(ISBLANK(Table1[6]),1,COUNTIF($A$3:A131,Table1[6])),0)),\"\")","v":231302006},{"$f":"IFERROR(IF(Table2[[#This Row],[رقم الحساب]]<>\"\",VLOOKUP(Table2[[#This Row],[رقم الحساب]],Table1[[6]:[النوع]],3,0),\"\"),\"\")","v":"مجمع اهلاك الاجهزة الكهربائية والعدد والادوات"},{"$f":"IFERROR(IF(Table2[[#This Row],[رقم الحساب]]<>\"\",VLOOKUP(Table2[[#This Row],[رقم الحساب]],Table1[[6]:[النوع]],4,0),\"\"),\"\")","v":"ميزانية عمومية"}]
[{"$f":"IFERROR(INDEX(Table1[6],MATCH(0,IF(ISBLANK(Table1[6]),1,COUNTIF($A$3:A132,Table1[6])),0)),\"\")","v":231302004},{"$f":"IFERROR(IF(Table2[[#This Row],[رقم الحساب]]<>\"\",VLOOKUP(Table2[[#This Row],[رقم الحساب]],Table1[[6]:[النوع]],3,0),\"\"),\"\")","v":"مجمع اهلاك الكمبيوترات والانظمة"},{"$f":"IFERROR(IF(Table2[[#This Row],[رقم الحساب]]<>\"\",VLOOKUP(Table2[[#This Row],[رقم الحساب]],Table1[[6]:[النوع]],4,0),\"\"),\"\")","v":"ميزانية عمومية"}]
[{"$f":"IFERROR(INDEX(Table1[6],MATCH(0,IF(ISBLANK(Table1[6]),1,COUNTIF($A$3:A133,Table1[6])),0)),\"\")","v":231302007},{"$f":"IFERROR(IF(Table2[[#This Row],[رقم الحساب]]<>\"\",VLOOKUP(Table2[[#This Row],[رقم الحساب]],Table1[[6]:[النوع]],3,0),\"\"),\"\")","v":"مجمع اهلاك تأسيس وشهرة محل"},{"$f":"IFERROR(IF(Table2[[#This Row],[رقم الحساب]]<>\"\",VLOOKUP(Table2[[#This Row],[رقم الحساب]],Table1[[6]:[النوع]],4,0),\"\"),\"\")","v":"ميزانية عمومية"}]
[{"$f":"IFERROR(INDEX(Table1[6],MATCH(0,IF(ISBLANK(Table1[6]),1,COUNTIF($A$3:A134,Table1[6])),0)),\"\")","v":231401001},{"$f":"IFERROR(IF(Table2[[#This Row],[رقم الحساب]]<>\"\",VLOOKUP(Table2[[#This Row],[رقم الحساب]],Table1[[6]:[النوع]],3,0),\"\"),\"\")","v":"احتياطي قانوني"},{"$f":"IFERROR(IF(Table2[[#This Row],[رقم الحساب]]<>\"\",VLOOKUP(Table2[[#This Row],[رقم الحساب]],Table1[[6]:[النوع]],4,0),\"\"),\"\")","v":"ميزانية عمومية"}]
[{"$f":"IFERROR(INDEX(Table1[6],MATCH(0,IF(ISBLANK(Table1[6]),1,COUNTIF($A$3:A135,Table1[6])),0)),\"\")","v":231501002},{"$f":"IFERROR(IF(Table2[[#This Row],[رقم الحساب]]<>\"\",VLOOKUP(Table2[[#This Row],[رقم الحساب]],Table1[[6]:[النوع]],3,0),\"\"),\"\")","v":"حساب جاري المالك - تمويل"},{"$f":"IFERROR(IF(Table2[[#This Row],[رقم الحساب]]<>\"\",VLOOKUP(Table2[[#This Row],[رقم الحساب]],Table1[[6]:[النوع]],4,0),\"\"),\"\")","v":"ميزانية عمومية"}]
[{"$f":"IFERROR(INDEX(Table1[6],MATCH(0,IF(ISBLANK(Table1[6]),1,COUNTIF($A$3:A136,Table1[6])),0)),\"\")","v":231501001},{"$f":"IFERROR(IF(Table2[[#This Row],[رقم الحساب]]<>\"\",VLOOKUP(Table2[[#This Row],[رقم الحساب]],Table1[[6]:[النوع]],3,0),\"\"),\"\")","v":"حساب جاري لمالك - عام"},{"$f":"IFERROR(IF(Table2[[#This Row],[رقم الحساب]]<>\"\",VLOOKUP(Table2[[#This Row],[رقم الحساب]],Table1[[6]:[النوع]],4,0),\"\"),\"\")","v":"ميزانية عمومية"}]
[{"$f":"IFERROR(INDEX(Table1[6],MATCH(0,IF(ISBLANK(Table1[6]),1,COUNTIF($A$3:A137,Table1[6])),0)),\"\")","v":231501003},{"$f":"IFERROR(IF(Table2[[#This Row],[رقم الحساب]]<>\"\",VLOOKUP(Table2[[#This Row],[رقم الحساب]],Table1[[6]:[النوع]],3,0),\"\"),\"\")","v":"حساب جاري المالك - عمائر"},{"$f":"IFERROR(IF(Table2[[#This Row],[رقم الحساب]]<>\"\",VLOOKUP(Table2[[#This Row],[رقم الحساب]],Table1[[6]:[النوع]],4,0),\"\"),\"\")","v":"ميزانية عمومية"}]
[{"$f":"IFERROR(INDEX(Table1[6],MATCH(0,IF(ISBLANK(Table1[6]),1,COUNTIF($A$3:A138,Table1[6])),0)),\"\")","v":312101002},{"$f":"IFERROR(IF(Table2[[#This Row],[رقم الحساب]]<>\"\",VLOOKUP(Table2[[#This Row],[رقم الحساب]],Table1[[6]:[النوع]],3,0),\"\"),\"\")","v":"تكلفة مبيعات الكمية المجانية"},{"$f":"IFERROR(IF(Table2[[#This Row],[رقم الحساب]]<>\"\",VLOOKUP(Table2[[#This Row],[رقم الحساب]],Table1[[6]:[النوع]],4,0),\"\"),\"\")","v":"أرباح وخسائر"}]
[{"$f":"IFERROR(INDEX(Table1[6],MATCH(0,IF(ISBLANK(Table1[6]),1,COUNTIF($A$3:A139,Table1[6])),0)),\"\")","v":312201003},{"$f":"IFERROR(IF(Table2[[#This Row],[رقم الحساب]]<>\"\",VLOOKUP(Table2[[#This Row],[رقم الحساب]],Table1[[6]:[النوع]],3,0),\"\"),\"\")","v":"تكلفة مردود المبيعات للكمية المجانية"},{"$f":"IFERROR(IF(Table2[[#This Row],[رقم الحساب]]<>\"\",VLOOKUP(Table2[[#This Row],[رقم الحساب]],Table1[[6]:[النوع]],4,0),\"\"),\"\")","v":"أرباح وخسائر"}]
[{"$f":"IFERROR(INDEX(Table1[6],MATCH(0,IF(ISBLANK(Table1[6]),1,COUNTIF($A$3:A140,Table1[6])),0)),\"\")","v":312201002},{"$f":"IFERROR(IF(Table2[[#This Row],[رقم الحساب]]<>\"\",VLOOKUP(Table2[[#This Row],[رقم الحساب]],Table1[[6]:[النوع]],3,0),\"\"),\"\")","v":"تكلفة مردود المبيعات سنوات سابقه"},{"$f":"IFERROR(IF(Table2[[#This Row],[رقم الحساب]]<>\"\",VLOOKUP(Table2[[#This Row],[رقم الحساب]],Table1[[6]:[النوع]],4,0),\"\"),\"\")","v":"أرباح وخسائر"}]
[{"$f":"IFERROR(INDEX(Table1[6],MATCH(0,IF(ISBLANK(Table1[6]),1,COUNTIF($A$3:A141,Table1[6])),0)),\"\")","v":312301002},{"$f":"IFERROR(IF(Table2[[#This Row],[رقم الحساب]]<>\"\",VLOOKUP(Table2[[#This Row],[رقم الحساب]],Table1[[6]:[النوع]],3,0),\"\"),\"\")","v":"مردود مبيعات سنوات سابقة"},{"$f":"IFERROR(IF(Table2[[#This Row],[رقم الحساب]]<>\"\",VLOOKUP(Table2[[#This Row],[رقم الحساب]],Table1[[6]:[النوع]],4,0),\"\"),\"\")","v":"أرباح وخسائر"}]
[{"$f":"IFERROR(INDEX(Table1[6],MATCH(0,IF(ISBLANK(Table1[6]),1,COUNTIF($A$3:A142,Table1[6])),0)),\"\")","v":312401001},{"$f":"IFERROR(IF(Table2[[#This Row],[رقم الحساب]]<>\"\",VLOOKUP(Table2[[#This Row],[رقم الحساب]],Table1[[6]:[النوع]],3,0),\"\"),\"\")","v":"الخصم المسموح به"},{"$f":"IFERROR(IF(Table2[[#This Row],[رقم الحساب]]<>\"\",VLOOKUP(Table2[[#This Row],[رقم الحساب]],Table1[[6]:[النوع]],4,0),\"\"),\"\")","v":"أرباح وخسائر"}]
[{"$f":"IFERROR(INDEX(Table1[6],MATCH(0,IF(ISBLANK(Table1[6]),1,COUNTIF($A$3:A143,Table1[6])),0)),\"\")","v":312501001},{"$f":"IFERROR(IF(Table2[[#This Row],[رقم الحساب]]<>\"\",VLOOKUP(Table2[[#This Row],[رقم الحساب]],Table1[[6]:[النوع]],3,0),\"\"),\"\")","v":"تسوية المخزون"},{"$f":"IFERROR(IF(Table2[[#This Row],[رقم الحساب]]<>\"\",VLOOKUP(Table2[[#This Row],[رقم الحساب]],Table1[[6]:[النوع]],4,0),\"\"),\"\")","v":"أرباح وخسائر"}]
[{"$f":"IFERROR(INDEX(Table1[6],MATCH(0,IF(ISBLANK(Table1[6]),1,COUNTIF($A$3:A144,Table1[6])),0)),\"\")","v":31311008},{"$f":"IFERROR(IF(Table2[[#This Row],[رقم الحساب]]<>\"\",VLOOKUP(Table2[[#This Row],[رقم الحساب]],Table1[[6]:[النوع]],3,0),\"\"),\"\")","v":"مشتريات رخام"},{"$f":"IFERROR(IF(Table2[[#This Row],[رقم الحساب]]<>\"\",VLOOKUP(Table2[[#This Row],[رقم الحساب]],Table1[[6]:[النوع]],4,0),\"\"),\"\")","v":"أرباح وخسائر"}]
[{"$f":"IFERROR(INDEX(Table1[6],MATCH(0,IF(ISBLANK(Table1[6]),1,COUNTIF($A$3:A145,Table1[6])),0)),\"\")","v":31311030},{"$f":"IFERROR(IF(Table2[[#This Row],[رقم الحساب]]<>\"\",VLOOKUP(Table2[[#This Row],[رقم الحساب]],Table1[[6]:[النوع]],3,0),\"\"),\"\")","v":"مشتريات مستلزمات الامن والسلامه"},{"$f":"IFERROR(IF(Table2[[#This Row],[رقم الحساب]]<>\"\",VLOOKUP(Table2[[#This Row],[رقم الحساب]],Table1[[6]:[النوع]],4,0),\"\"),\"\")","v":"أرباح وخسائر"}]
[{"$f":"IFERROR(INDEX(Table1[6],MATCH(0,IF(ISBLANK(Table1[6]),1,COUNTIF($A$3:A146,Table1[6])),0)),\"\")","v":31311028},{"$f":"IFERROR(IF(Table2[[#This Row],[رقم الحساب]]<>\"\",VLOOKUP(Table2[[#This Row],[رقم الحساب]],Table1[[6]:[النوع]],3,0),\"\"),\"\")","v":"مستلزمات الامن والسلامه"},{"$f":"IFERROR(IF(Table2[[#This Row],[رقم الحساب]]<>\"\",VLOOKUP(Table2[[#This Row],[رقم الحساب]],Table1[[6]:[النوع]],4,0),\"\"),\"\")","v":"أرباح وخسائر"}]
[{"$f":"IFERROR(INDEX(Table1[6],MATCH(0,IF(ISBLANK(Table1[6]),1,COUNTIF($A$3:A147,Table1[6])),0)),\"\")","v":31311018},{"$f":"IFERROR(IF(Table2[[#This Row],[رقم الحساب]]<>\"\",VLOOKUP(Table2[[#This Row],[رقم الحساب]],Table1[[6]:[النوع]],3,0),\"\"),\"\")","v":"مشتريات جبس"},{"$f":"IFERROR(IF(Table2[[#This Row],[رقم الحساب]]<>\"\",VLOOKUP(Table2[[#This Row],[رقم الحساب]],Table1[[6]:[النوع]],4,0),\"\"),\"\")","v":"أرباح وخسائر"}]
[{"$f":"IFERROR(INDEX(Table1[6],MATCH(0,IF(ISBLANK(Table1[6]),1,COUNTIF($A$3:A148,Table1[6])),0)),\"\")","v":31311003},{"$f":"IFERROR(IF(Table2[[#This Row],[رقم الحساب]]<>\"\",VLOOKUP(Table2[[#This Row],[رقم الحساب]],Table1[[6]:[النوع]],3,0),\"\"),\"\")","v":"مشتريات خرسانة"},{"$f":"IFERROR(IF(Table2[[#This Row],[رقم الحساب]]<>\"\",VLOOKUP(Table2[[#This Row],[رقم الحساب]],Table1[[6]:[النوع]],4,0),\"\"),\"\")","v":"أرباح وخسائر"}]
[{"$f":"IFERROR(INDEX(Table1[6],MATCH(0,IF(ISBLANK(Table1[6]),1,COUNTIF($A$3:A149,Table1[6])),0)),\"\")","v":31311006},{"$f":"IFERROR(IF(Table2[[#This Row],[رقم الحساب]]<>\"\",VLOOKUP(Table2[[#This Row],[رقم الحساب]],Table1[[6]:[النوع]],3,0),\"\"),\"\")","v":"مشتريات مواد دهان"},{"$f":"IFERROR(IF(Table2[[#This Row],[رقم الحساب]]<>\"\",VLOOKUP(Table2[[#This Row],[رقم الحساب]],Table1[[6]:[النوع]],4,0),\"\"),\"\")","v":"أرباح وخسائر"}]
[{"$f":"IFERROR(INDEX(Table1[6],MATCH(0,IF(ISBLANK(Table1[6]),1,COUNTIF($A$3:A150,Table1[6])),0)),\"\")","v":31311002},{"$f":"IFERROR(IF(Table2[[#This Row],[رقم الحساب]]<>\"\",VLOOKUP(Table2[[#This Row],[رقم الحساب]],Table1[[6]:[النوع]],3,0),\"\"),\"\")","v":"مشتريات بطحاء"},{"$f":"IFERROR(IF(Table2[[#This Row],[رقم الحساب]]<>\"\",VLOOKUP(Table2[[#This Row],[رقم الحساب]],Table1[[6]:[النوع]],4,0),\"\"),\"\")","v":"أرباح وخسائر"}]
[{"$f":"IFERROR(INDEX(Table1[6],MATCH(0,IF(ISBLANK(Table1[6]),1,COUNTIF($A$3:A151,Table1[6])),0)),\"\")","v":31311020},{"$f":"IFERROR(IF(Table2[[#This Row],[رقم الحساب]]<>\"\",VLOOKUP(Table2[[#This Row],[رقم الحساب]],Table1[[6]:[النوع]],3,0),\"\"),\"\")","v":"مشتريات بلك احمر"},{"$f":"IFERROR(IF(Table2[[#This Row],[رقم الحساب]]<>\"\",VLOOKUP(Table2[[#This Row],[رقم الحساب]],Table1[[6]:[النوع]],4,0),\"\"),\"\")","v":"أرباح وخسائر"}]
[{"$f":"IFERROR(INDEX(Table1[6],MATCH(0,IF(ISBLANK(Table1[6]),1,COUNTIF($A$3:A152,Table1[6])),0)),\"\")","v":31311013},{"$f":"IFERROR(IF(Table2[[#This Row],[رقم الحساب]]<>\"\",VLOOKUP(Table2[[#This Row],[رقم الحساب]],Table1[[6]:[النوع]],3,0),\"\"),\"\")","v":"مستلزمات وادوات للياسة"},{"$f":"IFERROR(IF(Table2[[#This Row],[رقم الحساب]]<>\"\",VLOOKUP(Table2[[#This Row],[رقم الحساب]],Table1[[6]:[النوع]],4,0),\"\"),\"\")","v":"أرباح وخسائر"}]
[{"$f":"IFERROR(INDEX(Table1[6],MATCH(0,IF(ISBLANK(Table1[6]),1,COUNTIF($A$3:A153,Table1[6])),0)),\"\")","v":31311021},{"$f":"IFERROR(IF(Table2[[#This Row],[رقم الحساب]]<>\"\",VLOOKUP(Table2[[#This Row],[رقم الحساب]],Table1[[6]:[النوع]],3,0),\"\"),\"\")","v":"مشتريات بلك اسمنتي"},{"$f":"IFERROR(IF(Table2[[#This Row],[رقم الحساب]]<>\"\",VLOOKUP(Table2[[#This Row],[رقم الحساب]],Table1[[6]:[النوع]],4,0),\"\"),\"\")","v":"أرباح وخسائر"}]
[{"$f":"IFERROR(INDEX(Table1[6],MATCH(0,IF(ISBLANK(Table1[6]),1,COUNTIF($A$3:A154,Table1[6])),0)),\"\")","v":31311019},{"$f":"IFERROR(IF(Table2[[#This Row],[رقم الحساب]]<>\"\",VLOOKUP(Table2[[#This Row],[رقم الحساب]],Table1[[6]:[النوع]],3,0),\"\"),\"\")","v":"مستلزمات وادوات للدهان"},{"$f":"IFERROR(IF(Table2[[#This Row],[رقم الحساب]]<>\"\",VLOOKUP(Table2[[#This Row],[رقم الحساب]],Table1[[6]:[النوع]],4,0),\"\"),\"\")","v":"أرباح وخسائر"}]
[{"$f":"IFERROR(INDEX(Table1[6],MATCH(0,IF(ISBLANK(Table1[6]),1,COUNTIF($A$3:A155,Table1[6])),0)),\"\")","v":31311017},{"$f":"IFERROR(IF(Table2[[#This Row],[رقم الحساب]]<>\"\",VLOOKUP(Table2[[#This Row],[رقم الحساب]],Table1[[6]:[النوع]],3,0),\"\"),\"\")","v":"مستلزمات واكسسورات ابواب"},{"$f":"IFERROR(IF(Table2[[#This Row],[رقم الحساب]]<>\"\",VLOOKUP(Table2[[#This Row],[رقم الحساب]],Table1[[6]:[النوع]],4,0),\"\"),\"\")","v":"أرباح وخسائر"}]
[{"$f":"IFERROR(INDEX(Table1[6],MATCH(0,IF(ISBLANK(Table1[6]),1,COUNTIF($A$3:A156,Table1[6])),0)),\"\")","v":31311010},{"$f":"IFERROR(IF(Table2[[#This Row],[رقم الحساب]]<>\"\",VLOOKUP(Table2[[#This Row],[رقم الحساب]],Table1[[6]:[النوع]],3,0),\"\"),\"\")","v":"مشتريات مواد عزل"},{"$f":"IFERROR(IF(Table2[[#This Row],[رقم الحساب]]<>\"\",VLOOKUP(Table2[[#This Row],[رقم الحساب]],Table1[[6]:[النوع]],4,0),\"\"),\"\")","v":"أرباح وخسائر"}]
[{"$f":"IFERROR(INDEX(Table1[6],MATCH(0,IF(ISBLANK(Table1[6]),1,COUNTIF($A$3:A157,Table1[6])),0)),\"\")","v":31311005},{"$f":"IFERROR(IF(Table2[[#This Row],[رقم الحساب]]<>\"\",VLOOKUP(Table2[[#This Row],[رقم الحساب]],Table1[[6]:[النوع]],3,0),\"\"),\"\")","v":"مشتريات مواد كهرباء"},{"$f":"IFERROR(IF(Table2[[#This Row],[رقم الحساب]]<>\"\",VLOOKUP(Table2[[#This Row],[رقم الحساب]],Table1[[6]:[النوع]],4,0),\"\"),\"\")","v":"أرباح وخسائر"}]
[{"$f":"IFERROR(INDEX(Table1[6],MATCH(0,IF(ISBLANK(Table1[6]),1,COUNTIF($A$3:A158,Table1[6])),0)),\"\")","v":31311001},{"$f":"IFERROR(IF(Table2[[#This Row],[رقم الحساب]]<>\"\",VLOOKUP(Table2[[#This Row],[رقم الحساب]],Table1[[6]:[النوع]],3,0),\"\"),\"\")","v":"مشتريات حديد"},{"$f":"IFERROR(IF(Table2[[#This Row],[رقم الحساب]]<>\"\",VLOOKUP(Table2[[#This Row],[رقم الحساب]],Table1[[6]:[النوع]],4,0),\"\"),\"\")","v":"أرباح وخسائر"}]
[{"$f":"IFERROR(INDEX(Table1[6],MATCH(0,IF(ISBLANK(Table1[6]),1,COUNTIF($A$3:A159,Table1[6])),0)),\"\")","v":31311015},{"$f":"IFERROR(IF(Table2[[#This Row],[رقم الحساب]]<>\"\",VLOOKUP(Table2[[#This Row],[رقم الحساب]],Table1[[6]:[النوع]],3,0),\"\"),\"\")","v":"مستلزمات ومواد بناء"},{"$f":"IFERROR(IF(Table2[[#This Row],[رقم الحساب]]<>\"\",VLOOKUP(Table2[[#This Row],[رقم الحساب]],Table1[[6]:[النوع]],4,0),\"\"),\"\")","v":"أرباح وخسائر"}]
[{"$f":"IFERROR(INDEX(Table1[6],MATCH(0,IF(ISBLANK(Table1[6]),1,COUNTIF($A$3:A160,Table1[6])),0)),\"\")","v":31311024},{"$f":"IFERROR(IF(Table2[[#This Row],[رقم الحساب]]<>\"\",VLOOKUP(Table2[[#This Row],[رقم الحساب]],Table1[[6]:[النوع]],3,0),\"\"),\"\")","v":"مشتريات ومستلزمات بوستيشن"},{"$f":"IFERROR(IF(Table2[[#This Row],[رقم الحساب]]<>\"\",VLOOKUP(Table2[[#This Row],[رقم الحساب]],Table1[[6]:[النوع]],4,0),\"\"),\"\")","v":"أرباح وخسائر"}]
[{"$f":"IFERROR(INDEX(Table1[6],MATCH(0,IF(ISBLANK(Table1[6]),1,COUNTIF($A$3:A161,Table1[6])),0)),\"\")","v":31311031},{"$f":"IFERROR(IF(Table2[[#This Row],[رقم الحساب]]<>\"\",VLOOKUP(Table2[[#This Row],[رقم الحساب]],Table1[[6]:[النوع]],3,0),\"\"),\"\")","v":"مردودات المشتريات"},{"$f":"IFERROR(IF(Table2[[#This Row],[رقم الحساب]]<>\"\",VLOOKUP(Table2[[#This Row],[رقم الحساب]],Table1[[6]:[النوع]],4,0),\"\"),\"\")","v":"أرباح وخسائر"}]
[{"$f":"IFERROR(INDEX(Table1[6],MATCH(0,IF(ISBLANK(Table1[6]),1,COUNTIF($A$3:A162,Table1[6])),0)),\"\")","v":31311026},{"$f":"IFERROR(IF(Table2[[#This Row],[رقم الحساب]]<>\"\",VLOOKUP(Table2[[#This Row],[رقم الحساب]],Table1[[6]:[النوع]],3,0),\"\"),\"\")","v":"توريد وتركيب مكيفات مركزية"},{"$f":"IFERROR(IF(Table2[[#This Row],[رقم الحساب]]<>\"\",VLOOKUP(Table2[[#This Row],[رقم الحساب]],Table1[[6]:[النوع]],4,0),\"\"),\"\")","v":"أرباح وخسائر"}]
[{"$f":"IFERROR(INDEX(Table1[6],MATCH(0,IF(ISBLANK(Table1[6]),1,COUNTIF($A$3:A163,Table1[6])),0)),\"\")","v":31311012},{"$f":"IFERROR(IF(Table2[[#This Row],[رقم الحساب]]<>\"\",VLOOKUP(Table2[[#This Row],[رقم الحساب]],Table1[[6]:[النوع]],3,0),\"\"),\"\")","v":"مستلزمات وادوات للسيراميك"},{"$f":"IFERROR(IF(Table2[[#This Row],[رقم الحساب]]<>\"\",VLOOKUP(Table2[[#This Row],[رقم الحساب]],Table1[[6]:[النوع]],4,0),\"\"),\"\")","v":"أرباح وخسائر"}]
[{"$f":"IFERROR(INDEX(Table1[6],MATCH(0,IF(ISBLANK(Table1[6]),1,COUNTIF($A$3:A164,Table1[6])),0)),\"\")","v":31311022},{"$f":"IFERROR(IF(Table2[[#This Row],[رقم الحساب]]<>\"\",VLOOKUP(Table2[[#This Row],[رقم الحساب]],Table1[[6]:[النوع]],3,0),\"\"),\"\")","v":"محروقات للمشاريع"},{"$f":"IFERROR(IF(Table2[[#This Row],[رقم الحساب]]<>\"\",VLOOKUP(Table2[[#This Row],[رقم الحساب]],Table1[[6]:[النوع]],4,0),\"\"),\"\")","v":"أرباح وخسائر"}]
[{"$f":"IFERROR(INDEX(Table1[6],MATCH(0,IF(ISBLANK(Table1[6]),1,COUNTIF($A$3:A165,Table1[6])),0)),\"\")","v":31311016},{"$f":"IFERROR(IF(Table2[[#This Row],[رقم الحساب]]<>\"\",VLOOKUP(Table2[[#This Row],[رقم الحساب]],Table1[[6]:[النوع]],3,0),\"\"),\"\")","v":"عدد وادوات مستهلكة"},{"$f":"IFERROR(IF(Table2[[#This Row],[رقم الحساب]]<>\"\",VLOOKUP(Table2[[#This Row],[رقم الحساب]],Table1[[6]:[النوع]],4,0),\"\"),\"\")","v":"أرباح وخسائر"}]
[{"$f":"IFERROR(INDEX(Table1[6],MATCH(0,IF(ISBLANK(Table1[6]),1,COUNTIF($A$3:A166,Table1[6])),0)),\"\")","v":31311004},{"$f":"IFERROR(IF(Table2[[#This Row],[رقم الحساب]]<>\"\",VLOOKUP(Table2[[#This Row],[رقم الحساب]],Table1[[6]:[النوع]],3,0),\"\"),\"\")","v":"مشتريات مواد سباكة"},{"$f":"IFERROR(IF(Table2[[#This Row],[رقم الحساب]]<>\"\",VLOOKUP(Table2[[#This Row],[رقم الحساب]],Table1[[6]:[النوع]],4,0),\"\"),\"\")","v":"أرباح وخسائر"}]
[{"$f":"IFERROR(INDEX(Table1[6],MATCH(0,IF(ISBLANK(Table1[6]),1,COUNTIF($A$3:A167,Table1[6])),0)),\"\")","v":31311014},{"$f":"IFERROR(IF(Table2[[#This Row],[رقم الحساب]]<>\"\",VLOOKUP(Table2[[#This Row],[رقم الحساب]],Table1[[6]:[النوع]],3,0),\"\"),\"\")","v":"مستلزمات وادوات للرخام"},{"$f":"IFERROR(IF(Table2[[#This Row],[رقم الحساب]]<>\"\",VLOOKUP(Table2[[#This Row],[رقم الحساب]],Table1[[6]:[النوع]],4,0),\"\"),\"\")","v":"أرباح وخسائر"}]
[{"$f":"IFERROR(INDEX(Table1[6],MATCH(0,IF(ISBLANK(Table1[6]),1,COUNTIF($A$3:A168,Table1[6])),0)),\"\")","v":31311029},{"$f":"IFERROR(IF(Table2[[#This Row],[رقم الحساب]]<>\"\",VLOOKUP(Table2[[#This Row],[رقم الحساب]],Table1[[6]:[النوع]],3,0),\"\"),\"\")","v":"مشتريات مياه للمشاريع"},{"$f":"IFERROR(IF(Table2[[#This Row],[رقم الحساب]]<>\"\",VLOOKUP(Table2[[#This Row],[رقم الحساب]],Table1[[6]:[النوع]],4,0),\"\"),\"\")","v":"أرباح وخسائر"}]
[{"$f":"IFERROR(INDEX(Table1[6],MATCH(0,IF(ISBLANK(Table1[6]),1,COUNTIF($A$3:A169,Table1[6])),0)),\"\")","v":31311027},{"$f":"IFERROR(IF(Table2[[#This Row],[رقم الحساب]]<>\"\",VLOOKUP(Table2[[#This Row],[رقم الحساب]],Table1[[6]:[النوع]],3,0),\"\"),\"\")","v":"توريد وتركيب صاجات وفلنشات وزوايا"},{"$f":"IFERROR(IF(Table2[[#This Row],[رقم الحساب]]<>\"\",VLOOKUP(Table2[[#This Row],[رقم الحساب]],Table1[[6]:[النوع]],4,0),\"\"),\"\")","v":"أرباح وخسائر"}]
[{"$f":"IFERROR(INDEX(Table1[6],MATCH(0,IF(ISBLANK(Table1[6]),1,COUNTIF($A$3:A170,Table1[6])),0)),\"\")","v":31311009},{"$f":"IFERROR(IF(Table2[[#This Row],[رقم الحساب]]<>\"\",VLOOKUP(Table2[[#This Row],[رقم الحساب]],Table1[[6]:[النوع]],3,0),\"\"),\"\")","v":"مشتريات اسمنت"},{"$f":"IFERROR(IF(Table2[[#This Row],[رقم الحساب]]<>\"\",VLOOKUP(Table2[[#This Row],[رقم الحساب]],Table1[[6]:[النوع]],4,0),\"\"),\"\")","v":"أرباح وخسائر"}]
[{"$f":"IFERROR(INDEX(Table1[6],MATCH(0,IF(ISBLANK(Table1[6]),1,COUNTIF($A$3:A171,Table1[6])),0)),\"\")","v":31311007},{"$f":"IFERROR(IF(Table2[[#This Row],[رقم الحساب]]<>\"\",VLOOKUP(Table2[[#This Row],[رقم الحساب]],Table1[[6]:[النوع]],3,0),\"\"),\"\")","v":"مشتريات بلاط وسيراميك"},{"$f":"IFERROR(IF(Table2[[#This Row],[رقم الحساب]]<>\"\",VLOOKUP(Table2[[#This Row],[رقم الحساب]],Table1[[6]:[النوع]],4,0),\"\"),\"\")","v":"أرباح وخسائر"}]
[{"$f":"IFERROR(INDEX(Table1[6],MATCH(0,IF(ISBLANK(Table1[6]),1,COUNTIF($A$3:A172,Table1[6])),0)),\"\")","v":31311025},{"$f":"IFERROR(IF(Table2[[#This Row],[رقم الحساب]]<>\"\",VLOOKUP(Table2[[#This Row],[رقم الحساب]],Table1[[6]:[النوع]],3,0),\"\"),\"\")","v":"مستلزمات وادوات للجبس"},{"$f":"IFERROR(IF(Table2[[#This Row],[رقم الحساب]]<>\"\",VLOOKUP(Table2[[#This Row],[رقم الحساب]],Table1[[6]:[النوع]],4,0),\"\"),\"\")","v":"أرباح وخسائر"}]
[{"$f":"IFERROR(INDEX(Table1[6],MATCH(0,IF(ISBLANK(Table1[6]),1,COUNTIF($A$3:A173,Table1[6])),0)),\"\")","v":31311011},{"$f":"IFERROR(IF(Table2[[#This Row],[رقم الحساب]]<>\"\",VLOOKUP(Table2[[#This Row],[رقم الحساب]],Table1[[6]:[النوع]],3,0),\"\"),\"\")","v":"مشتريات بيوت تكييف"},{"$f":"IFERROR(IF(Table2[[#This Row],[رقم الحساب]]<>\"\",VLOOKUP(Table2[[#This Row],[رقم الحساب]],Table1[[6]:[النوع]],4,0),\"\"),\"\")","v":"أرباح وخسائر"}]
[{"$f":"IFERROR(INDEX(Table1[6],MATCH(0,IF(ISBLANK(Table1[6]),1,COUNTIF($A$3:A174,Table1[6])),0)),\"\")","v":31311023},{"$f":"IFERROR(IF(Table2[[#This Row],[رقم الحساب]]<>\"\",VLOOKUP(Table2[[#This Row],[رقم الحساب]],Table1[[6]:[النوع]],3,0),\"\"),\"\")","v":"نثرية للمشاريع"},{"$f":"IFERROR(IF(Table2[[#This Row],[رقم الحساب]]<>\"\",VLOOKUP(Table2[[#This Row],[رقم الحساب]],Table1[[6]:[النوع]],4,0),\"\"),\"\")","v":"أرباح وخسائر"}]
[{"$f":"IFERROR(INDEX(Table1[6],MATCH(0,IF(ISBLANK(Table1[6]),1,COUNTIF($A$3:A175,Table1[6])),0)),\"\")","v":31312017},{"$f":"IFERROR(IF(Table2[[#This Row],[رقم الحساب]]<>\"\",VLOOKUP(Table2[[#This Row],[رقم الحساب]],Table1[[6]:[النوع]],3,0),\"\"),\"\")","v":"اعمال تكسير وتخريم"},{"$f":"IFERROR(IF(Table2[[#This Row],[رقم الحساب]]<>\"\",VLOOKUP(Table2[[#This Row],[رقم الحساب]],Table1[[6]:[النوع]],4,0),\"\"),\"\")","v":"أرباح وخسائر"}]
[{"$f":"IFERROR(INDEX(Table1[6],MATCH(0,IF(ISBLANK(Table1[6]),1,COUNTIF($A$3:A176,Table1[6])),0)),\"\")","v":31312018},{"$f":"IFERROR(IF(Table2[[#This Row],[رقم الحساب]]<>\"\",VLOOKUP(Table2[[#This Row],[رقم الحساب]],Table1[[6]:[النوع]],3,0),\"\"),\"\")","v":"اعمال استانلس ستيل"},{"$f":"IFERROR(IF(Table2[[#This Row],[رقم الحساب]]<>\"\",VLOOKUP(Table2[[#This Row],[رقم الحساب]],Table1[[6]:[النوع]],4,0),\"\"),\"\")","v":"أرباح وخسائر"}]
[{"$f":"IFERROR(INDEX(Table1[6],MATCH(0,IF(ISBLANK(Table1[6]),1,COUNTIF($A$3:A177,Table1[6])),0)),\"\")","v":31312024},{"$f":"IFERROR(IF(Table2[[#This Row],[رقم الحساب]]<>\"\",VLOOKUP(Table2[[#This Row],[رقم الحساب]],Table1[[6]:[النوع]],3,0),\"\"),\"\")","v":"اعمال تشطيب"},{"$f":"IFERROR(IF(Table2[[#This Row],[رقم الحساب]]<>\"\",VLOOKUP(Table2[[#This Row],[رقم الحساب]],Table1[[6]:[النوع]],4,0),\"\"),\"\")","v":"أرباح وخسائر"}]
[{"$f":"IFERROR(INDEX(Table1[6],MATCH(0,IF(ISBLANK(Table1[6]),1,COUNTIF($A$3:A178,Table1[6])),0)),\"\")","v":31312031},{"$f":"IFERROR(IF(Table2[[#This Row],[رقم الحساب]]<>\"\",VLOOKUP(Table2[[#This Row],[رقم الحساب]],Table1[[6]:[النوع]],3,0),\"\"),\"\")","v":"ايجار سقالات"},{"$f":"IFERROR(IF(Table2[[#This Row],[رقم الحساب]]<>\"\",VLOOKUP(Table2[[#This Row],[رقم الحساب]],Table1[[6]:[النوع]],4,0),\"\"),\"\")","v":"أرباح وخسائر"}]
[{"$f":"IFERROR(INDEX(Table1[6],MATCH(0,IF(ISBLANK(Table1[6]),1,COUNTIF($A$3:A179,Table1[6])),0)),\"\")","v":31312001},{"$f":"IFERROR(IF(Table2[[#This Row],[رقم الحساب]]<>\"\",VLOOKUP(Table2[[#This Row],[رقم الحساب]],Table1[[6]:[النوع]],3,0),\"\"),\"\")","v":"أعمال حدادة مسلحة"},{"$f":"IFERROR(IF(Table2[[#This Row],[رقم الحساب]]<>\"\",VLOOKUP(Table2[[#This Row],[رقم الحساب]],Table1[[6]:[النوع]],4,0),\"\"),\"\")","v":"أرباح وخسائر"}]
[{"$f":"IFERROR(INDEX(Table1[6],MATCH(0,IF(ISBLANK(Table1[6]),1,COUNTIF($A$3:A180,Table1[6])),0)),\"\")","v":31312030},{"$f":"IFERROR(IF(Table2[[#This Row],[رقم الحساب]]<>\"\",VLOOKUP(Table2[[#This Row],[رقم الحساب]],Table1[[6]:[النوع]],3,0),\"\"),\"\")","v":"اعمال تشوين"},{"$f":"IFERROR(IF(Table2[[#This Row],[رقم الحساب]]<>\"\",VLOOKUP(Table2[[#This Row],[رقم الحساب]],Table1[[6]:[النوع]],4,0),\"\"),\"\")","v":"أرباح وخسائر"}]
[{"$f":"IFERROR(INDEX(Table1[6],MATCH(0,IF(ISBLANK(Table1[6]),1,COUNTIF($A$3:A181,Table1[6])),0)),\"\")","v":31312003},{"$f":"IFERROR(IF(Table2[[#This Row],[رقم الحساب]]<>\"\",VLOOKUP(Table2[[#This Row],[رقم الحساب]],Table1[[6]:[النوع]],3,0),\"\"),\"\")","v":"اعمال مباني"},{"$f":"IFERROR(IF(Table2[[#This Row],[رقم الحساب]]<>\"\",VLOOKUP(Table2[[#This Row],[رقم الحساب]],Table1[[6]:[النوع]],4,0),\"\"),\"\")","v":"أرباح وخسائر"}]
[{"$f":"IFERROR(INDEX(Table1[6],MATCH(0,IF(ISBLANK(Table1[6]),1,COUNTIF($A$3:A182,Table1[6])),0)),\"\")","v":31312015},{"$f":"IFERROR(IF(Table2[[#This Row],[رقم الحساب]]<>\"\",VLOOKUP(Table2[[#This Row],[رقم الحساب]],Table1[[6]:[النوع]],3,0),\"\"),\"\")","v":"اعمال حجر الواجهة"},{"$f":"IFERROR(IF(Table2[[#This Row],[رقم الحساب]]<>\"\",VLOOKUP(Table2[[#This Row],[رقم الحساب]],Table1[[6]:[النوع]],4,0),\"\"),\"\")","v":"أرباح وخسائر"}]
[{"$f":"IFERROR(INDEX(Table1[6],MATCH(0,IF(ISBLANK(Table1[6]),1,COUNTIF($A$3:A183,Table1[6])),0)),\"\")","v":31312021},{"$f":"IFERROR(IF(Table2[[#This Row],[رقم الحساب]]<>\"\",VLOOKUP(Table2[[#This Row],[رقم الحساب]],Table1[[6]:[النوع]],3,0),\"\"),\"\")","v":"اعمال مساحة"},{"$f":"IFERROR(IF(Table2[[#This Row],[رقم الحساب]]<>\"\",VLOOKUP(Table2[[#This Row],[رقم الحساب]],Table1[[6]:[النوع]],4,0),\"\"),\"\")","v":"أرباح وخسائر"}]
[{"$f":"IFERROR(INDEX(Table1[6],MATCH(0,IF(ISBLANK(Table1[6]),1,COUNTIF($A$3:A184,Table1[6])),0)),\"\")","v":31312025},{"$f":"IFERROR(IF(Table2[[#This Row],[رقم الحساب]]<>\"\",VLOOKUP(Table2[[#This Row],[رقم الحساب]],Table1[[6]:[النوع]],3,0),\"\"),\"\")","v":"اعمال حفر وردم وترحيل دمار"},{"$f":"IFERROR(IF(Table2[[#This Row],[رقم الحساب]]<>\"\",VLOOKUP(Table2[[#This Row],[رقم الحساب]],Table1[[6]:[النوع]],4,0),\"\"),\"\")","v":"أرباح وخسائر"}]
[{"$f":"IFERROR(INDEX(Table1[6],MATCH(0,IF(ISBLANK(Table1[6]),1,COUNTIF($A$3:A185,Table1[6])),0)),\"\")","v":31312008},{"$f":"IFERROR(IF(Table2[[#This Row],[رقم الحساب]]<>\"\",VLOOKUP(Table2[[#This Row],[رقم الحساب]],Table1[[6]:[النوع]],3,0),\"\"),\"\")","v":"اعمال جبس"},{"$f":"IFERROR(IF(Table2[[#This Row],[رقم الحساب]]<>\"\",VLOOKUP(Table2[[#This Row],[رقم الحساب]],Table1[[6]:[النوع]],4,0),\"\"),\"\")","v":"أرباح وخسائر"}]
[{"$f":"IFERROR(INDEX(Table1[6],MATCH(0,IF(ISBLANK(Table1[6]),1,COUNTIF($A$3:A186,Table1[6])),0)),\"\")","v":31312019},{"$f":"IFERROR(IF(Table2[[#This Row],[رقم الحساب]]<>\"\",VLOOKUP(Table2[[#This Row],[رقم الحساب]],Table1[[6]:[النوع]],3,0),\"\"),\"\")","v":"اعمال تمديد مكيفات"},{"$f":"IFERROR(IF(Table2[[#This Row],[رقم الحساب]]<>\"\",VLOOKUP(Table2[[#This Row],[رقم الحساب]],Table1[[6]:[النوع]],4,0),\"\"),\"\")","v":"أرباح وخسائر"}]
[{"$f":"IFERROR(INDEX(Table1[6],MATCH(0,IF(ISBLANK(Table1[6]),1,COUNTIF($A$3:A187,Table1[6])),0)),\"\")","v":31312027},{"$f":"IFERROR(IF(Table2[[#This Row],[رقم الحساب]]<>\"\",VLOOKUP(Table2[[#This Row],[رقم الحساب]],Table1[[6]:[النوع]],3,0),\"\"),\"\")","v":"اعمال ديكور"},{"$f":"IFERROR(IF(Table2[[#This Row],[رقم الحساب]]<>\"\",VLOOKUP(Table2[[#This Row],[رقم الحساب]],Table1[[6]:[النوع]],4,0),\"\"),\"\")","v":"أرباح وخسائر"}]
[{"$f":"IFERROR(INDEX(Table1[6],MATCH(0,IF(ISBLANK(Table1[6]),1,COUNTIF($A$3:A188,Table1[6])),0)),\"\")","v":31312016},{"$f":"IFERROR(IF(Table2[[#This Row],[رقم الحساب]]<>\"\",VLOOKUP(Table2[[#This Row],[رقم الحساب]],Table1[[6]:[النوع]],3,0),\"\"),\"\")","v":"اعمال عزل"},{"$f":"IFERROR(IF(Table2[[#This Row],[رقم الحساب]]<>\"\",VLOOKUP(Table2[[#This Row],[رقم الحساب]],Table1[[6]:[النوع]],4,0),\"\"),\"\")","v":"أرباح وخسائر"}]
[{"$f":"IFERROR(INDEX(Table1[6],MATCH(0,IF(ISBLANK(Table1[6]),1,COUNTIF($A$3:A189,Table1[6])),0)),\"\")","v":31312020},{"$f":"IFERROR(IF(Table2[[#This Row],[رقم الحساب]]<>\"\",VLOOKUP(Table2[[#This Row],[رقم الحساب]],Table1[[6]:[النوع]],3,0),\"\"),\"\")","v":"اعمال رخام"},{"$f":"IFERROR(IF(Table2[[#This Row],[رقم الحساب]]<>\"\",VLOOKUP(Table2[[#This Row],[رقم الحساب]],Table1[[6]:[النوع]],4,0),\"\"),\"\")","v":"أرباح وخسائر"}]
[{"$f":"IFERROR(INDEX(Table1[6],MATCH(0,IF(ISBLANK(Table1[6]),1,COUNTIF($A$3:A190,Table1[6])),0)),\"\")","v":31312026},{"$f":"IFERROR(IF(Table2[[#This Row],[رقم الحساب]]<>\"\",VLOOKUP(Table2[[#This Row],[رقم الحساب]],Table1[[6]:[النوع]],3,0),\"\"),\"\")","v":"اعمال نظافة"},{"$f":"IFERROR(IF(Table2[[#This Row],[رقم الحساب]]<>\"\",VLOOKUP(Table2[[#This Row],[رقم الحساب]],Table1[[6]:[النوع]],4,0),\"\"),\"\")","v":"أرباح وخسائر"}]
[{"$f":"IFERROR(INDEX(Table1[6],MATCH(0,IF(ISBLANK(Table1[6]),1,COUNTIF($A$3:A191,Table1[6])),0)),\"\")","v":31312002},{"$f":"IFERROR(IF(Table2[[#This Row],[رقم الحساب]]<>\"\",VLOOKUP(Table2[[#This Row],[رقم الحساب]],Table1[[6]:[النوع]],3,0),\"\"),\"\")","v":"اعمال نجارة مسلحة"},{"$f":"IFERROR(IF(Table2[[#This Row],[رقم الحساب]]<>\"\",VLOOKUP(Table2[[#This Row],[رقم الحساب]],Table1[[6]:[النوع]],4,0),\"\"),\"\")","v":"أرباح وخسائر"}]
[{"$f":"IFERROR(INDEX(Table1[6],MATCH(0,IF(ISBLANK(Table1[6]),1,COUNTIF($A$3:A192,Table1[6])),0)),\"\")","v":31312005},{"$f":"IFERROR(IF(Table2[[#This Row],[رقم الحساب]]<>\"\",VLOOKUP(Table2[[#This Row],[رقم الحساب]],Table1[[6]:[النوع]],3,0),\"\"),\"\")","v":"اعمال كهرباء"},{"$f":"IFERROR(IF(Table2[[#This Row],[رقم الحساب]]<>\"\",VLOOKUP(Table2[[#This Row],[رقم الحساب]],Table1[[6]:[النوع]],4,0),\"\"),\"\")","v":"أرباح وخسائر"}]
[{"$f":"IFERROR(INDEX(Table1[6],MATCH(0,IF(ISBLANK(Table1[6]),1,COUNTIF($A$3:A193,Table1[6])),0)),\"\")","v":31312006},{"$f":"IFERROR(IF(Table2[[#This Row],[رقم الحساب]]<>\"\",VLOOKUP(Table2[[#This Row],[رقم الحساب]],Table1[[6]:[النوع]],3,0),\"\"),\"\")","v":"اعمال دهان"},{"$f":"IFERROR(IF(Table2[[#This Row],[رقم الحساب]]<>\"\",VLOOKUP(Table2[[#This Row],[رقم الحساب]],Table1[[6]:[النوع]],4,0),\"\"),\"\")","v":"أرباح وخسائر"}]
[{"$f":"IFERROR(INDEX(Table1[6],MATCH(0,IF(ISBLANK(Table1[6]),1,COUNTIF($A$3:A194,Table1[6])),0)),\"\")","v":31312007},{"$f":"IFERROR(IF(Table2[[#This Row],[رقم الحساب]]<>\"\",VLOOKUP(Table2[[#This Row],[رقم الحساب]],Table1[[6]:[النوع]],3,0),\"\"),\"\")","v":"اعمال بلاط وسيراميك"},{"$f":"IFERROR(IF(Table2[[#This Row],[رقم الحساب]]<>\"\",VLOOKUP(Table2[[#This Row],[رقم الحساب]],Table1[[6]:[النوع]],4,0),\"\"),\"\")","v":"أرباح وخسائر"}]
[{"$f":"IFERROR(INDEX(Table1[6],MATCH(0,IF(ISBLANK(Table1[6]),1,COUNTIF($A$3:A195,Table1[6])),0)),\"\")","v":31312014},{"$f":"IFERROR(IF(Table2[[#This Row],[رقم الحساب]]<>\"\",VLOOKUP(Table2[[#This Row],[رقم الحساب]],Table1[[6]:[النوع]],3,0),\"\"),\"\")","v":"اعمال زجاج اسكريت"},{"$f":"IFERROR(IF(Table2[[#This Row],[رقم الحساب]]<>\"\",VLOOKUP(Table2[[#This Row],[رقم الحساب]],Table1[[6]:[النوع]],4,0),\"\"),\"\")","v":"أرباح وخسائر"}]
[{"$f":"IFERROR(INDEX(Table1[6],MATCH(0,IF(ISBLANK(Table1[6]),1,COUNTIF($A$3:A196,Table1[6])),0)),\"\")","v":31312032},{"$f":"IFERROR(IF(Table2[[#This Row],[رقم الحساب]]<>\"\",VLOOKUP(Table2[[#This Row],[رقم الحساب]],Table1[[6]:[النوع]],3,0),\"\"),\"\")","v":"اعمال مقاولة"},{"$f":"IFERROR(IF(Table2[[#This Row],[رقم الحساب]]<>\"\",VLOOKUP(Table2[[#This Row],[رقم الحساب]],Table1[[6]:[النوع]],4,0),\"\"),\"\")","v":"أرباح وخسائر"}]
[{"$f":"IFERROR(INDEX(Table1[6],MATCH(0,IF(ISBLANK(Table1[6]),1,COUNTIF($A$3:A197,Table1[6])),0)),\"\")","v":31312004},{"$f":"IFERROR(IF(Table2[[#This Row],[رقم الحساب]]<>\"\",VLOOKUP(Table2[[#This Row],[رقم الحساب]],Table1[[6]:[النوع]],3,0),\"\"),\"\")","v":"اعمال لياسة"},{"$f":"IFERROR(IF(Table2[[#This Row],[رقم الحساب]]<>\"\",VLOOKUP(Table2[[#This Row],[رقم الحساب]],Table1[[6]:[النوع]],4,0),\"\"),\"\")","v":"أرباح وخسائر"}]
[{"$f":"IFERROR(INDEX(Table1[6],MATCH(0,IF(ISBLANK(Table1[6]),1,COUNTIF($A$3:A198,Table1[6])),0)),\"\")","v":31312012},{"$f":"IFERROR(IF(Table2[[#This Row],[رقم الحساب]]<>\"\",VLOOKUP(Table2[[#This Row],[رقم الحساب]],Table1[[6]:[النوع]],3,0),\"\"),\"\")","v":"اعمال نجارة ابواب"},{"$f":"IFERROR(IF(Table2[[#This Row],[رقم الحساب]]<>\"\",VLOOKUP(Table2[[#This Row],[رقم الحساب]],Table1[[6]:[النوع]],4,0),\"\"),\"\")","v":"أرباح وخسائر"}]
[{"$f":"IFERROR(INDEX(Table1[6],MATCH(0,IF(ISBLANK(Table1[6]),1,COUNTIF($A$3:A199,Table1[6])),0)),\"\")","v":31312022},{"$f":"IFERROR(IF(Table2[[#This Row],[رقم الحساب]]<>\"\",VLOOKUP(Table2[[#This Row],[رقم الحساب]],Table1[[6]:[النوع]],3,0),\"\"),\"\")","v":"اعمال ورسومات هندسية"},{"$f":"IFERROR(IF(Table2[[#This Row],[رقم الحساب]]<>\"\",VLOOKUP(Table2[[#This Row],[رقم الحساب]],Table1[[6]:[النوع]],4,0),\"\"),\"\")","v":"أرباح وخسائر"}]
[{"$f":"IFERROR(INDEX(Table1[6],MATCH(0,IF(ISBLANK(Table1[6]),1,COUNTIF($A$3:A200,Table1[6])),0)),\"\")","v":31312023},{"$f":"IFERROR(IF(Table2[[#This Row],[رقم الحساب]]<>\"\",VLOOKUP(Table2[[#This Row],[رقم الحساب]],Table1[[6]:[النوع]],3,0),\"\"),\"\")","v":"يوميات واجور خارجية"},{"$f":"IFERROR(IF(Table2[[#This Row],[رقم الحساب]]<>\"\",VLOOKUP(Table2[[#This Row],[رقم الحساب]],Table1[[6]:[النوع]],4,0),\"\"),\"\")","v":"أرباح وخسائر"}]
[{"$f":"IFERROR(INDEX(Table1[6],MATCH(0,IF(ISBLANK(Table1[6]),1,COUNTIF($A$3:A201,Table1[6])),0)),\"\")","v":31312009},{"$f":"IFERROR(IF(Table2[[#This Row],[رقم الحساب]]<>\"\",VLOOKUP(Table2[[#This Row],[رقم الحساب]],Table1[[6]:[النوع]],3,0),\"\"),\"\")","v":"اعمال سباكة"},{"$f":"IFERROR(IF(Table2[[#This Row],[رقم الحساب]]<>\"\",VLOOKUP(Table2[[#This Row],[رقم الحساب]],Table1[[6]:[النوع]],4,0),\"\"),\"\")","v":"أرباح وخسائر"}]
[{"$f":"IFERROR(INDEX(Table1[6],MATCH(0,IF(ISBLANK(Table1[6]),1,COUNTIF($A$3:A202,Table1[6])),0)),\"\")","v":31312010},{"$f":"IFERROR(IF(Table2[[#This Row],[رقم الحساب]]<>\"\",VLOOKUP(Table2[[#This Row],[رقم الحساب]],Table1[[6]:[النوع]],3,0),\"\"),\"\")","v":"اعمال حلوق ابواب"},{"$f":"IFERROR(IF(Table2[[#This Row],[رقم الحساب]]<>\"\",VLOOKUP(Table2[[#This Row],[رقم الحساب]],Table1[[6]:[النوع]],4,0),\"\"),\"\")","v":"أرباح وخسائر"}]
[{"$f":"IFERROR(INDEX(Table1[6],MATCH(0,IF(ISBLANK(Table1[6]),1,COUNTIF($A$3:A203,Table1[6])),0)),\"\")","v":31312011},{"$f":"IFERROR(IF(Table2[[#This Row],[رقم الحساب]]<>\"\",VLOOKUP(Table2[[#This Row],[رقم الحساب]],Table1[[6]:[النوع]],3,0),\"\"),\"\")","v":"اعمال عضم"},{"$f":"IFERROR(IF(Table2[[#This Row],[رقم الحساب]]<>\"\",VLOOKUP(Table2[[#This Row],[رقم الحساب]],Table1[[6]:[النوع]],4,0),\"\"),\"\")","v":"أرباح وخسائر"}]
[{"$f":"IFERROR(INDEX(Table1[6],MATCH(0,IF(ISBLANK(Table1[6]),1,COUNTIF($A$3:A204,Table1[6])),0)),\"\")","v":31312013},{"$f":"IFERROR(IF(Table2[[#This Row],[رقم الحساب]]<>\"\",VLOOKUP(Table2[[#This Row],[رقم الحساب]],Table1[[6]:[النوع]],3,0),\"\"),\"\")","v":"اعمال المونيوم"},{"$f":"IFERROR(IF(Table2[[#This Row],[رقم الحساب]]<>\"\",VLOOKUP(Table2[[#This Row],[رقم الحساب]],Table1[[6]:[النوع]],4,0),\"\"),\"\")","v":"أرباح وخسائر"}]
[{"$f":"IFERROR(INDEX(Table1[6],MATCH(0,IF(ISBLANK(Table1[6]),1,COUNTIF($A$3:A205,Table1[6])),0)),\"\")","v":321101001},{"$f":"IFERROR(IF(Table2[[#This Row],[رقم الحساب]]<>\"\",VLOOKUP(Table2[[#This Row],[رقم الحساب]],Table1[[6]:[النوع]],3,0),\"\"),\"\")","v":"رواتب واجور"},{"$f":"IFERROR(IF(Table2[[#This Row],[رقم الحساب]]<>\"\",VLOOKUP(Table2[[#This Row],[رقم الحساب]],Table1[[6]:[النوع]],4,0),\"\"),\"\")","v":"أرباح وخسائر"}]
[{"$f":"IFERROR(INDEX(Table1[6],MATCH(0,IF(ISBLANK(Table1[6]),1,COUNTIF($A$3:A206,Table1[6])),0)),\"\")","v":321101006},{"$f":"IFERROR(IF(Table2[[#This Row],[رقم الحساب]]<>\"\",VLOOKUP(Table2[[#This Row],[رقم الحساب]],Table1[[6]:[النوع]],3,0),\"\"),\"\")","v":"بدل اجازة سنوية"},{"$f":"IFERROR(IF(Table2[[#This Row],[رقم الحساب]]<>\"\",VLOOKUP(Table2[[#This Row],[رقم الحساب]],Table1[[6]:[النوع]],4,0),\"\"),\"\")","v":"أرباح وخسائر"}]
[{"$f":"IFERROR(INDEX(Table1[6],MATCH(0,IF(ISBLANK(Table1[6]),1,COUNTIF($A$3:A207,Table1[6])),0)),\"\")","v":321101005},{"$f":"IFERROR(IF(Table2[[#This Row],[رقم الحساب]]<>\"\",VLOOKUP(Table2[[#This Row],[رقم الحساب]],Table1[[6]:[النوع]],3,0),\"\"),\"\")","v":"بدل تذاكر"},{"$f":"IFERROR(IF(Table2[[#This Row],[رقم الحساب]]<>\"\",VLOOKUP(Table2[[#This Row],[رقم الحساب]],Table1[[6]:[النوع]],4,0),\"\"),\"\")","v":"أرباح وخسائر"}]
[{"$f":"IFERROR(INDEX(Table1[6],MATCH(0,IF(ISBLANK(Table1[6]),1,COUNTIF($A$3:A208,Table1[6])),0)),\"\")","v":321101004},{"$f":"IFERROR(IF(Table2[[#This Row],[رقم الحساب]]<>\"\",VLOOKUP(Table2[[#This Row],[رقم الحساب]],Table1[[6]:[النوع]],3,0),\"\"),\"\")","v":"بدلات سكن الموظفين"},{"$f":"IFERROR(IF(Table2[[#This Row],[رقم الحساب]]<>\"\",VLOOKUP(Table2[[#This Row],[رقم الحساب]],Table1[[6]:[النوع]],4,0),\"\"),\"\")","v":"أرباح وخسائر"}]
[{"$f":"IFERROR(INDEX(Table1[6],MATCH(0,IF(ISBLANK(Table1[6]),1,COUNTIF($A$3:A209,Table1[6])),0)),\"\")","v":321101003},{"$f":"IFERROR(IF(Table2[[#This Row],[رقم الحساب]]<>\"\",VLOOKUP(Table2[[#This Row],[رقم الحساب]],Table1[[6]:[النوع]],3,0),\"\"),\"\")","v":"رواتب عمالة خارجية"},{"$f":"IFERROR(IF(Table2[[#This Row],[رقم الحساب]]<>\"\",VLOOKUP(Table2[[#This Row],[رقم الحساب]],Table1[[6]:[النوع]],4,0),\"\"),\"\")","v":"أرباح وخسائر"}]
[{"$f":"IFERROR(INDEX(Table1[6],MATCH(0,IF(ISBLANK(Table1[6]),1,COUNTIF($A$3:A210,Table1[6])),0)),\"\")","v":321101002},{"$f":"IFERROR(IF(Table2[[#This Row],[رقم الحساب]]<>\"\",VLOOKUP(Table2[[#This Row],[رقم الحساب]],Table1[[6]:[النوع]],3,0),\"\"),\"\")","v":"اعمال اضافية"},{"$f":"IFERROR(IF(Table2[[#This Row],[رقم الحساب]]<>\"\",VLOOKUP(Table2[[#This Row],[رقم الحساب]],Table1[[6]:[النوع]],4,0),\"\"),\"\")","v":"أرباح وخسائر"}]
[{"$f":"IFERROR(INDEX(Table1[6],MATCH(0,IF(ISBLANK(Table1[6]),1,COUNTIF($A$3:A211,Table1[6])),0)),\"\")","v":321102031},{"$f":"IFERROR(IF(Table2[[#This Row],[رقم الحساب]]<>\"\",VLOOKUP(Table2[[#This Row],[رقم الحساب]],Table1[[6]:[النوع]],3,0),\"\"),\"\")","v":"مصاريف اتعاب مكتب محاسبة"},{"$f":"IFERROR(IF(Table2[[#This Row],[رقم الحساب]]<>\"\",VLOOKUP(Table2[[#This Row],[رقم الحساب]],Table1[[6]:[النوع]],4,0),\"\"),\"\")","v":"أرباح وخسائر"}]
[{"$f":"IFERROR(INDEX(Table1[6],MATCH(0,IF(ISBLANK(Table1[6]),1,COUNTIF($A$3:A212,Table1[6])),0)),\"\")","v":321102023},{"$f":"IFERROR(IF(Table2[[#This Row],[رقم الحساب]]<>\"\",VLOOKUP(Table2[[#This Row],[رقم الحساب]],Table1[[6]:[النوع]],3,0),\"\"),\"\")","v":"مصروفات متنوعة"},{"$f":"IFERROR(IF(Table2[[#This Row],[رقم الحساب]]<>\"\",VLOOKUP(Table2[[#This Row],[رقم الحساب]],Table1[[6]:[النوع]],4,0),\"\"),\"\")","v":"أرباح وخسائر"}]
[{"$f":"IFERROR(INDEX(Table1[6],MATCH(0,IF(ISBLANK(Table1[6]),1,COUNTIF($A$3:A213,Table1[6])),0)),\"\")","v":321102020},{"$f":"IFERROR(IF(Table2[[#This Row],[رقم الحساب]]<>\"\",VLOOKUP(Table2[[#This Row],[رقم الحساب]],Table1[[6]:[النوع]],3,0),\"\"),\"\")","v":"مصاريف دعاية واعلان"},{"$f":"IFERROR(IF(Table2[[#This Row],[رقم الحساب]]<>\"\",VLOOKUP(Table2[[#This Row],[رقم الحساب]],Table1[[6]:[النوع]],4,0),\"\"),\"\")","v":"أرباح وخسائر"}]
[{"$f":"IFERROR(INDEX(Table1[6],MATCH(0,IF(ISBLANK(Table1[6]),1,COUNTIF($A$3:A214,Table1[6])),0)),\"\")","v":321102017},{"$f":"IFERROR(IF(Table2[[#This Row],[رقم الحساب]]<>\"\",VLOOKUP(Table2[[#This Row],[رقم الحساب]],Table1[[6]:[النوع]],3,0),\"\"),\"\")","v":"مصاريف مخالفات مرورية"},{"$f":"IFERROR(IF(Table2[[#This Row],[رقم الحساب]]<>\"\",VLOOKUP(Table2[[#This Row],[رقم الحساب]],Table1[[6]:[النوع]],4,0),\"\"),\"\")","v":"أرباح وخسائر"}]
[{"$f":"IFERROR(INDEX(Table1[6],MATCH(0,IF(ISBLANK(Table1[6]),1,COUNTIF($A$3:A215,Table1[6])),0)),\"\")","v":321102010},{"$f":"IFERROR(IF(Table2[[#This Row],[رقم الحساب]]<>\"\",VLOOKUP(Table2[[#This Row],[رقم الحساب]],Table1[[6]:[النوع]],3,0),\"\"),\"\")","v":"مصاريف تأشيرات استقدام"},{"$f":"IFERROR(IF(Table2[[#This Row],[رقم الحساب]]<>\"\",VLOOKUP(Table2[[#This Row],[رقم الحساب]],Table1[[6]:[النوع]],4,0),\"\"),\"\")","v":"أرباح وخسائر"}]
[{"$f":"IFERROR(INDEX(Table1[6],MATCH(0,IF(ISBLANK(Table1[6]),1,COUNTIF($A$3:A216,Table1[6])),0)),\"\")","v":321102018},{"$f":"IFERROR(IF(Table2[[#This Row],[رقم الحساب]]<>\"\",VLOOKUP(Table2[[#This Row],[رقم الحساب]],Table1[[6]:[النوع]],3,0),\"\"),\"\")","v":"مصاريف تامين طبي"},{"$f":"IFERROR(IF(Table2[[#This Row],[رقم الحساب]]<>\"\",VLOOKUP(Table2[[#This Row],[رقم الحساب]],Table1[[6]:[النوع]],4,0),\"\"),\"\")","v":"أرباح وخسائر"}]
[{"$f":"IFERROR(INDEX(Table1[6],MATCH(0,IF(ISBLANK(Table1[6]),1,COUNTIF($A$3:A217,Table1[6])),0)),\"\")","v":321102012},{"$f":"IFERROR(IF(Table2[[#This Row],[رقم الحساب]]<>\"\",VLOOKUP(Table2[[#This Row],[رقم الحساب]],Table1[[6]:[النوع]],3,0),\"\"),\"\")","v":"مصاريف نقل كفالات عاملين"},{"$f":"IFERROR(IF(Table2[[#This Row],[رقم الحساب]]<>\"\",VLOOKUP(Table2[[#This Row],[رقم الحساب]],Table1[[6]:[النوع]],4,0),\"\"),\"\")","v":"أرباح وخسائر"}]
[{"$f":"IFERROR(INDEX(Table1[6],MATCH(0,IF(ISBLANK(Table1[6]),1,COUNTIF($A$3:A218,Table1[6])),0)),\"\")","v":321102011},{"$f":"IFERROR(IF(Table2[[#This Row],[رقم الحساب]]<>\"\",VLOOKUP(Table2[[#This Row],[رقم الحساب]],Table1[[6]:[النوع]],3,0),\"\"),\"\")","v":"مصاريف تجديد اقامات وكروت عمل"},{"$f":"IFERROR(IF(Table2[[#This Row],[رقم الحساب]]<>\"\",VLOOKUP(Table2[[#This Row],[رقم الحساب]],Table1[[6]:[النوع]],4,0),\"\"),\"\")","v":"أرباح وخسائر"}]
[{"$f":"IFERROR(INDEX(Table1[6],MATCH(0,IF(ISBLANK(Table1[6]),1,COUNTIF($A$3:A219,Table1[6])),0)),\"\")","v":321102002},{"$f":"IFERROR(IF(Table2[[#This Row],[رقم الحساب]]<>\"\",VLOOKUP(Table2[[#This Row],[رقم الحساب]],Table1[[6]:[النوع]],3,0),\"\"),\"\")","v":"مصاريف كهرباء"},{"$f":"IFERROR(IF(Table2[[#This Row],[رقم الحساب]]<>\"\",VLOOKUP(Table2[[#This Row],[رقم الحساب]],Table1[[6]:[النوع]],4,0),\"\"),\"\")","v":"أرباح وخسائر"}]
[{"$f":"IFERROR(INDEX(Table1[6],MATCH(0,IF(ISBLANK(Table1[6]),1,COUNTIF($A$3:A220,Table1[6])),0)),\"\")","v":321102003},{"$f":"IFERROR(IF(Table2[[#This Row],[رقم الحساب]]<>\"\",VLOOKUP(Table2[[#This Row],[رقم الحساب]],Table1[[6]:[النوع]],3,0),\"\"),\"\")","v":"مصاريف مياه"},{"$f":"IFERROR(IF(Table2[[#This Row],[رقم الحساب]]<>\"\",VLOOKUP(Table2[[#This Row],[رقم الحساب]],Table1[[6]:[النوع]],4,0),\"\"),\"\")","v":"أرباح وخسائر"}]
[{"$f":"IFERROR(INDEX(Table1[6],MATCH(0,IF(ISBLANK(Table1[6]),1,COUNTIF($A$3:A221,Table1[6])),0)),\"\")","v":321102013},{"$f":"IFERROR(IF(Table2[[#This Row],[رقم الحساب]]<>\"\",VLOOKUP(Table2[[#This Row],[رقم الحساب]],Table1[[6]:[النوع]],3,0),\"\"),\"\")","v":"مصاريف تأمينات اجتماعية"},{"$f":"IFERROR(IF(Table2[[#This Row],[رقم الحساب]]<>\"\",VLOOKUP(Table2[[#This Row],[رقم الحساب]],Table1[[6]:[النوع]],4,0),\"\"),\"\")","v":"أرباح وخسائر"}]
[{"$f":"IFERROR(INDEX(Table1[6],MATCH(0,IF(ISBLANK(Table1[6]),1,COUNTIF($A$3:A222,Table1[6])),0)),\"\")","v":321102021},{"$f":"IFERROR(IF(Table2[[#This Row],[رقم الحساب]]<>\"\",VLOOKUP(Table2[[#This Row],[رقم الحساب]],Table1[[6]:[النوع]],3,0),\"\"),\"\")","v":"مصاريف اشتراكات وتصديقات"},{"$f":"IFERROR(IF(Table2[[#This Row],[رقم الحساب]]<>\"\",VLOOKUP(Table2[[#This Row],[رقم الحساب]],Table1[[6]:[النوع]],4,0),\"\"),\"\")","v":"أرباح وخسائر"}]
[{"$f":"IFERROR(INDEX(Table1[6],MATCH(0,IF(ISBLANK(Table1[6]),1,COUNTIF($A$3:A223,Table1[6])),0)),\"\")","v":321102029},{"$f":"IFERROR(IF(Table2[[#This Row],[رقم الحساب]]<>\"\",VLOOKUP(Table2[[#This Row],[رقم الحساب]],Table1[[6]:[النوع]],3,0),\"\"),\"\")","v":"تصفية مستحقات العمال والموظفين"},{"$f":"IFERROR(IF(Table2[[#This Row],[رقم الحساب]]<>\"\",VLOOKUP(Table2[[#This Row],[رقم الحساب]],Table1[[6]:[النوع]],4,0),\"\"),\"\")","v":"أرباح وخسائر"}]
[{"$f":"IFERROR(INDEX(Table1[6],MATCH(0,IF(ISBLANK(Table1[6]),1,COUNTIF($A$3:A224,Table1[6])),0)),\"\")","v":321102004},{"$f":"IFERROR(IF(Table2[[#This Row],[رقم الحساب]]<>\"\",VLOOKUP(Table2[[#This Row],[رقم الحساب]],Table1[[6]:[النوع]],3,0),\"\"),\"\")","v":"مصاريف ايجارات"},{"$f":"IFERROR(IF(Table2[[#This Row],[رقم الحساب]]<>\"\",VLOOKUP(Table2[[#This Row],[رقم الحساب]],Table1[[6]:[النوع]],4,0),\"\"),\"\")","v":"أرباح وخسائر"}]
[{"$f":"IFERROR(INDEX(Table1[6],MATCH(0,IF(ISBLANK(Table1[6]),1,COUNTIF($A$3:A225,Table1[6])),0)),\"\")","v":321102005},{"$f":"IFERROR(IF(Table2[[#This Row],[رقم الحساب]]<>\"\",VLOOKUP(Table2[[#This Row],[رقم الحساب]],Table1[[6]:[النوع]],3,0),\"\"),\"\")","v":"مصاريف طعام عاملين"},{"$f":"IFERROR(IF(Table2[[#This Row],[رقم الحساب]]<>\"\",VLOOKUP(Table2[[#This Row],[رقم الحساب]],Table1[[6]:[النوع]],4,0),\"\"),\"\")","v":"أرباح وخسائر"}]
[{"$f":"IFERROR(INDEX(Table1[6],MATCH(0,IF(ISBLANK(Table1[6]),1,COUNTIF($A$3:A226,Table1[6])),0)),\"\")","v":321102009},{"$f":"IFERROR(IF(Table2[[#This Row],[رقم الحساب]]<>\"\",VLOOKUP(Table2[[#This Row],[رقم الحساب]],Table1[[6]:[النوع]],3,0),\"\"),\"\")","v":"مصاريف نثرية"},{"$f":"IFERROR(IF(Table2[[#This Row],[رقم الحساب]]<>\"\",VLOOKUP(Table2[[#This Row],[رقم الحساب]],Table1[[6]:[النوع]],4,0),\"\"),\"\")","v":"أرباح وخسائر"}]
[{"$f":"IFERROR(INDEX(Table1[6],MATCH(0,IF(ISBLANK(Table1[6]),1,COUNTIF($A$3:A227,Table1[6])),0)),\"\")","v":321102015},{"$f":"IFERROR(IF(Table2[[#This Row],[رقم الحساب]]<>\"\",VLOOKUP(Table2[[#This Row],[رقم الحساب]],Table1[[6]:[النوع]],3,0),\"\"),\"\")","v":"مصاريف حراسات"},{"$f":"IFERROR(IF(Table2[[#This Row],[رقم الحساب]]<>\"\",VLOOKUP(Table2[[#This Row],[رقم الحساب]],Table1[[6]:[النوع]],4,0),\"\"),\"\")","v":"أرباح وخسائر"}]
[{"$f":"IFERROR(INDEX(Table1[6],MATCH(0,IF(ISBLANK(Table1[6]),1,COUNTIF($A$3:A228,Table1[6])),0)),\"\")","v":321102014},{"$f":"IFERROR(IF(Table2[[#This Row],[رقم الحساب]]<>\"\",VLOOKUP(Table2[[#This Row],[رقم الحساب]],Table1[[6]:[النوع]],3,0),\"\"),\"\")","v":"مصاريف علاج"},{"$f":"IFERROR(IF(Table2[[#This Row],[رقم الحساب]]<>\"\",VLOOKUP(Table2[[#This Row],[رقم الحساب]],Table1[[6]:[النوع]],4,0),\"\"),\"\")","v":"أرباح وخسائر"}]
[{"$f":"IFERROR(INDEX(Table1[6],MATCH(0,IF(ISBLANK(Table1[6]),1,COUNTIF($A$3:A229,Table1[6])),0)),\"\")","v":321102022},{"$f":"IFERROR(IF(Table2[[#This Row],[رقم الحساب]]<>\"\",VLOOKUP(Table2[[#This Row],[رقم الحساب]],Table1[[6]:[النوع]],3,0),\"\"),\"\")","v":"مصاريف رسوم و عمولات بنكية"},{"$f":"IFERROR(IF(Table2[[#This Row],[رقم الحساب]]<>\"\",VLOOKUP(Table2[[#This Row],[رقم الحساب]],Table1[[6]:[النوع]],4,0),\"\"),\"\")","v":"أرباح وخسائر"}]
[{"$f":"IFERROR(INDEX(Table1[6],MATCH(0,IF(ISBLANK(Table1[6]),1,COUNTIF($A$3:A230,Table1[6])),0)),\"\")","v":321102008},{"$f":"IFERROR(IF(Table2[[#This Row],[رقم الحساب]]<>\"\",VLOOKUP(Table2[[#This Row],[رقم الحساب]],Table1[[6]:[النوع]],3,0),\"\"),\"\")","v":"مصاريف عمولات بيعية وتسويقية"},{"$f":"IFERROR(IF(Table2[[#This Row],[رقم الحساب]]<>\"\",VLOOKUP(Table2[[#This Row],[رقم الحساب]],Table1[[6]:[النوع]],4,0),\"\"),\"\")","v":"أرباح وخسائر"}]
[{"$f":"IFERROR(INDEX(Table1[6],MATCH(0,IF(ISBLANK(Table1[6]),1,COUNTIF($A$3:A231,Table1[6])),0)),\"\")","v":321102001},{"$f":"IFERROR(IF(Table2[[#This Row],[رقم الحساب]]<>\"\",VLOOKUP(Table2[[#This Row],[رقم الحساب]],Table1[[6]:[النوع]],3,0),\"\"),\"\")","v":"مصاريف هاتف وجوالات وبريد"},{"$f":"IFERROR(IF(Table2[[#This Row],[رقم الحساب]]<>\"\",VLOOKUP(Table2[[#This Row],[رقم الحساب]],Table1[[6]:[النوع]],4,0),\"\"),\"\")","v":"أرباح وخسائر"}]
[{"$f":"IFERROR(INDEX(Table1[6],MATCH(0,IF(ISBLANK(Table1[6]),1,COUNTIF($A$3:A232,Table1[6])),0)),\"\")","v":321102006},{"$f":"IFERROR(IF(Table2[[#This Row],[رقم الحساب]]<>\"\",VLOOKUP(Table2[[#This Row],[رقم الحساب]],Table1[[6]:[النوع]],3,0),\"\"),\"\")","v":"مصاريف بوفية وضيافة"},{"$f":"IFERROR(IF(Table2[[#This Row],[رقم الحساب]]<>\"\",VLOOKUP(Table2[[#This Row],[رقم الحساب]],Table1[[6]:[النوع]],4,0),\"\"),\"\")","v":"أرباح وخسائر"}]
[{"$f":"IFERROR(INDEX(Table1[6],MATCH(0,IF(ISBLANK(Table1[6]),1,COUNTIF($A$3:A233,Table1[6])),0)),\"\")","v":321102016},{"$f":"IFERROR(IF(Table2[[#This Row],[رقم الحساب]]<>\"\",VLOOKUP(Table2[[#This Row],[رقم الحساب]],Table1[[6]:[النوع]],3,0),\"\"),\"\")","v":"مصاريف تأمين مركبات"},{"$f":"IFERROR(IF(Table2[[#This Row],[رقم الحساب]]<>\"\",VLOOKUP(Table2[[#This Row],[رقم الحساب]],Table1[[6]:[النوع]],4,0),\"\"),\"\")","v":"أرباح وخسائر"}]
[{"$f":"IFERROR(INDEX(Table1[6],MATCH(0,IF(ISBLANK(Table1[6]),1,COUNTIF($A$3:A234,Table1[6])),0)),\"\")","v":321102019},{"$f":"IFERROR(IF(Table2[[#This Row],[رقم الحساب]]<>\"\",VLOOKUP(Table2[[#This Row],[رقم الحساب]],Table1[[6]:[النوع]],3,0),\"\"),\"\")","v":"مصاريف قرطاسية ومكتبية"},{"$f":"IFERROR(IF(Table2[[#This Row],[رقم الحساب]]<>\"\",VLOOKUP(Table2[[#This Row],[رقم الحساب]],Table1[[6]:[النوع]],4,0),\"\"),\"\")","v":"أرباح وخسائر"}]
[{"$f":"IFERROR(INDEX(Table1[6],MATCH(0,IF(ISBLANK(Table1[6]),1,COUNTIF($A$3:A235,Table1[6])),0)),\"\")","v":321102007},{"$f":"IFERROR(IF(Table2[[#This Row],[رقم الحساب]]<>\"\",VLOOKUP(Table2[[#This Row],[رقم الحساب]],Table1[[6]:[النوع]],3,0),\"\"),\"\")","v":"مكافات وحوافز عاملين"},{"$f":"IFERROR(IF(Table2[[#This Row],[رقم الحساب]]<>\"\",VLOOKUP(Table2[[#This Row],[رقم الحساب]],Table1[[6]:[النوع]],4,0),\"\"),\"\")","v":"أرباح وخسائر"}]
[{"$f":"IFERROR(INDEX(Table1[6],MATCH(0,IF(ISBLANK(Table1[6]),1,COUNTIF($A$3:A236,Table1[6])),0)),\"\")","v":321102030},{"$f":"IFERROR(IF(Table2[[#This Row],[رقم الحساب]]<>\"\",VLOOKUP(Table2[[#This Row],[رقم الحساب]],Table1[[6]:[النوع]],3,0),\"\"),\"\")","v":"رسوم و خدمات حكومية"},{"$f":"IFERROR(IF(Table2[[#This Row],[رقم الحساب]]<>\"\",VLOOKUP(Table2[[#This Row],[رقم الحساب]],Table1[[6]:[النوع]],4,0),\"\"),\"\")","v":"أرباح وخسائر"}]
[{"$f":"IFERROR(INDEX(Table1[6],MATCH(0,IF(ISBLANK(Table1[6]),1,COUNTIF($A$3:A237,Table1[6])),0)),\"\")","v":331101005},{"$f":"IFERROR(IF(Table2[[#This Row],[رقم الحساب]]<>\"\",VLOOKUP(Table2[[#This Row],[رقم الحساب]],Table1[[6]:[النوع]],3,0),\"\"),\"\")","v":"مصاريف صيانة معدات"},{"$f":"IFERROR(IF(Table2[[#This Row],[رقم الحساب]]<>\"\",VLOOKUP(Table2[[#This Row],[رقم الحساب]],Table1[[6]:[النوع]],4,0),\"\"),\"\")","v":"أرباح وخسائر"}]
[{"$f":"IFERROR(INDEX(Table1[6],MATCH(0,IF(ISBLANK(Table1[6]),1,COUNTIF($A$3:A238,Table1[6])),0)),\"\")","v":331101002},{"$f":"IFERROR(IF(Table2[[#This Row],[رقم الحساب]]<>\"\",VLOOKUP(Table2[[#This Row],[رقم الحساب]],Table1[[6]:[النوع]],3,0),\"\"),\"\")","v":"مصاريف بنزين"},{"$f":"IFERROR(IF(Table2[[#This Row],[رقم الحساب]]<>\"\",VLOOKUP(Table2[[#This Row],[رقم الحساب]],Table1[[6]:[النوع]],4,0),\"\"),\"\")","v":"أرباح وخسائر"}]
[{"$f":"IFERROR(INDEX(Table1[6],MATCH(0,IF(ISBLANK(Table1[6]),1,COUNTIF($A$3:A239,Table1[6])),0)),\"\")","v":331101008},{"$f":"IFERROR(IF(Table2[[#This Row],[رقم الحساب]]<>\"\",VLOOKUP(Table2[[#This Row],[رقم الحساب]],Table1[[6]:[النوع]],3,0),\"\"),\"\")","v":"مصاريف كفرات"},{"$f":"IFERROR(IF(Table2[[#This Row],[رقم الحساب]]<>\"\",VLOOKUP(Table2[[#This Row],[رقم الحساب]],Table1[[6]:[النوع]],4,0),\"\"),\"\")","v":"أرباح وخسائر"}]
[{"$f":"IFERROR(INDEX(Table1[6],MATCH(0,IF(ISBLANK(Table1[6]),1,COUNTIF($A$3:A240,Table1[6])),0)),\"\")","v":331101003},{"$f":"IFERROR(IF(Table2[[#This Row],[رقم الحساب]]<>\"\",VLOOKUP(Table2[[#This Row],[رقم الحساب]],Table1[[6]:[النوع]],3,0),\"\"),\"\")","v":"مصاريف زيوت ومحروقات"},{"$f":"IFERROR(IF(Table2[[#This Row],[رقم الحساب]]<>\"\",VLOOKUP(Table2[[#This Row],[رقم الحساب]],Table1[[6]:[النوع]],4,0),\"\"),\"\")","v":"أرباح وخسائر"}]
[{"$f":"IFERROR(INDEX(Table1[6],MATCH(0,IF(ISBLANK(Table1[6]),1,COUNTIF($A$3:A241,Table1[6])),0)),\"\")","v":331101001},{"$f":"IFERROR(IF(Table2[[#This Row],[رقم الحساب]]<>\"\",VLOOKUP(Table2[[#This Row],[رقم الحساب]],Table1[[6]:[النوع]],3,0),\"\"),\"\")","v":"مصاريف ديزل"},{"$f":"IFERROR(IF(Table2[[#This Row],[رقم الحساب]]<>\"\",VLOOKUP(Table2[[#This Row],[رقم الحساب]],Table1[[6]:[النوع]],4,0),\"\"),\"\")","v":"أرباح وخسائر"}]
[{"$f":"IFERROR(INDEX(Table1[6],MATCH(0,IF(ISBLANK(Table1[6]),1,COUNTIF($A$3:A242,Table1[6])),0)),\"\")","v":331101011},{"$f":"IFERROR(IF(Table2[[#This Row],[رقم الحساب]]<>\"\",VLOOKUP(Table2[[#This Row],[رقم الحساب]],Table1[[6]:[النوع]],3,0),\"\"),\"\")","v":"مصاريف صيانة المباني"},{"$f":"IFERROR(IF(Table2[[#This Row],[رقم الحساب]]<>\"\",VLOOKUP(Table2[[#This Row],[رقم الحساب]],Table1[[6]:[النوع]],4,0),\"\"),\"\")","v":"أرباح وخسائر"}]
[{"$f":"IFERROR(INDEX(Table1[6],MATCH(0,IF(ISBLANK(Table1[6]),1,COUNTIF($A$3:A243,Table1[6])),0)),\"\")","v":331101006},{"$f":"IFERROR(IF(Table2[[#This Row],[رقم الحساب]]<>\"\",VLOOKUP(Table2[[#This Row],[رقم الحساب]],Table1[[6]:[النوع]],3,0),\"\"),\"\")","v":"مصاريف قطع غيار سيارات"},{"$f":"IFERROR(IF(Table2[[#This Row],[رقم الحساب]]<>\"\",VLOOKUP(Table2[[#This Row],[رقم الحساب]],Table1[[6]:[النوع]],4,0),\"\"),\"\")","v":"أرباح وخسائر"}]
[{"$f":"IFERROR(INDEX(Table1[6],MATCH(0,IF(ISBLANK(Table1[6]),1,COUNTIF($A$3:A244,Table1[6])),0)),\"\")","v":331101004},{"$f":"IFERROR(IF(Table2[[#This Row],[رقم الحساب]]<>\"\",VLOOKUP(Table2[[#This Row],[رقم الحساب]],Table1[[6]:[النوع]],3,0),\"\"),\"\")","v":"مصاريف قطع غيار معدات"},{"$f":"IFERROR(IF(Table2[[#This Row],[رقم الحساب]]<>\"\",VLOOKUP(Table2[[#This Row],[رقم الحساب]],Table1[[6]:[النوع]],4,0),\"\"),\"\")","v":"أرباح وخسائر"}]
[{"$f":"IFERROR(INDEX(Table1[6],MATCH(0,IF(ISBLANK(Table1[6]),1,COUNTIF($A$3:A245,Table1[6])),0)),\"\")","v":331101018},{"$f":"IFERROR(IF(Table2[[#This Row],[رقم الحساب]]<>\"\",VLOOKUP(Table2[[#This Row],[رقم الحساب]],Table1[[6]:[النوع]],3,0),\"\"),\"\")","v":"مصاريف تامين المركبات"},{"$f":"IFERROR(IF(Table2[[#This Row],[رقم الحساب]]<>\"\",VLOOKUP(Table2[[#This Row],[رقم الحساب]],Table1[[6]:[النوع]],4,0),\"\"),\"\")","v":"أرباح وخسائر"}]
[{"$f":"IFERROR(INDEX(Table1[6],MATCH(0,IF(ISBLANK(Table1[6]),1,COUNTIF($A$3:A246,Table1[6])),0)),\"\")","v":331101015},{"$f":"IFERROR(IF(Table2[[#This Row],[رقم الحساب]]<>\"\",VLOOKUP(Table2[[#This Row],[رقم الحساب]],Table1[[6]:[النوع]],3,0),\"\"),\"\")","v":"مصاريف أجور نقل"},{"$f":"IFERROR(IF(Table2[[#This Row],[رقم الحساب]]<>\"\",VLOOKUP(Table2[[#This Row],[رقم الحساب]],Table1[[6]:[النوع]],4,0),\"\"),\"\")","v":"أرباح وخسائر"}]
[{"$f":"IFERROR(INDEX(Table1[6],MATCH(0,IF(ISBLANK(Table1[6]),1,COUNTIF($A$3:A247,Table1[6])),0)),\"\")","v":331101013},{"$f":"IFERROR(IF(Table2[[#This Row],[رقم الحساب]]<>\"\",VLOOKUP(Table2[[#This Row],[رقم الحساب]],Table1[[6]:[النوع]],3,0),\"\"),\"\")","v":"مصاريف خصم مسموح به"},{"$f":"IFERROR(IF(Table2[[#This Row],[رقم الحساب]]<>\"\",VLOOKUP(Table2[[#This Row],[رقم الحساب]],Table1[[6]:[النوع]],4,0),\"\"),\"\")","v":"أرباح وخسائر"}]
[{"$f":"IFERROR(INDEX(Table1[6],MATCH(0,IF(ISBLANK(Table1[6]),1,COUNTIF($A$3:A248,Table1[6])),0)),\"\")","v":331101012},{"$f":"IFERROR(IF(Table2[[#This Row],[رقم الحساب]]<>\"\",VLOOKUP(Table2[[#This Row],[رقم الحساب]],Table1[[6]:[النوع]],3,0),\"\"),\"\")","v":"مصاريف صيانة واصلاحات"},{"$f":"IFERROR(IF(Table2[[#This Row],[رقم الحساب]]<>\"\",VLOOKUP(Table2[[#This Row],[رقم الحساب]],Table1[[6]:[النوع]],4,0),\"\"),\"\")","v":"أرباح وخسائر"}]
[{"$f":"IFERROR(INDEX(Table1[6],MATCH(0,IF(ISBLANK(Table1[6]),1,COUNTIF($A$3:A249,Table1[6])),0)),\"\")","v":331101007},{"$f":"IFERROR(IF(Table2[[#This Row],[رقم الحساب]]<>\"\",VLOOKUP(Table2[[#This Row],[رقم الحساب]],Table1[[6]:[النوع]],3,0),\"\"),\"\")","v":"مصاريف صيانة سيارات"},{"$f":"IFERROR(IF(Table2[[#This Row],[رقم الحساب]]<>\"\",VLOOKUP(Table2[[#This Row],[رقم الحساب]],Table1[[6]:[النوع]],4,0),\"\"),\"\")","v":"أرباح وخسائر"}]
[{"$f":"IFERROR(INDEX(Table1[6],MATCH(0,IF(ISBLANK(Table1[6]),1,COUNTIF($A$3:A250,Table1[6])),0)),\"\")","v":331101017},{"$f":"IFERROR(IF(Table2[[#This Row],[رقم الحساب]]<>\"\",VLOOKUP(Table2[[#This Row],[رقم الحساب]],Table1[[6]:[النوع]],3,0),\"\"),\"\")","v":"مصاريف أعمال من الباطن"},{"$f":"IFERROR(IF(Table2[[#This Row],[رقم الحساب]]<>\"\",VLOOKUP(Table2[[#This Row],[رقم الحساب]],Table1[[6]:[النوع]],4,0),\"\"),\"\")","v":"أرباح وخسائر"}]
[{"$f":"IFERROR(INDEX(Table1[6],MATCH(0,IF(ISBLANK(Table1[6]),1,COUNTIF($A$3:A251,Table1[6])),0)),\"\")","v":331101016},{"$f":"IFERROR(IF(Table2[[#This Row],[رقم الحساب]]<>\"\",VLOOKUP(Table2[[#This Row],[رقم الحساب]],Table1[[6]:[النوع]],3,0),\"\"),\"\")","v":"مصاريف ايجار معدات"},{"$f":"IFERROR(IF(Table2[[#This Row],[رقم الحساب]]<>\"\",VLOOKUP(Table2[[#This Row],[رقم الحساب]],Table1[[6]:[النوع]],4,0),\"\"),\"\")","v":"أرباح وخسائر"}]
[{"$f":"IFERROR(INDEX(Table1[6],MATCH(0,IF(ISBLANK(Table1[6]),1,COUNTIF($A$3:A252,Table1[6])),0)),\"\")","v":331101014},{"$f":"IFERROR(IF(Table2[[#This Row],[رقم الحساب]]<>\"\",VLOOKUP(Table2[[#This Row],[رقم الحساب]],Table1[[6]:[النوع]],3,0),\"\"),\"\")","v":"مصاريف مياه تحلية وآبار"},{"$f":"IFERROR(IF(Table2[[#This Row],[رقم الحساب]]<>\"\",VLOOKUP(Table2[[#This Row],[رقم الحساب]],Table1[[6]:[النوع]],4,0),\"\"),\"\")","v":"أرباح وخسائر"}]
[{"$f":"IFERROR(INDEX(Table1[6],MATCH(0,IF(ISBLANK(Table1[6]),1,COUNTIF($A$3:A253,Table1[6])),0)),\"\")","v":331101009},{"$f":"IFERROR(IF(Table2[[#This Row],[رقم الحساب]]<>\"\",VLOOKUP(Table2[[#This Row],[رقم الحساب]],Table1[[6]:[النوع]],3,0),\"\"),\"\")","v":"مصاريف بطاريات"},{"$f":"IFERROR(IF(Table2[[#This Row],[رقم الحساب]]<>\"\",VLOOKUP(Table2[[#This Row],[رقم الحساب]],Table1[[6]:[النوع]],4,0),\"\"),\"\")","v":"أرباح وخسائر"}]
[{"$f":"IFERROR(INDEX(Table1[6],MATCH(0,IF(ISBLANK(Table1[6]),1,COUNTIF($A$3:A254,Table1[6])),0)),\"\")","v":331101010},{"$f":"IFERROR(IF(Table2[[#This Row],[رقم الحساب]]<>\"\",VLOOKUP(Table2[[#This Row],[رقم الحساب]],Table1[[6]:[النوع]],3,0),\"\"),\"\")","v":"مصاريف نظافة"},{"$f":"IFERROR(IF(Table2[[#This Row],[رقم الحساب]]<>\"\",VLOOKUP(Table2[[#This Row],[رقم الحساب]],Table1[[6]:[النوع]],4,0),\"\"),\"\")","v":"أرباح وخسائر"}]
[{"$f":"IFERROR(INDEX(Table1[6],MATCH(0,IF(ISBLANK(Table1[6]),1,COUNTIF($A$3:A255,Table1[6])),0)),\"\")","v":331201006},{"$f":"IFERROR(IF(Table2[[#This Row],[رقم الحساب]]<>\"\",VLOOKUP(Table2[[#This Row],[رقم الحساب]],Table1[[6]:[النوع]],3,0),\"\"),\"\")","v":"مصاريف بحص 3/8"},{"$f":"IFERROR(IF(Table2[[#This Row],[رقم الحساب]]<>\"\",VLOOKUP(Table2[[#This Row],[رقم الحساب]],Table1[[6]:[النوع]],4,0),\"\"),\"\")","v":"أرباح وخسائر"}]
[{"$f":"IFERROR(INDEX(Table1[6],MATCH(0,IF(ISBLANK(Table1[6]),1,COUNTIF($A$3:A256,Table1[6])),0)),\"\")","v":331201005},{"$f":"IFERROR(IF(Table2[[#This Row],[رقم الحساب]]<>\"\",VLOOKUP(Table2[[#This Row],[رقم الحساب]],Table1[[6]:[النوع]],3,0),\"\"),\"\")","v":"مصاريف بحص 3/4"},{"$f":"IFERROR(IF(Table2[[#This Row],[رقم الحساب]]<>\"\",VLOOKUP(Table2[[#This Row],[رقم الحساب]],Table1[[6]:[النوع]],4,0),\"\"),\"\")","v":"أرباح وخسائر"}]
[{"$f":"IFERROR(INDEX(Table1[6],MATCH(0,IF(ISBLANK(Table1[6]),1,COUNTIF($A$3:A257,Table1[6])),0)),\"\")","v":331201002},{"$f":"IFERROR(IF(Table2[[#This Row],[رقم الحساب]]<>\"\",VLOOKUP(Table2[[#This Row],[رقم الحساب]],Table1[[6]:[النوع]],3,0),\"\"),\"\")","v":"مصاريف اسمنت مقاوم"},{"$f":"IFERROR(IF(Table2[[#This Row],[رقم الحساب]]<>\"\",VLOOKUP(Table2[[#This Row],[رقم الحساب]],Table1[[6]:[النوع]],4,0),\"\"),\"\")","v":"أرباح وخسائر"}]
[{"$f":"IFERROR(INDEX(Table1[6],MATCH(0,IF(ISBLANK(Table1[6]),1,COUNTIF($A$3:A258,Table1[6])),0)),\"\")","v":331201003},{"$f":"IFERROR(IF(Table2[[#This Row],[رقم الحساب]]<>\"\",VLOOKUP(Table2[[#This Row],[رقم الحساب]],Table1[[6]:[النوع]],3,0),\"\"),\"\")","v":"مصاريف بطحاء"},{"$f":"IFERROR(IF(Table2[[#This Row],[رقم الحساب]]<>\"\",VLOOKUP(Table2[[#This Row],[رقم الحساب]],Table1[[6]:[النوع]],4,0),\"\"),\"\")","v":"أرباح وخسائر"}]
[{"$f":"IFERROR(INDEX(Table1[6],MATCH(0,IF(ISBLANK(Table1[6]),1,COUNTIF($A$3:A259,Table1[6])),0)),\"\")","v":331201007},{"$f":"IFERROR(IF(Table2[[#This Row],[رقم الحساب]]<>\"\",VLOOKUP(Table2[[#This Row],[رقم الحساب]],Table1[[6]:[النوع]],3,0),\"\"),\"\")","v":"مصاريف كيميكل نوع 1"},{"$f":"IFERROR(IF(Table2[[#This Row],[رقم الحساب]]<>\"\",VLOOKUP(Table2[[#This Row],[رقم الحساب]],Table1[[6]:[النوع]],4,0),\"\"),\"\")","v":"أرباح وخسائر"}]
[{"$f":"IFERROR(INDEX(Table1[6],MATCH(0,IF(ISBLANK(Table1[6]),1,COUNTIF($A$3:A260,Table1[6])),0)),\"\")","v":331201008},{"$f":"IFERROR(IF(Table2[[#This Row],[رقم الحساب]]<>\"\",VLOOKUP(Table2[[#This Row],[رقم الحساب]],Table1[[6]:[النوع]],3,0),\"\"),\"\")","v":"مصاريف كيميكل نوع 2"},{"$f":"IFERROR(IF(Table2[[#This Row],[رقم الحساب]]<>\"\",VLOOKUP(Table2[[#This Row],[رقم الحساب]],Table1[[6]:[النوع]],4,0),\"\"),\"\")","v":"أرباح وخسائر"}]
[{"$f":"IFERROR(INDEX(Table1[6],MATCH(0,IF(ISBLANK(Table1[6]),1,COUNTIF($A$3:A261,Table1[6])),0)),\"\")","v":331201009},{"$f":"IFERROR(IF(Table2[[#This Row],[رقم الحساب]]<>\"\",VLOOKUP(Table2[[#This Row],[رقم الحساب]],Table1[[6]:[النوع]],3,0),\"\"),\"\")","v":"مصاريف كيميكل نوع 3"},{"$f":"IFERROR(IF(Table2[[#This Row],[رقم الحساب]]<>\"\",VLOOKUP(Table2[[#This Row],[رقم الحساب]],Table1[[6]:[النوع]],4,0),\"\"),\"\")","v":"أرباح وخسائر"}]
[{"$f":"IFERROR(INDEX(Table1[6],MATCH(0,IF(ISBLANK(Table1[6]),1,COUNTIF($A$3:A262,Table1[6])),0)),\"\")","v":331201001},{"$f":"IFERROR(IF(Table2[[#This Row],[رقم الحساب]]<>\"\",VLOOKUP(Table2[[#This Row],[رقم الحساب]],Table1[[6]:[النوع]],3,0),\"\"),\"\")","v":"مصاريف اسمنت عادي"},{"$f":"IFERROR(IF(Table2[[#This Row],[رقم الحساب]]<>\"\",VLOOKUP(Table2[[#This Row],[رقم الحساب]],Table1[[6]:[النوع]],4,0),\"\"),\"\")","v":"أرباح وخسائر"}]
[{"$f":"IFERROR(INDEX(Table1[6],MATCH(0,IF(ISBLANK(Table1[6]),1,COUNTIF($A$3:A263,Table1[6])),0)),\"\")","v":331201004},{"$f":"IFERROR(IF(Table2[[#This Row],[رقم الحساب]]<>\"\",VLOOKUP(Table2[[#This Row],[رقم الحساب]],Table1[[6]:[النوع]],3,0),\"\"),\"\")","v":"مصاريف بحص 1/2"},{"$f":"IFERROR(IF(Table2[[#This Row],[رقم الحساب]]<>\"\",VLOOKUP(Table2[[#This Row],[رقم الحساب]],Table1[[6]:[النوع]],4,0),\"\"),\"\")","v":"أرباح وخسائر"}]
[{"$f":"IFERROR(INDEX(Table1[6],MATCH(0,IF(ISBLANK(Table1[6]),1,COUNTIF($A$3:A264,Table1[6])),0)),\"\")","v":331301001},{"$f":"IFERROR(IF(Table2[[#This Row],[رقم الحساب]]<>\"\",VLOOKUP(Table2[[#This Row],[رقم الحساب]],Table1[[6]:[النوع]],3,0),\"\"),\"\")","v":"مصاريف اهلك المباني"},{"$f":"IFERROR(IF(Table2[[#This Row],[رقم الحساب]]<>\"\",VLOOKUP(Table2[[#This Row],[رقم الحساب]],Table1[[6]:[النوع]],4,0),\"\"),\"\")","v":"أرباح وخسائر"}]
[{"$f":"IFERROR(INDEX(Table1[6],MATCH(0,IF(ISBLANK(Table1[6]),1,COUNTIF($A$3:A265,Table1[6])),0)),\"\")","v":331301005},{"$f":"IFERROR(IF(Table2[[#This Row],[رقم الحساب]]<>\"\",VLOOKUP(Table2[[#This Row],[رقم الحساب]],Table1[[6]:[النوع]],3,0),\"\"),\"\")","v":"مصروف اهلاك الاثاث والتجهيز ات المكتبية"},{"$f":"IFERROR(IF(Table2[[#This Row],[رقم الحساب]]<>\"\",VLOOKUP(Table2[[#This Row],[رقم الحساب]],Table1[[6]:[النوع]],4,0),\"\"),\"\")","v":"أرباح وخسائر"}]
[{"$f":"IFERROR(INDEX(Table1[6],MATCH(0,IF(ISBLANK(Table1[6]),1,COUNTIF($A$3:A266,Table1[6])),0)),\"\")","v":331301002},{"$f":"IFERROR(IF(Table2[[#This Row],[رقم الحساب]]<>\"\",VLOOKUP(Table2[[#This Row],[رقم الحساب]],Table1[[6]:[النوع]],3,0),\"\"),\"\")","v":"مصروف اهلاك المعدات والالات"},{"$f":"IFERROR(IF(Table2[[#This Row],[رقم الحساب]]<>\"\",VLOOKUP(Table2[[#This Row],[رقم الحساب]],Table1[[6]:[النوع]],4,0),\"\"),\"\")","v":"أرباح وخسائر"}]
[{"$f":"IFERROR(INDEX(Table1[6],MATCH(0,IF(ISBLANK(Table1[6]),1,COUNTIF($A$3:A267,Table1[6])),0)),\"\")","v":331301003},{"$f":"IFERROR(IF(Table2[[#This Row],[رقم الحساب]]<>\"\",VLOOKUP(Table2[[#This Row],[رقم الحساب]],Table1[[6]:[النوع]],3,0),\"\"),\"\")","v":"مصروف اهلاك السيارات وشاحنات النقل"},{"$f":"IFERROR(IF(Table2[[#This Row],[رقم الحساب]]<>\"\",VLOOKUP(Table2[[#This Row],[رقم الحساب]],Table1[[6]:[النوع]],4,0),\"\"),\"\")","v":"أرباح وخسائر"}]
[{"$f":"IFERROR(INDEX(Table1[6],MATCH(0,IF(ISBLANK(Table1[6]),1,COUNTIF($A$3:A268,Table1[6])),0)),\"\")","v":331301009},{"$f":"IFERROR(IF(Table2[[#This Row],[رقم الحساب]]<>\"\",VLOOKUP(Table2[[#This Row],[رقم الحساب]],Table1[[6]:[النوع]],3,0),\"\"),\"\")","v":"فروق التكلفة"},{"$f":"IFERROR(IF(Table2[[#This Row],[رقم الحساب]]<>\"\",VLOOKUP(Table2[[#This Row],[رقم الحساب]],Table1[[6]:[النوع]],4,0),\"\"),\"\")","v":"أرباح وخسائر"}]
[{"$f":"IFERROR(INDEX(Table1[6],MATCH(0,IF(ISBLANK(Table1[6]),1,COUNTIF($A$3:A269,Table1[6])),0)),\"\")","v":331301008},{"$f":"IFERROR(IF(Table2[[#This Row],[رقم الحساب]]<>\"\",VLOOKUP(Table2[[#This Row],[رقم الحساب]],Table1[[6]:[النوع]],3,0),\"\"),\"\")","v":"فروق الكسور"},{"$f":"IFERROR(IF(Table2[[#This Row],[رقم الحساب]]<>\"\",VLOOKUP(Table2[[#This Row],[رقم الحساب]],Table1[[6]:[النوع]],4,0),\"\"),\"\")","v":"أرباح وخسائر"}]
[{"$f":"IFERROR(INDEX(Table1[6],MATCH(0,IF(ISBLANK(Table1[6]),1,COUNTIF($A$3:A270,Table1[6])),0)),\"\")","v":331301006},{"$f":"IFERROR(IF(Table2[[#This Row],[رقم الحساب]]<>\"\",VLOOKUP(Table2[[#This Row],[رقم الحساب]],Table1[[6]:[النوع]],3,0),\"\"),\"\")","v":"مصروف اهلاك الاجهزة الكهربائية والعدد والادوات"},{"$f":"IFERROR(IF(Table2[[#This Row],[رقم الحساب]]<>\"\",VLOOKUP(Table2[[#This Row],[رقم الحساب]],Table1[[6]:[النوع]],4,0),\"\"),\"\")","v":"أرباح وخسائر"}]
[{"$f":"IFERROR(INDEX(Table1[6],MATCH(0,IF(ISBLANK(Table1[6]),1,COUNTIF($A$3:A271,Table1[6])),0)),\"\")","v":331301010},{"$f":"IFERROR(IF(Table2[[#This Row],[رقم الحساب]]<>\"\",VLOOKUP(Table2[[#This Row],[رقم الحساب]],Table1[[6]:[النوع]],3,0),\"\"),\"\")","v":"ايرادات فروق العملة"},{"$f":"IFERROR(IF(Table2[[#This Row],[رقم الحساب]]<>\"\",VLOOKUP(Table2[[#This Row],[رقم الحساب]],Table1[[6]:[النوع]],4,0),\"\"),\"\")","v":"أرباح وخسائر"}]
[{"$f":"IFERROR(INDEX(Table1[6],MATCH(0,IF(ISBLANK(Table1[6]),1,COUNTIF($A$3:A272,Table1[6])),0)),\"\")","v":331301004},{"$f":"IFERROR(IF(Table2[[#This Row],[رقم الحساب]]<>\"\",VLOOKUP(Table2[[#This Row],[رقم الحساب]],Table1[[6]:[النوع]],3,0),\"\"),\"\")","v":"مصروف اهلاك الكمبيوترات والانظمة"},{"$f":"IFERROR(IF(Table2[[#This Row],[رقم الحساب]]<>\"\",VLOOKUP(Table2[[#This Row],[رقم الحساب]],Table1[[6]:[النوع]],4,0),\"\"),\"\")","v":"أرباح وخسائر"}]
[{"$f":"IFERROR(INDEX(Table1[6],MATCH(0,IF(ISBLANK(Table1[6]),1,COUNTIF($A$3:A273,Table1[6])),0)),\"\")","v":331301007},{"$f":"IFERROR(IF(Table2[[#This Row],[رقم الحساب]]<>\"\",VLOOKUP(Table2[[#This Row],[رقم الحساب]],Table1[[6]:[النوع]],3,0),\"\"),\"\")","v":"مصروف اهلاك تأسيس وشهرة محل"},{"$f":"IFERROR(IF(Table2[[#This Row],[رقم الحساب]]<>\"\",VLOOKUP(Table2[[#This Row],[رقم الحساب]],Table1[[6]:[النوع]],4,0),\"\"),\"\")","v":"أرباح وخسائر"}]
[{"$f":"IFERROR(INDEX(Table1[6],MATCH(0,IF(ISBLANK(Table1[6]),1,COUNTIF($A$3:A274,Table1[6])),0)),\"\")","v":411101001},{"$f":"IFERROR(IF(Table2[[#This Row],[رقم الحساب]]<>\"\",VLOOKUP(Table2[[#This Row],[رقم الحساب]],Table1[[6]:[النوع]],3,0),\"\"),\"\")","v":"ايرادات مبيعات خرسانه"},{"$f":"IFERROR(IF(Table2[[#This Row],[رقم الحساب]]<>\"\",VLOOKUP(Table2[[#This Row],[رقم الحساب]],Table1[[6]:[النوع]],4,0),\"\"),\"\")","v":"أرباح وخسائر"}]
[{"$f":"IFERROR(INDEX(Table1[6],MATCH(0,IF(ISBLANK(Table1[6]),1,COUNTIF($A$3:A275,Table1[6])),0)),\"\")","v":412101001},{"$f":"IFERROR(IF(Table2[[#This Row],[رقم الحساب]]<>\"\",VLOOKUP(Table2[[#This Row],[رقم الحساب]],Table1[[6]:[النوع]],3,0),\"\"),\"\")","v":"ايرادات الكميات المجانية مخزون"},{"$f":"IFERROR(IF(Table2[[#This Row],[رقم الحساب]]<>\"\",VLOOKUP(Table2[[#This Row],[رقم الحساب]],Table1[[6]:[النوع]],4,0),\"\"),\"\")","v":"أرباح وخسائر"}]
[{"$f":"IFERROR(INDEX(Table1[6],MATCH(0,IF(ISBLANK(Table1[6]),1,COUNTIF($A$3:A276,Table1[6])),0)),\"\")","v":412101002},{"$f":"IFERROR(IF(Table2[[#This Row],[رقم الحساب]]<>\"\",VLOOKUP(Table2[[#This Row],[رقم الحساب]],Table1[[6]:[النوع]],3,0),\"\"),\"\")","v":"خصم المكتسب"},{"$f":"IFERROR(IF(Table2[[#This Row],[رقم الحساب]]<>\"\",VLOOKUP(Table2[[#This Row],[رقم الحساب]],Table1[[6]:[النوع]],4,0),\"\"),\"\")","v":"أرباح وخسائر"}]
[{"$f":"IFERROR(INDEX(Table1[6],MATCH(0,IF(ISBLANK(Table1[6]),1,COUNTIF($A$3:A277,Table1[6])),0)),\"\")","v":4141101},{"$f":"IFERROR(IF(Table2[[#This Row],[رقم الحساب]]<>\"\",VLOOKUP(Table2[[#This Row],[رقم الحساب]],Table1[[6]:[النوع]],3,0),\"\"),\"\")","v":"ايرادات مصنعية مبنى عضم تجاري (1)"},{"$f":"IFERROR(IF(Table2[[#This Row],[رقم الحساب]]<>\"\",VLOOKUP(Table2[[#This Row],[رقم الحساب]],Table1[[6]:[النوع]],4,0),\"\"),\"\")","v":"أرباح وخسائر"}]
[{"$f":"IFERROR(INDEX(Table1[6],MATCH(0,IF(ISBLANK(Table1[6]),1,COUNTIF($A$3:A278,Table1[6])),0)),\"\")","v":4141209},{"$f":"IFERROR(IF(Table2[[#This Row],[رقم الحساب]]<>\"\",VLOOKUP(Table2[[#This Row],[رقم الحساب]],Table1[[6]:[النوع]],3,0),\"\"),\"\")","v":"ايراد 1"},{"$f":"IFERROR(IF(Table2[[#This Row],[رقم الحساب]]<>\"\",VLOOKUP(Table2[[#This Row],[رقم الحساب]],Table1[[6]:[النوع]],4,0),\"\"),\"\")","v":"أرباح وخسائر"}]
[{"$f":"IFERROR(INDEX(Table1[6],MATCH(0,IF(ISBLANK(Table1[6]),1,COUNTIF($A$3:A279,Table1[6])),0)),\"\")","v":4141204},{"$f":"IFERROR(IF(Table2[[#This Row],[رقم الحساب]]<>\"\",VLOOKUP(Table2[[#This Row],[رقم الحساب]],Table1[[6]:[النوع]],3,0),\"\"),\"\")","v":"ايراد 2"},{"$f":"IFERROR(IF(Table2[[#This Row],[رقم الحساب]]<>\"\",VLOOKUP(Table2[[#This Row],[رقم الحساب]],Table1[[6]:[النوع]],4,0),\"\"),\"\")","v":"أرباح وخسائر"}]
[{"$f":"IFERROR(INDEX(Table1[6],MATCH(0,IF(ISBLANK(Table1[6]),1,COUNTIF($A$3:A280,Table1[6])),0)),\"\")","v":4141202},{"$f":"IFERROR(IF(Table2[[#This Row],[رقم الحساب]]<>\"\",VLOOKUP(Table2[[#This Row],[رقم الحساب]],Table1[[6]:[النوع]],3,0),\"\"),\"\")","v":"ايراد 3"},{"$f":"IFERROR(IF(Table2[[#This Row],[رقم الحساب]]<>\"\",VLOOKUP(Table2[[#This Row],[رقم الحساب]],Table1[[6]:[النوع]],4,0),\"\"),\"\")","v":"أرباح وخسائر"}]
[{"$f":"IFERROR(INDEX(Table1[6],MATCH(0,IF(ISBLANK(Table1[6]),1,COUNTIF($A$3:A281,Table1[6])),0)),\"\")","v":4141207},{"$f":"IFERROR(IF(Table2[[#This Row],[رقم الحساب]]<>\"\",VLOOKUP(Table2[[#This Row],[رقم الحساب]],Table1[[6]:[النوع]],3,0),\"\"),\"\")","v":"ايراد 4"},{"$f":"IFERROR(IF(Table2[[#This Row],[رقم الحساب]]<>\"\",VLOOKUP(Table2[[#This Row],[رقم الحساب]],Table1[[6]:[النوع]],4,0),\"\"),\"\")","v":"أرباح وخسائر"}]
[{"$f":"IFERROR(INDEX(Table1[6],MATCH(0,IF(ISBLANK(Table1[6]),1,COUNTIF($A$3:A282,Table1[6])),0)),\"\")","v":4141217},{"$f":"IFERROR(IF(Table2[[#This Row],[رقم الحساب]]<>\"\",VLOOKUP(Table2[[#This Row],[رقم الحساب]],Table1[[6]:[النوع]],3,0),\"\"),\"\")","v":"ايراد 5"},{"$f":"IFERROR(IF(Table2[[#This Row],[رقم الحساب]]<>\"\",VLOOKUP(Table2[[#This Row],[رقم الحساب]],Table1[[6]:[النوع]],4,0),\"\"),\"\")","v":"أرباح وخسائر"}]
[{"$f":"IFERROR(INDEX(Table1[6],MATCH(0,IF(ISBLANK(Table1[6]),1,COUNTIF($A$3:A283,Table1[6])),0)),\"\")","v":4141214},{"$f":"IFERROR(IF(Table2[[#This Row],[رقم الحساب]]<>\"\",VLOOKUP(Table2[[#This Row],[رقم الحساب]],Table1[[6]:[النوع]],3,0),\"\"),\"\")","v":"ايراد 6"},{"$f":"IFERROR(IF(Table2[[#This Row],[رقم الحساب]]<>\"\",VLOOKUP(Table2[[#This Row],[رقم الحساب]],Table1[[6]:[النوع]],4,0),\"\"),\"\")","v":"أرباح وخسائر"}]
[{"$f":"IFERROR(INDEX(Table1[6],MATCH(0,IF(ISBLANK(Table1[6]),1,COUNTIF($A$3:A284,Table1[6])),0)),\"\")","v":4141213},{"$f":"IFERROR(IF(Table2[[#This Row],[رقم الحساب]]<>\"\",VLOOKUP(Table2[[#This Row],[رقم الحساب]],Table1[[6]:[النوع]],3,0),\"\"),\"\")","v":"ايراد 7"},{"$f":"IFERROR(IF(Table2[[#This Row],[رقم الحساب]]<>\"\",VLOOKUP(Table2[[#This Row],[رقم الحساب]],Table1[[6]:[النوع]],4,0),\"\"),\"\")","v":"أرباح وخسائر"}]
[{"$f":"IFERROR(INDEX(Table1[6],MATCH(0,IF(ISBLANK(Table1[6]),1,COUNTIF($A$3:A285,Table1[6])),0)),\"\")","v":4141215},{"$f":"IFERROR(IF(Table2[[#This Row],[رقم الحساب]]<>\"\",VLOOKUP(Table2[[#This Row],[رقم الحساب]],Table1[[6]:[النوع]],3,0),\"\"),\"\")","v":"ايراد 8"},{"$f":"IFERROR(IF(Table2[[#This Row],[رقم الحساب]]<>\"\",VLOOKUP(Table2[[#This Row],[رقم الحساب]],Table1[[6]:[النوع]],4,0),\"\"),\"\")","v":"أرباح وخسائر"}]
[{"$f":"IFERROR(INDEX(Table1[6],MATCH(0,IF(ISBLANK(Table1[6]),1,COUNTIF($A$3:A286,Table1[6])),0)),\"\")","v":4141212},{"$f":"IFERROR(IF(Table2[[#This Row],[رقم الحساب]]<>\"\",VLOOKUP(Table2[[#This Row],[رقم الحساب]],Table1[[6]:[النوع]],3,0),\"\"),\"\")","v":"ايراد 9"},{"$f":"IFERROR(IF(Table2[[#This Row],[رقم الحساب]]<>\"\",VLOOKUP(Table2[[#This Row],[رقم الحساب]],Table1[[6]:[النوع]],4,0),\"\"),\"\")","v":"أرباح وخسائر"}]
[{"$f":"IFERROR(INDEX(Table1[6],MATCH(0,IF(ISBLANK(Table1[6]),1,COUNTIF($A$3:A287,Table1[6])),0)),\"\")","v":4141208},{"$f":"IFERROR(IF(Table2[[#This Row],[رقم الحساب]]<>\"\",VLOOKUP(Table2[[#This Row],[رقم الحساب]],Table1[[6]:[النوع]],3,0),\"\"),\"\")","v":"ايراد 10"},{"$f":"IFERROR(IF(Table2[[#This Row],[رقم الحساب]]<>\"\",VLOOKUP(Table2[[#This Row],[رقم الحساب]],Table1[[6]:[النوع]],4,0),\"\"),\"\")","v":"أرباح وخسائر"}]
[{"$f":"IFERROR(INDEX(Table1[6],MATCH(0,IF(ISBLANK(Table1[6]),1,COUNTIF($A$3:A288,Table1[6])),0)),\"\")","v":4141205},{"$f":"IFERROR(IF(Table2[[#This Row],[رقم الحساب]]<>\"\",VLOOKUP(Table2[[#This Row],[رقم الحساب]],Table1[[6]:[النوع]],3,0),\"\"),\"\")","v":"ايراد 11"},{"$f":"IFERROR(IF(Table2[[#This Row],[رقم الحساب]]<>\"\",VLOOKUP(Table2[[#This Row],[رقم الحساب]],Table1[[6]:[النوع]],4,0),\"\"),\"\")","v":"أرباح وخسائر"}]
[{"$f":"IFERROR(INDEX(Table1[6],MATCH(0,IF(ISBLANK(Table1[6]),1,COUNTIF($A$3:A289,Table1[6])),0)),\"\")","v":4141218},{"$f":"IFERROR(IF(Table2[[#This Row],[رقم الحساب]]<>\"\",VLOOKUP(Table2[[#This Row],[رقم الحساب]],Table1[[6]:[النوع]],3,0),\"\"),\"\")","v":"ايراد 12"},{"$f":"IFERROR(IF(Table2[[#This Row],[رقم الحساب]]<>\"\",VLOOKUP(Table2[[#This Row],[رقم الحساب]],Table1[[6]:[النوع]],4,0),\"\"),\"\")","v":"أرباح وخسائر"}]
[{"$f":"IFERROR(INDEX(Table1[6],MATCH(0,IF(ISBLANK(Table1[6]),1,COUNTIF($A$3:A290,Table1[6])),0)),\"\")","v":4141210},{"$f":"IFERROR(IF(Table2[[#This Row],[رقم الحساب]]<>\"\",VLOOKUP(Table2[[#This Row],[رقم الحساب]],Table1[[6]:[النوع]],3,0),\"\"),\"\")","v":"ايراد 13"},{"$f":"IFERROR(IF(Table2[[#This Row],[رقم الحساب]]<>\"\",VLOOKUP(Table2[[#This Row],[رقم الحساب]],Table1[[6]:[النوع]],4,0),\"\"),\"\")","v":"أرباح وخسائر"}]
[{"$f":"IFERROR(INDEX(Table1[6],MATCH(0,IF(ISBLANK(Table1[6]),1,COUNTIF($A$3:A291,Table1[6])),0)),\"\")","v":4141206},{"$f":"IFERROR(IF(Table2[[#This Row],[رقم الحساب]]<>\"\",VLOOKUP(Table2[[#This Row],[رقم الحساب]],Table1[[6]:[النوع]],3,0),\"\"),\"\")","v":"ايراد 14"},{"$f":"IFERROR(IF(Table2[[#This Row],[رقم الحساب]]<>\"\",VLOOKUP(Table2[[#This Row],[رقم الحساب]],Table1[[6]:[النوع]],4,0),\"\"),\"\")","v":"أرباح وخسائر"}]
[{"$f":"IFERROR(INDEX(Table1[6],MATCH(0,IF(ISBLANK(Table1[6]),1,COUNTIF($A$3:A292,Table1[6])),0)),\"\")","v":4141201},{"$f":"IFERROR(IF(Table2[[#This Row],[رقم الحساب]]<>\"\",VLOOKUP(Table2[[#This Row],[رقم الحساب]],Table1[[6]:[النوع]],3,0),\"\"),\"\")","v":"ايراد 15"},{"$f":"IFERROR(IF(Table2[[#This Row],[رقم الحساب]]<>\"\",VLOOKUP(Table2[[#This Row],[رقم الحساب]],Table1[[6]:[النوع]],4,0),\"\"),\"\")","v":"أرباح وخسائر"}]
[{"$f":"IFERROR(INDEX(Table1[6],MATCH(0,IF(ISBLANK(Table1[6]),1,COUNTIF($A$3:A293,Table1[6])),0)),\"\")","v":4141216},{"$f":"IFERROR(IF(Table2[[#This Row],[رقم الحساب]]<>\"\",VLOOKUP(Table2[[#This Row],[رقم الحساب]],Table1[[6]:[النوع]],3,0),\"\"),\"\")","v":"ايراد 16"},{"$f":"IFERROR(IF(Table2[[#This Row],[رقم الحساب]]<>\"\",VLOOKUP(Table2[[#This Row],[رقم الحساب]],Table1[[6]:[النوع]],4,0),\"\"),\"\")","v":"أرباح وخسائر"}]
[{"$f":"IFERROR(INDEX(Table1[6],MATCH(0,IF(ISBLANK(Table1[6]),1,COUNTIF($A$3:A294,Table1[6])),0)),\"\")","v":4141211},{"$f":"IFERROR(IF(Table2[[#This Row],[رقم الحساب]]<>\"\",VLOOKUP(Table2[[#This Row],[رقم الحساب]],Table1[[6]:[النوع]],3,0),\"\"),\"\")","v":"ايراد 17"},{"$f":"IFERROR(IF(Table2[[#This Row],[رقم الحساب]]<>\"\",VLOOKUP(Table2[[#This Row],[رقم الحساب]],Table1[[6]:[النوع]],4,0),\"\"),\"\")","v":"أرباح وخسائر"}]
[{"$f":"IFERROR(INDEX(Table1[6],MATCH(0,IF(ISBLANK(Table1[6]),1,COUNTIF($A$3:A295,Table1[6])),0)),\"\")","v":4141203},{"$f":"IFERROR(IF(Table2[[#This Row],[رقم الحساب]]<>\"\",VLOOKUP(Table2[[#This Row],[رقم الحساب]],Table1[[6]:[النوع]],3,0),\"\"),\"\")","v":"ايراد 18"},{"$f":"IFERROR(IF(Table2[[#This Row],[رقم الحساب]]<>\"\",VLOOKUP(Table2[[#This Row],[رقم الحساب]],Table1[[6]:[النوع]],4,0),\"\"),\"\")","v":"أرباح وخسائر"}]
[{"$f":"IFERROR(INDEX(Table1[6],MATCH(0,IF(ISBLANK(Table1[6]),1,COUNTIF($A$3:A296,Table1[6])),0)),\"\")","v":421101001},{"$f":"IFERROR(IF(Table2[[#This Row],[رقم الحساب]]<>\"\",VLOOKUP(Table2[[#This Row],[رقم الحساب]],Table1[[6]:[النوع]],3,0),\"\"),\"\")","v":"ايرادات استثمارات مالية في شركات شقيقة .."},{"$f":"IFERROR(IF(Table2[[#This Row],[رقم الحساب]]<>\"\",VLOOKUP(Table2[[#This Row],[رقم الحساب]],Table1[[6]:[النوع]],4,0),\"\"),\"\")","v":"أرباح وخسائر"}]
[{"$f":"IFERROR(INDEX(Table1[6],MATCH(0,IF(ISBLANK(Table1[6]),1,COUNTIF($A$3:A297,Table1[6])),0)),\"\")","v":421202003},{"$f":"IFERROR(IF(Table2[[#This Row],[رقم الحساب]]<>\"\",VLOOKUP(Table2[[#This Row],[رقم الحساب]],Table1[[6]:[النوع]],3,0),\"\"),\"\")","v":"ايرادات بيع مخلفات"},{"$f":"IFERROR(IF(Table2[[#This Row],[رقم الحساب]]<>\"\",VLOOKUP(Table2[[#This Row],[رقم الحساب]],Table1[[6]:[النوع]],4,0),\"\"),\"\")","v":"أرباح وخسائر"}]
[{"$f":"IFERROR(INDEX(Table1[6],MATCH(0,IF(ISBLANK(Table1[6]),1,COUNTIF($A$3:A298,Table1[6])),0)),\"\")","v":421202004},{"$f":"IFERROR(IF(Table2[[#This Row],[رقم الحساب]]<>\"\",VLOOKUP(Table2[[#This Row],[رقم الحساب]],Table1[[6]:[النوع]],3,0),\"\"),\"\")","v":"ايرادات بيع أصول مستخدمه"},{"$f":"IFERROR(IF(Table2[[#This Row],[رقم الحساب]]<>\"\",VLOOKUP(Table2[[#This Row],[رقم الحساب]],Table1[[6]:[النوع]],4,0),\"\"),\"\")","v":"أرباح وخسائر"}]
[{"$f":"IFERROR(INDEX(Table1[6],MATCH(0,IF(ISBLANK(Table1[6]),1,COUNTIF($A$3:A299,Table1[6])),0)),\"\")","v":421202001},{"$f":"IFERROR(IF(Table2[[#This Row],[رقم الحساب]]<>\"\",VLOOKUP(Table2[[#This Row],[رقم الحساب]],Table1[[6]:[النوع]],3,0),\"\"),\"\")","v":"ايرادات احرى"},{"$f":"IFERROR(IF(Table2[[#This Row],[رقم الحساب]]<>\"\",VLOOKUP(Table2[[#This Row],[رقم الحساب]],Table1[[6]:[النوع]],4,0),\"\"),\"\")","v":"أرباح وخسائر"}]
[{"$f":"IFERROR(INDEX(Table1[6],MATCH(0,IF(ISBLANK(Table1[6]),1,COUNTIF($A$3:A300,Table1[6])),0)),\"\")","v":421202002},{"$f":"IFERROR(IF(Table2[[#This Row],[رقم الحساب]]<>\"\",VLOOKUP(Table2[[#This Row],[رقم الحساب]],Table1[[6]:[النوع]],3,0),\"\"),\"\")","v":"ايرادات عمولات"},{"$f":"IFERROR(IF(Table2[[#This Row],[رقم الحساب]]<>\"\",VLOOKUP(Table2[[#This Row],[رقم الحساب]],Table1[[6]:[النوع]],4,0),\"\"),\"\")","v":"أرباح وخسائر"}]
[{"$f":"IFERROR(INDEX(Table1[6],MATCH(0,IF(ISBLANK(Table1[6]),1,COUNTIF($A$3:A301,Table1[6])),0)),\"\")","v":""}]
[{"$f":"IFERROR(INDEX(Table1[6],MATCH(0,IF(ISBLANK(Table1[6]),1,COUNTIF($A$3:A302,Table1[6])),0)),\"\")","v":""}]
[{"$f":"IFERROR(INDEX(Table1[6],MATCH(0,IF(ISBLANK(Table1[6]),1,COUNTIF($A$3:A303,Table1[6])),0)),\"\")","v":""}]
[{"$f":"IFERROR(INDEX(Table1[6],MATCH(0,IF(ISBLANK(Table1[6]),1,COUNTIF($A$3:A304,Table1[6])),0)),\"\")","v":""}]
[{"$f":"IFERROR(INDEX(Table1[6],MATCH(0,IF(ISBLANK(Table1[6]),1,COUNTIF($A$3:A305,Table1[6])),0)),\"\")","v":""}]
[{"$f":"IFERROR(INDEX(Table1[6],MATCH(0,IF(ISBLANK(Table1[6]),1,COUNTIF($A$3:A306,Table1[6])),0)),\"\")","v":""}]
[{"$f":"IFERROR(INDEX(Table1[6],MATCH(0,IF(ISBLANK(Table1[6]),1,COUNTIF($A$3:A307,Table1[6])),0)),\"\")","v":""}]
[{"$f":"IFERROR(INDEX(Table1[6],MATCH(0,IF(ISBLANK(Table1[6]),1,COUNTIF($A$3:A308,Table1[6])),0)),\"\")","v":""}]
[{"$f":"IFERROR(INDEX(Table1[6],MATCH(0,IF(ISBLANK(Table1[6]),1,COUNTIF($A$3:A309,Table1[6])),0)),\"\")","v":""}]
[{"$f":"IFERROR(INDEX(Table1[6],MATCH(0,IF(ISBLANK(Table1[6]),1,COUNTIF($A$3:A310,Table1[6])),0)),\"\")","v":""}]
[{"$f":"IFERROR(INDEX(Table1[6],MATCH(0,IF(ISBLANK(Table1[6]),1,COUNTIF($A$3:A311,Table1[6])),0)),\"\")","v":""}]
[{"$f":"IFERROR(INDEX(Table1[6],MATCH(0,IF(ISBLANK(Table1[6]),1,COUNTIF($A$3:A312,Table1[6])),0)),\"\")","v":""}]
[{"$f":"IFERROR(INDEX(Table1[6],MATCH(0,IF(ISBLANK(Table1[6]),1,COUNTIF($A$3:A313,Table1[6])),0)),\"\")","v":""}]
[{"$f":"IFERROR(INDEX(Table1[6],MATCH(0,IF(ISBLANK(Table1[6]),1,COUNTIF($A$3:A314,Table1[6])),0)),\"\")","v":""}]
[{"$f":"IFERROR(INDEX(Table1[6],MATCH(0,IF(ISBLANK(Table1[6]),1,COUNTIF($A$3:A315,Table1[6])),0)),\"\")","v":""}]
[{"$f":"IFERROR(INDEX(Table1[6],MATCH(0,IF(ISBLANK(Table1[6]),1,COUNTIF($A$3:A316,Table1[6])),0)),\"\")","v":""}]
[{"$f":"IFERROR(INDEX(Table1[6],MATCH(0,IF(ISBLANK(Table1[6]),1,COUNTIF($A$3:A317,Table1[6])),0)),\"\")","v":""}]
[{"$f":"IFERROR(INDEX(Table1[6],MATCH(0,IF(ISBLANK(Table1[6]),1,COUNTIF($A$3:A318,Table1[6])),0)),\"\")","v":""}]
[{"$f":"IFERROR(INDEX(Table1[6],MATCH(0,IF(ISBLANK(Table1[6]),1,COUNTIF($A$3:A319,Table1[6])),0)),\"\")","v":""}]
[{"$f":"IFERROR(INDEX(Table1[6],MATCH(0,IF(ISBLANK(Table1[6]),1,COUNTIF($A$3:A320,Table1[6])),0)),\"\")","v":""}]
[{"$f":"IFERROR(INDEX(Table1[6],MATCH(0,IF(ISBLANK(Table1[6]),1,COUNTIF($A$3:A321,Table1[6])),0)),\"\")","v":""}]
[{"$f":"IFERROR(INDEX(Table1[6],MATCH(0,IF(ISBLANK(Table1[6]),1,COUNTIF($A$3:A322,Table1[6])),0)),\"\")","v":""}]
[{"$f":"IFERROR(INDEX(Table1[6],MATCH(0,IF(ISBLANK(Table1[6]),1,COUNTIF($A$3:A323,Table1[6])),0)),\"\")","v":""}]
[{"$f":"IFERROR(INDEX(Table1[6],MATCH(0,IF(ISBLANK(Table1[6]),1,COUNTIF($A$3:A324,Table1[6])),0)),\"\")","v":""}]
[{"$f":"IFERROR(INDEX(Table1[6],MATCH(0,IF(ISBLANK(Table1[6]),1,COUNTIF($A$3:A325,Table1[6])),0)),\"\")","v":""}]
[{"$f":"IFERROR(INDEX(Table1[6],MATCH(0,IF(ISBLANK(Table1[6]),1,COUNTIF($A$3:A326,Table1[6])),0)),\"\")","v":""}]
[{"$f":"IFERROR(INDEX(Table1[6],MATCH(0,IF(ISBLANK(Table1[6]),1,COUNTIF($A$3:A327,Table1[6])),0)),\"\")","v":""}]
[{"$f":"IFERROR(INDEX(Table1[6],MATCH(0,IF(ISBLANK(Table1[6]),1,COUNTIF($A$3:A328,Table1[6])),0)),\"\")","v":""}]
[{"$f":"IFERROR(INDEX(Table1[6],MATCH(0,IF(ISBLANK(Table1[6]),1,COUNTIF($A$3:A329,Table1[6])),0)),\"\")","v":""}]
[{"$f":"IFERROR(INDEX(Table1[6],MATCH(0,IF(ISBLANK(Table1[6]),1,COUNTIF($A$3:A330,Table1[6])),0)),\"\")","v":""}]
[{"$f":"IFERROR(INDEX(Table1[6],MATCH(0,IF(ISBLANK(Table1[6]),1,COUNTIF($A$3:A331,Table1[6])),0)),\"\")","v":""}]
[{"$f":"IFERROR(INDEX(Table1[6],MATCH(0,IF(ISBLANK(Table1[6]),1,COUNTIF($A$3:A332,Table1[6])),0)),\"\")","v":""}]
[{"$f":"IFERROR(INDEX(Table1[6],MATCH(0,IF(ISBLANK(Table1[6]),1,COUNTIF($A$3:A333,Table1[6])),0)),\"\")","v":""}]
[{"$f":"IFERROR(INDEX(Table1[6],MATCH(0,IF(ISBLANK(Table1[6]),1,COUNTIF($A$3:A334,Table1[6])),0)),\"\")","v":""}]
[{"$f":"IFERROR(INDEX(Table1[6],MATCH(0,IF(ISBLANK(Table1[6]),1,COUNTIF($A$3:A335,Table1[6])),0)),\"\")","v":""}]
[{"$f":"IFERROR(INDEX(Table1[6],MATCH(0,IF(ISBLANK(Table1[6]),1,COUNTIF($A$3:A336,Table1[6])),0)),\"\")","v":""}]